Departmental Family,Entity,Date,Expense Type,Expense Area,Supplier,Transaction Number,Amount
Department for Work and Pensions,Corporate,16-Jul-13,FAS - NON ASSET BACKED ASSISTANCE PAYMENTS,STR FAS ASSISTANCE PAYMENTS,PENSION PROTECTION FUND,1005895,"40,720,000"
Department for Work and Pensions,Corporate,31-Jul-13,PRIME FACILITY PRICE,OPS OPE OIS ESTATES BASELINE,TELEREAL TRILLIUM,2030386813,"31,785,058"
Department for Work and Pensions,Corporate,16-Jul-13,HOSTING SERVICES,CIO ITLR HOSTING,HP ENTERPRISE SERVICES UK LTD,2030222380,"15,381,772"
Department for Work and Pensions,Corporate,24-Jul-13,SOFTWARE LICENCES,CIO ITLR SOFTWARE P,ORACLE CORPORATION UK LTD,2030340908,"14,641,681"
Department for Work and Pensions,Corporate,02-Jul-13,PENSIONS REGULATOR GIA,STR THE PENS REGULATOR,THE PENSIONS REGULATOR,1005858,"11,550,000"
Department for Work and Pensions,Corporate,18-Jul-13,NETWORK SERVICES,CIO ITLR NETWORK,BT GLOBAL SERVICES,2030290465,"9,684,873"
Department for Work and Pensions,Corporate,22-Jul-13,NEST Loan - in year additions,CHG ERSP DEL A,NEST CORPORATION,2003979,"6,500,000"
Department for Work and Pensions,European Social Fund,12-Jul-13,MA ESF(D) PROGRAMME EXPENDITURE EC PREFUNDED OGDS,WWEG EUROPEAN SOCIAL FUND PROGRAMME 2007-2013,YORKSHIRE & HUMBER SKILLS FUNDING AGENCY,5000001409,"6,196,761"
Department for Work and Pensions,Employment Programmes,31-Jul-13,CPS LP RECOVERIES,BALANCE SHEET,DWP MANUAL PAYMENTS,2004005,"5,867,429"
Department for Work and Pensions,Corporate,18-Jul-13,PENSION PROTECTION FUND RESOURCE GRANT,STR PENSION PROTECTION� FUND,PENSION PROTECTION FUND,1005900,"5,219,000"
Department for Work and Pensions,Corporate,02-Jul-13,POST OFFICE CARD ACCOUNT,F&C FIN CONT COBAP POCA,POST OFFICE LTD,1005862,"5,119,149"
Department for Work and Pensions,Corporate,31-Jul-13,POST OFFICE CARD ACCOUNT,F&C FIN CONT COBAP POCA,POST OFFICE LTD,1005925,"5,082,370"
Department for Work and Pensions,Corporate,31-Jul-13,PRIME BUSINESS RATES,OPS OPE OIS ESTATES BASELINE,TELEREAL TRILLIUM,2030435834,"5,062,270"
Department for Work and Pensions,Corporate,18-Jul-13,GENERAL OFFICE EXPENSES VAT NON-RECOVERABLE,CORP DEL A ADJUSTMENTS,HM REVENUE & CUSTOMS,2030290821,"5,026,430"
Department for Work and Pensions,Corporate,19-Jul-13,MEDICAL SERVICES FIXED COSTS,OPS CCS MEDICAL SERVICES,ATOS HEALTHCARE,2030294001,"4,510,379"
Department for Work and Pensions,Corporate,31-Jul-13,AR PRIME RECOVERIES,BALANCE SHEET,TELEREAL TRILLIUM,2030386813,"4,336,300"
Department for Work and Pensions,Corporate,10-Jul-13,CONTRACTED OUT OFFICE SERVICES,OPS OPE OIS CENTRAL CONTRACTS,BALFOUR BEATTY WORKPLACE LTD,2030210761,"3,621,090"
Department for Work and Pensions,Corporate,16-Jul-13,AMS FIXED PRICE CONTRACTS,CIO ITLR AMS,HP ENTERPRISE SERVICES UK LTD,2030222380,"3,598,583"
Department for Work and Pensions,Child Maintenance and Enforcement Commission,31-Jul-13,HOSTING SERVICES,LEGACY SYSTEMS IT RUNNING COSTS - IOL,DWP,2000986,"3,319,564"
Department for Work and Pensions,Corporate,18-Jul-13,NETWORK CONTACT CENTRE SERVICES,CIO ITLR NETWORK,BT GLOBAL SERVICES,2030290465,"3,273,327"
Department for Work and Pensions,Child Maintenance and Enforcement Commission,31-Jul-13,CONTRACTED OUT OFFICE SERVICES,EXTERNAL CONTRACTS VERTEX,SERCO PUBLIC SERVICES LTD,1000184394,"2,812,638"
Department for Work and Pensions,European Social Fund,15-Jul-13,MA ESF(D) PROGRAMME EXPENDITURE EC PREFUNDED OGDS,WWEG EUROPEAN SOCIAL FUND PROGRAMME 2007-2013,SOUTH WEST SKILLS FUNDING AGENCY,5000001412,"2,727,318"
Department for Work and Pensions,Corporate,15-Jul-13,TREDDS APPS DEV MANDAYS,CHG PIP DELIVERY,HP ENTERPRISE SERVICES UK LTD,2030220887,"2,681,444"
Department for Work and Pensions,Employment Programmes,29-Jul-13,REMPLOY RESOURCE GRANT,WWEG EP REMPLOY,REMPLOY LTD,2030371626,"2,620,000"
Department for Work and Pensions,Corporate,16-Jul-13,SOFTWARE LICENCES,CIO ITLR HOSTING,HP ENTERPRISE SERVICES UK LTD,2030222380,"2,616,665"
Department for Work and Pensions,Child Maintenance and Enforcement Commission,02-Jul-13,CONTRACTED OUT OFFICE SERVICES,EXTERNAL CONTRACTS VERTEX,SERCO LTD,1000181854,"2,573,658"
Department for Work and Pensions,Child Maintenance and Enforcement Commission,11-Jul-13,NON-TREDDS IS IT APPS DEV MANDAY,MI PROJECT WAREHOUSE,CAPGEMINI UK PLC,1001382,"2,438,000"
Department for Work and Pensions,Child Maintenance and Enforcement Commission,31-Jul-13,SOFTWARE LICENCES,LEGACY SYSTEMS IT RUNNING COSTS - IOL,DWP,2000986,"2,418,509"
Department for Work and Pensions,Corporate,16-Jul-13,HOSTING PRINT SERVICES,CIO ITLR HOSTING,HP ENTERPRISE SERVICES UK LTD,2030222380,"2,291,507"
Department for Work and Pensions,Corporate,02-Jul-13,COURIER COSTS,OPS OPE CENTRAL CONTACTS,TNT UK LTD,2030068639,"2,257,470"
Department for Work and Pensions,Corporate,18-Jul-13,PENSION PROTECTION FUND RESOURCE GRANT,STR FAS ADMINISTRATION DEL P,PENSION PROTECTION FUND,1005901,"2,071,000"
Department for Work and Pensions,Child Maintenance and Enforcement Commission,23-Jul-13,BELFAST BENEFIT CENTRE (RUN COSTS),CSA CD CENT HELD NORTHERN IRELAND PAYMENTS,DSD GROUP ACCOUNT,1001390,"1,895,416"
Department for Work and Pensions,Corporate,08-Jul-13,SIAM FIXED PRICE CONTRACTS,CIO ITLR SIAM,HP ENTERPRISE SERVICES UK LTD,2030143475,"1,788,927"
Department for Work and Pensions,European Social Fund,26-Jul-13,MA ESF(D) PROGRAMME EXPENDITURE EC PREFUNDED L A's,WWEG EUROPEAN SOCIAL FUND PROGRAMME 2007-2013,KNOWSLEY METROPOLITIAN BOROUGH COUNCIL,5000001420,"1,778,880"
Department for Work and Pensions,Child Maintenance and Enforcement Commission,19-Jul-13,PRIME FACILITY PRICE,PRIME,DWP,2000976,"1,773,899"
Department for Work and Pensions,European Social Fund,31-Jul-13,MA ESF(D) PROGRAMME EXPENDITURE EC PREFUNDED OGDS,WWEG EUROPEAN SOCIAL FUND PROGRAMME 2007-2013,EAST OF ENGLAND LEARNING & SKILLS COUNCIL,5000001426,"1,763,585"
Department for Work and Pensions,Corporate,30-Jul-13,NON PRIME UTILITIES,F&C CD DWP GAS & ELECTRICITY PAYMENTS / RECHARGES,EDF ENERGY 1 LTD SCC UTILITIES ONLY,2030373084,"1,698,548"
Department for Work and Pensions,Corporate,16-Jul-13,DESKTOP SERVICES,CIO ITLR DESKTOP,HP ENTERPRISE SERVICES UK LTD,2030222380,"1,620,672"
Department for Work and Pensions,Corporate,24-Jul-13,BELFAST BENEFIT CENTRE (RUN COSTS),OPS BEN BD LN BELFAST,DEPARTMENT OF SOCIAL DEVELOPMENT,1005914,"1,594,456"
Department for Work and Pensions,Corporate,31-Jul-13,PRIME FACILITY PRICE,OPS OPE OIS ESTATES RECESSION,TELEREAL TRILLIUM,2030386813,"1,524,886"
Department for Work and Pensions,Corporate,10-Jul-13,BELFAST BENEFIT CENTRE (RUN COSTS),OPS BEN BD LN BELFAST,DEPARTMENT FOR SOCIAL DEVELOPMENT,1005890,"1,516,956"
Department for Work and Pensions,Corporate,31-Jul-13,BELFAST BENEFIT CENTRE (RUN COSTS),OPS BEN BD LN BELFAST,DEPARTMENT OF SOCIAL DEVELOPMENT,1005924,"1,508,497"
Department for Work and Pensions,Child Maintenance and Enforcement Commission,31-Jul-13,NETWORK SERVICES,LEGACY SYSTEMS IT RUNNING COSTS - IOL,DWP,2000986,"1,384,210"
Department for Work and Pensions,Child Maintenance and Enforcement Commission,16-Jul-13,NON-TREDDS IS IT APPS DEV MANDAY,FS PHASE 2 - TCS COSTS,TATA CONSULTANCY SERVICES LTD,1000183021,"1,343,928"
Department for Work and Pensions,Corporate,08-Jul-13,BUSINESS RATES - DIRECT LOCAL AUTHORITIES,OPS OPE OIS ESTATES BASELINE,NORTH TYNESIDE COUNCIL,2030143113,"1,300,040"
Department for Work and Pensions,Corporate,16-Jul-13,MEDICAL OPINIONS INCAPACITY BENEFIT,OPS CCS MEDICAL SERVICES,ATOS HEALTHCARE,2030223960,"1,284,995"
Department for Work and Pensions,Corporate,17-Jul-13,POSTAGE,F&C CD ACC POSTAGE,UK MAIL,2030236553,"1,281,265"
Department for Work and Pensions,Corporate,31-Jul-13,PRIME FACILITY PRICE,F&C CD CAXTON,TELEREAL TRILLIUM,2030386813,"1,261,875"
Department for Work and Pensions,Child Maintenance and Enforcement Commission,16-Jul-13,NON-TREDDS IS IT SERVICES (AMS),FUTURE SYSTEM IT RUNNING COSTS - IOL,TATA CONSULTANCY SERVICES LTD,1000183021,"1,250,000"
Department for Work and Pensions,Corporate,16-Jul-13,TREDDS APPS DEV MANDAYS,CHG PIP DELIVERY,HP ENTERPRISE SERVICES UK LTD,2030222380,"1,165,889"
Department for Work and Pensions,Corporate,09-Jul-13,NON-TREDDS IS IT SERVICES (DESKTOP),CIO ITLR SUSTAINABLE PRINT SERVICE,XEROX UK LTD 3W,2030148650,"1,142,123"
Department for Work and Pensions,Corporate,09-Jul-13,VALUATION OFFICE,OPS CCS HDD VOA,VALUATION OFFICE AGENCY,2003952,"1,050,000"
Department for Work and Pensions,Corporate,15-Jul-13,PRIME VARIABLE CHARGE,OPS OPE ESTATES BASELINE,TELEREAL TRILLIUM,2030221067,"1,035,142"
Department for Work and Pensions,Corporate,23-Jul-13,NON-TREDDS IS IT APPS DEV MANDAY,CHG PIP DELIVERY,ACCENTURE UK LTD,2030300097,"976,468"
Department for Work and Pensions,Corporate,24-Jul-13,MEDICAL OPINIONS INCAPACITY BENEFIT,OPS CCS MEDICAL SERVICES,ATOS HEALTHCARE,2030337305,"967,218"
Department for Work and Pensions,Employment Programmes,31-Jul-13,TA LPS BACS Payments,BALANCE SHEET,DWP MANUAL PAYMENTS,2004004,"951,582"
Department for Work and Pensions,Corporate,31-Jul-13,AR PRIME RECOVERIES,BALANCE SHEET,TELEREAL TRILLIUM,2030435834,"927,110"
Department for Work and Pensions,Housing Benefits,12-Jul-13,HOUSING BENEFIT ADMINISTRATION,HB ENGLAND,BIRMINGHAM CITY COUNCIL,2030216018,"908,663"
Department for Work and Pensions,Corporate,18-Jul-13,REMOTE STORAGE COSTS VAT RECOV,OPS OPE OIS CENTRAL CONTRACTS,CAPITA BUSINESS SERVICES LTD,2030289946,"864,508"
Department for Work and Pensions,Corporate,09-Jul-13,TREDDS APPS DEV MANDAYS,CHG UC PROJECT LEDGER CC,HP ENTERPRISE SERVICES UK LTD,2030150486,"830,764"
Department for Work and Pensions,Corporate,25-Jul-13,TELEPHONY CALL CHARGES,CIO ITLR NETWORK,BT GLOBAL SERVICES,2030363447,"767,354"
Department for Work and Pensions,SHARED SERVICES,11-Jul-13,NON-TREDDS IS IT APPS DEV MANDAY,TSOL DD,FUJITSU SERVICES LTD,2030215639,"747,964"
Department for Work and Pensions,Corporate,22-Jul-13,PENS ADVISORY SERVICE GIA,STR THE PENSION ADVISORY SERVICE DEL P,THE PENSIONS ADVISORY SERVICES,1005904,"744,000"
Department for Work and Pensions,Corporate,16-Jul-13,SIAM STAT MANDAYS,CIO ITLR SIAM,HP ENTERPRISE SERVICES UK LTD,2030222380,"718,158"
Department for Work and Pensions,Corporate,29-Jul-13,CONTRACTED OUT PRINTING & STATIONERY SOLUTIONS,F&C CD MANAGEMENT FEE,XEROX UK LTD 3W,2030370491,"702,083"
Department for Work and Pensions,Corporate,22-Jul-13,PENSIONS OMBUDSMAN GIA,STR PENSIONS OMBUDSMAN,THE PENSIONS OMBUDSMAN,1005905,"691,000"
Department for Work and Pensions,Child Maintenance and Enforcement Commission,04-Jul-13,NON-TREDDS IS IT SERVICES (AMS),FUTURE SYSTEM IT RUNNING COSTS - IOL,TATA CONSULTANCY SERVICES LTD,1000181993,"625,000"
Department for Work and Pensions,Housing Benefits,12-Jul-13,HOUSING BENEFIT ADMINISTRATION,HB SCOTLAND,CITY OF GLASGOW,2030215984,"614,650"
Department for Work and Pensions,Employment Programmes,09-Jul-13,REMPLOY RESOURCE GRANT,WWEG EP REMPLOY,REMPLOY LTD,1005881,"610,000"
Department for Work and Pensions,Corporate,26-Jul-13,COST VARIANCE ACCOUNT,CHG ERSP COMMS,M4C,2030366799,"599,908"
Department for Work and Pensions,Child Maintenance and Enforcement Commission,31-Jul-13,IS/IT RECHARGE - CIT ALLOCATIONS,LEGACY SYSTEMS IT RUNNING COSTS - IOL,DWP,2000986,"593,913"
Department for Work and Pensions,European Social Fund,15-Jul-13,MA ESF(D) PROGRAMME EXPENDITURE EC PREFUNDED OGDS,WWEG EUROPEAN SOCIAL FUND PROGRAMME 2007-2013,SOUTH WEST SKILLS FUNDING AGENCY,5000001414,"574,559"
Department for Work and Pensions,Corporate,23-Jul-13,NON-TREDDS IS IT APPS DEV MANDAY,CHG SCANNING & DIGITAL STORAGE,ACCENTURE UK LTD,2030300097,"567,533"
Department for Work and Pensions,Corporate,31-Jul-13,PRIME FACILITY PRICE,F&C CD NORCROSS,TELEREAL TRILLIUM,2030386813,"558,153"
Department for Work and Pensions,Child Maintenance and Enforcement Commission,31-Jul-13,AMS FIXED PRICE CONTRACTS,LEGACY SYSTEMS IT RUNNING COSTS - IOL,DWP,2000986,"538,650"
Department for Work and Pensions,Corporate,31-Jul-13,PRIME FACILITY PRICE,F&C CD LEEDS QUARRY HOUSE,TELEREAL TRILLIUM,2030386813,"537,680"
Department for Work and Pensions,SHARED SERVICES,09-Jul-13,NON-TREDDS IS IT SERVICES (HOSTING),IT COSTS,FUJITSU SERVICES LTD,2030149953,"536,000"
Department for Work and Pensions,Corporate,16-Jul-13,SIAM MANAGEMENT SERVICES,CIO ITLR SIAM,HP ENTERPRISE SERVICES UK LTD,2030222380,"514,038"
Department for Work and Pensions,Housing Benefits,12-Jul-13,HOUSING BENEFIT ADMINISTRATION,HB ENGLAND,LIVERPOOL CITY COUNCIL,2030215922,"514,005"
Department for Work and Pensions,Child Maintenance and Enforcement Commission,31-Jul-13,DESKTOP SERVICES,LEGACY SYSTEMS IT RUNNING COSTS - IOL,DWP,2000986,"512,012"
Department for Work and Pensions,European Social Fund,29-Jul-13,MA ESF(D) PROGRAMME EXPENDITURE EC PREFUNDED L A's,WWEG EUROPEAN SOCIAL FUND PROGRAMME 2007-2013,LONDON COUNCILS,5000001422,"506,506"
Department for Work and Pensions,Corporate,16-Jul-13,NON-TREDDS IS IT APPS DEV MANDAY,CIO CIS RELEASE 2,IBM UNITED KINGDOM LTD,2030221823,"506,270"
Department for Work and Pensions,Corporate,09-Jul-13,NON-TREDDS IS IT APPS DEV MANDAY,CHG PIP DELIVERY,IBM UNITED KINGDOM LTD,2030146508,"504,856"
Department for Work and Pensions,Housing Benefits,12-Jul-13,HOUSING BENEFIT ADMINISTRATION,HB ENGLAND,LEEDS CITY COUNCIL,2030215811,"480,337"
Department for Work and Pensions,Corporate,16-Jul-13,CONTRACTED OUT OFFICE SERVICES,OPS NET CC CAPITA,CAPITA CUSTOMER MANAGEMENT LTD,2030222330,"473,207"
Department for Work and Pensions,Housing Benefits,12-Jul-13,HOUSING BENEFIT ADMINISTRATION,HB ENGLAND,MANCHESTER CITY COUNCIL,2030215941,"470,741"
Department for Work and Pensions,Corporate,17-Jul-13,SOC SEC RESEARCH BUDGET,PSG IGS STAT SERVICES,OFFICE FOR NATIONAL STATISTICS,2030256798,"448,793"
Department for Work and Pensions,Child Maintenance and Enforcement Commission,12-Jul-13,TREDDS APPS DEV MANDAYS,NEW SCHEME HOSTING - DEVELOPMENT,HP ENTERPRISE SERVICES UK LTD,1000182865,"438,461"
Department for Work and Pensions,Corporate,16-Jul-13,NON-TREDDS IS IT APPS DEV MANDAY,CHG PIP DELIVERY,IBM UNITED KINGDOM LTD,2030221823,"432,880"
Department for Work and Pensions,Corporate,19-Jul-13,NON-TREDDS IS IT APPS DEV MANDAY,CHG PIP DELIVERY,IBM UNITED KINGDOM LTD,2030293540,"423,623"
Department for Work and Pensions,Corporate,31-Jul-13,PRIME BUSINESS RATES,F&C CD CAXTON,TELEREAL TRILLIUM,2030435834,"407,279"
Department for Work and Pensions,Corporate,18-Jul-13,TELEPHONY CALL CHARGES,CIO ITLR NETWORK,BT GLOBAL SERVICES,2030290465,"405,500"
Department for Work and Pensions,Corporate,15-Jul-13,CONTRACTED OUT OFFICE SERVICES,F&C CD OFFICE SERVICES,BALFOUR BEATTY WORKPLACE LTD,2030220054,"402,961"
Department for Work and Pensions,Corporate,19-Jul-13,NEW ENTERPRISE ALLOWANCE LOAN PAYMENT (DEL CAPITAL),OPS WDC WSD DEL PROG REPORTING,THE FIVE LAMPS ORGANISATION,2030293329,"400,000"
Department for Work and Pensions,Corporate,22-Jul-13,PUBLICITY ADVERTISING MEDIA,CHG ERSP COMMS,M4C,2030298218,"398,035"
Department for Work and Pensions,Corporate,08-Jul-13,HOSTING FIXED PRICE CONTRACTS,CIO ITLR HOSTING,HP ENTERPRISE SERVICES UK LTD,2030143475,"394,953"
Department for Work and Pensions,Corporate,12-Jul-13,POSTAGE,F&C CD ACC POSTAGE,ROYAL MAIL GROUP PLC,2030216239,"391,169"
Department for Work and Pensions,Employment Programmes,12-Jul-13,SERVICE FEE,"WWEG EP SUPPORT LONDON CENTRL, LAMBETH, SOUTHWRK AND WANDSWRTH",A4E LTD,2030217071,"389,218"
Department for Work and Pensions,Child Maintenance and Enforcement Commission,16-Jul-13,TREDDS APPS DEV MANDAYS,LEGACY RELEASE 22,HP ENTERPRISE SERVICES UK LTD,1000183035,"385,348"
Department for Work and Pensions,Housing Benefits,12-Jul-13,HOUSING BENEFIT ADMINISTRATION,HB ENGLAND,DURHAM COUNCIL,2030215926,"383,047"
Department for Work and Pensions,Housing Benefits,12-Jul-13,HOUSING BENEFIT ADMINISTRATION,HB ENGLAND,BRADFORD METROPOLITAN BOROUGH COUNCIL,2030215802,"382,904"
Department for Work and Pensions,Child Maintenance and Enforcement Commission,19-Jul-13,PRIME BUSINESS RATES,PRIME,DWP,2000976,"381,207"
Department for Work and Pensions,Corporate,30-Jul-13,NON-TREDDS IS IT SERVICES (HOSTING),CIO ITLR IGS,SPECIALIST COMPUTER CENTRES PLC,2030376152,"366,875"
Department for Work and Pensions,Corporate,22-Jul-13,PRIME BILLABLE EXTRAS PRIME CONTRACT MANAGEMENT (PCM),CHG ESTATES RATIONALISATION SHEFFIELD,TELEREAL TRILLIUM,2030297935,"365,000"
Department for Work and Pensions,Corporate,29-Jul-13,SOC SEC RESEARCH BUDGET,STR LM AND COND DIRECTOR AND SUPPORT,OFFICE FOR NATIONAL STATISTICS,2030370180,"364,589"
Department for Work and Pensions,Corporate,05-Jul-13,MANAGED SERVICE UNIVERSAL JOBMATCH,OPS NET DIG UNIVERSAL JOBMATCH CONTRACT,MONSTER GOVERNMENT SOLUTIONS,2030137323,"363,835"
Department for Work and Pensions,Corporate,31-Jul-13,PRIME UTILITIES,OPS OPE OIS ESTATES BASELINE,TELEREAL TRILLIUM,2030386811,"363,682"
Department for Work and Pensions,Corporate,23-Jul-13,MANAGED SERVICE UNIVERSAL JOBMATCH,OPS NET DIG UNIVERSAL JOBMATCH CONTRACT,MONSTER GOVERNMENT SOLUTIONS,2030300785,"359,764"
Department for Work and Pensions,Corporate,29-Jul-13,SOC SEC RESEARCH BUDGET,PSG IGS STAT SERVICES,NATIONAL CENTRE FOR SOCIAL RESEARCH,2030370513,"357,129"
Department for Work and Pensions,Housing Benefits,12-Jul-13,HOUSING BENEFIT ADMINISTRATION,HB ENGLAND,LONDON BOROUGH OF TOWER HAMLETS,2030215724,"350,861"
Department for Work and Pensions,Employment Programmes,30-Jul-13,SERVICE FEE,WWEG EP WORK CHOICE S WEST WALES S WALES VALLEYS,SHAW TRUST,2030373807,"348,789"
Department for Work and Pensions,Housing Benefits,12-Jul-13,HOUSING BENEFIT ADMINISTRATION,HB ENGLAND,LONDON BOROUGH OF LAMBETH,2030215781,"338,726"
Department for Work and Pensions,Housing Benefits,12-Jul-13,HOUSING BENEFIT ADMINISTRATION,HB ENGLAND,SHEFFIELD CITY COUNCIL,2030215728,"338,356"
Department for Work and Pensions,Corporate,16-Jul-13,NON-TREDDS IS IT SERVICES (AMS),CIO ADEP ITLR HISTORIC PREMIUM & TRANSFORMATION,ACCENTURE UK LTD,2030224285,"337,679"
Department for Work and Pensions,Housing Benefits,12-Jul-13,HOUSING BENEFIT ADMINISTRATION,HB ENGLAND,LONDON BOROUGH OF LEWISHAM,2030215816,"336,041"
Department for Work and Pensions,Corporate,15-Jul-13,PRIME UNAVOIDABLE COSTS (UAC),CHG ESTATES RATIONALISATION FORMER JCP OPS,TELEREAL TRILLIUM,2030221068,"334,972"
Department for Work and Pensions,Corporate,16-Jul-13,AMS SERVICES,CIO ITLR AMS,HP ENTERPRISE SERVICES UK LTD,2030222380,"331,519"
Department for Work and Pensions,Housing Benefits,12-Jul-13,HOUSING BENEFIT ADMINISTRATION,HB ENGLAND,HACKNEY LBC,2030216019,"331,465"
Department for Work and Pensions,Corporate,10-Jul-13,NON-TREDDS IS IT APPS DEV MANDAY,CHG PIP DELIVERY,IBM UNITED KINGDOM LTD,2030211003,"330,682"
Department for Work and Pensions,Housing Benefits,12-Jul-13,HOUSING BENEFIT ADMINISTRATION,HB ENGLAND,CORNWALL COUNCIL,2030215927,"327,467"
Department for Work and Pensions,European Social Fund,18-Jul-13,MA ESF(D) PROGRAMME EXPENDITURE EC PREFUNDED DWP,WWEG EUROPEAN SOCIAL FUND PROGRAMME 2007-2013,SOUTH WEST DWP,5000001416,"325,823"
Department for Work and Pensions,Corporate,31-Jul-13,PRIME FACILITY PRICE,F&C CD PEEL PARK,TELEREAL TRILLIUM,2030386813,"325,695"
Department for Work and Pensions,Housing Benefits,12-Jul-13,HOUSING BENEFIT ADMINISTRATION,HB ENGLAND,BRISTOL CITY COUNCIL,2030215706,"316,030"
Department for Work and Pensions,Corporate,26-Jul-13,PUBLICITY ADVERTISING MEDIA,CHG ERSP COMMS,M4C,2030366799,"313,887"
Department for Work and Pensions,Housing Benefits,12-Jul-13,HOUSING BENEFIT ADMINISTRATION,HB ENGLAND,LONDON BOROUGH OF SOUTHWARK,2030216055,"312,554"
Department for Work and Pensions,Corporate,31-Jul-13,PRIME FACILITY PRICE,F&C CD MANCHESTER HEYWOOD STORES,TELEREAL TRILLIUM,2030386813,"311,854"
Department for Work and Pensions,Corporate,19-Jul-13,BANK COMMISSION & CHARGES,F&C FIN CONT COBAP BANKING,HSBC BANK PLC,2030294999,"304,943"
Department for Work and Pensions,Corporate,23-Jul-13,SOC SEC RESEARCH BUDGET,PSG IGS STAT SERVICES,OFFICE FOR NATIONAL STATISTICS,2030299840,"294,860"
Department for Work and Pensions,Corporate,31-Jul-13,STATIONERY/ PUBLICATIONS/IT CONSUMABLES,CHG STATE PENSION REFORM SINGLE TIER,HM REVENUE & CUSTOMS,2004006,"289,809"
Department for Work and Pensions,Corporate,22-Jul-13,NON-TREDDS IS IT SERVICES (AMS),OPS CCS TUO NEW BUSINESS,ATOS ORIGIN IT SERVICES UK LTD,2030298075,"288,915"
Department for Work and Pensions,European Social Fund,15-Jul-13,MA ESF(D) PROGRAMME EXPENDITURE EC PREFUNDED OGDS,WWEG EUROPEAN SOCIAL FUND PROGRAMME 2007-2013,EAST OF ENGLAND LEARNING & SKILLS COUNCIL,5000001410,"288,462"
Department for Work and Pensions,Employment Programmes,30-Jul-13,SERVICE FEE,WWEG EP WORK CHOICE SURREY AND SUSSEX KENT,WORKING LINKS,2030374334,"285,794"
Department for Work and Pensions,Housing Benefits,12-Jul-13,HOUSING BENEFIT ADMINISTRATION,HB SCOTLAND,EDINBURGH DISTRICT COUNCIL,2030215985,"284,225"
Department for Work and Pensions,Corporate,16-Jul-13,TREDDS APPS DEV MANDAYS,F&C FIN CONT FIN SYSTEMS INT CONTROL GROUP,HP ENTERPRISE SERVICES UK LTD,2030222380,"282,864"
Department for Work and Pensions,Housing Benefits,12-Jul-13,HOUSING BENEFIT ADMINISTRATION,HB ENGLAND,LONDON BOROUGH OF BRENT,2030215970,"279,574"
Department for Work and Pensions,Corporate,30-Jul-13,MEDICAL ADJUDICATION,PSG LEGAL SERVICES LITIGATION & EMPLOYMENT,TREASURY SOLICITORS DEPARTMENT,2030375225,"276,054"
Department for Work and Pensions,Housing Benefits,12-Jul-13,HOUSING BENEFIT ADMINISTRATION,HB ENGLAND,LONDON BOROUGH OF ENFIELD,2030216035,"272,536"
Department for Work and Pensions,Corporate,16-Jul-13,HOSTING FIXED PRICE CONTRACTS,CIO ITLR HOSTING,HP ENTERPRISE SERVICES UK LTD,2030222380,"271,731"
Department for Work and Pensions,Corporate,10-Jul-13,CONTRACTED OUT OFFICE SERVICES,F&C CD OFFICE SERVICES,BALFOUR BEATTY WORKPLACE LTD,2030210761,"271,515"
Department for Work and Pensions,Housing Benefits,12-Jul-13,HOUSING BENEFIT ADMINISTRATION,HB ENGLAND,CROYDON PEO%,2030216063,"267,979"
Department for Work and Pensions,Employment Programmes,30-Jul-13,SERVICE FEE,WWEG EP WORK CHOICE DERBYSHIRE SOUTH YORKSHIRE,SHAW TRUST,2030373807,"266,202"
Department for Work and Pensions,Employment Programmes,30-Jul-13,SERVICE FEE,WWEG EP WORK CHOICE W LON C LON BARNET ENFIELD HARINGEY,SEETEC BUSINESS TECHNOLOGY CENTRE LTD,2030373513,"265,893"
Department for Work and Pensions,Corporate,22-Jul-13,HOSTING SERVICES,CIO ITLR HOSTING,HP ENTERPRISE SERVICES UK LTD,2030297898,"265,349"
Department for Work and Pensions,Housing Benefits,12-Jul-13,HOUSING BENEFIT ADMINISTRATION,HB ENGLAND,LONDON BOROUGH OF NEWHAM,2030215968,"264,947"
Department for Work and Pensions,Housing Benefits,12-Jul-13,HOUSING BENEFIT ADMINISTRATION,HB ENGLAND,SANDWELL BOROUGH COUNCIL,2030215934,"263,537"
Department for Work and Pensions,Housing Benefits,12-Jul-13,HOUSING BENEFIT ADMINISTRATION,HB ENGLAND,NOTTINGHAM CITY COUNCIL,2030215946,"260,287"
Department for Work and Pensions,Employment Programmes,30-Jul-13,SERVICE FEE,WWEG EP WORK CHOICE DEVON AND CORNWALL,THE PLUSS ORGANISATION,2030374244,"257,736"
Department for Work and Pensions,Housing Benefits,12-Jul-13,HOUSING BENEFIT ADMINISTRATION,HB ENGLAND,KIRKLEES METROPOLITAN BOROUGH COUNCIL,2030215784,"256,973"
Department for Work and Pensions,Housing Benefits,12-Jul-13,HOUSING BENEFIT ADMINISTRATION,HB ENGLAND,LONDON BOROUGH OF HARINGEY,2030215969,"254,809"
Department for Work and Pensions,Corporate,08-Jul-13,TREDDS APPS DEV FIXED PRICE CONTRACTS,CHG PIP DELIVERY,HP ENTERPRISE SERVICES UK LTD,2030143475,"251,272"
Department for Work and Pensions,Housing Benefits,12-Jul-13,HOUSING BENEFIT ADMINISTRATION,HB ENGLAND,LEICESTER CITY COUNCIL,2030215771,"249,708"
Department for Work and Pensions,Corporate,22-Jul-13,NON-TREDDS IS IT SERVICES (AMS),CHG UC PATHFINDER RECURRENT COSTS,ACCENTURE UK LTD,2030297014,"248,051"
Department for Work and Pensions,Corporate,19-Jul-13,NON PRIME UTILITIES,F&C CD DWP GAS & ELECTRICITY PAYMENTS / RECHARGES,CORONA ENERGY RETAIL 4 LTD SCC UTILITIES ONLY,1005902,"247,193"
Department for Work and Pensions,Housing Benefits,12-Jul-13,HOUSING BENEFIT ADMINISTRATION,HB ENGLAND,LONDON BOROUGH OF EALING,2030215995,"247,049"
Department for Work and Pensions,Housing Benefits,12-Jul-13,HOUSING BENEFIT ADMINISTRATION,HB ENGLAND,LONDON BOROUGH OF ISLINGTON,2030215845,"246,857"
Department for Work and Pensions,Corporate,25-Jul-13,CONTRACTED OUT OFFICE SERVICES,OPS NET CC SERCO JSD NINO,SERCO PUBLIC SERVICES LTD,2030364840,"246,829"
Department for Work and Pensions,Corporate,31-Jul-13,PRIME BUSINESS RATES,OPS OPE OIS ESTATES RECESSION,TELEREAL TRILLIUM,2030435834,"240,662"
Department for Work and Pensions,Housing Benefits,12-Jul-13,HOUSING BENEFIT ADMINISTRATION,HB ENGLAND,SUNDERLAND CITY COUNCIL,2030215935,"240,180"
Department for Work and Pensions,Housing Benefits,12-Jul-13,HOUSING BENEFIT ADMINISTRATION,HB ENGLAND,WAKEFIELD  DISTRICT COUNCIL,2030215765,"239,610"
Department for Work and Pensions,Housing Benefits,12-Jul-13,HOUSING BENEFIT ADMINISTRATION,HB ENGLAND,LONDON BOROUGH OF GREENWICH,2030215996,"239,058"
Department for Work and Pensions,Housing Benefits,12-Jul-13,HOUSING BENEFIT ADMINISTRATION,HB ENGLAND,COVENTRY CITY COUNCIL,2030216041,"238,558"
Department for Work and Pensions,Housing Benefits,12-Jul-13,HOUSING BENEFIT ADMINISTRATION,HB ENGLAND,WIRRAL BOROUGH COUNCIL,2030215920,"235,349"
Department for Work and Pensions,Housing Benefits,12-Jul-13,HOUSING BENEFIT ADMINISTRATION,HB SCOTLAND,NORTH LANARKSHIRE COUNCIL,2030215790,"234,398"
Department for Work and Pensions,Employment Programmes,30-Jul-13,SERVICE FEE,WWEG EP WORK CHOICE THE MARCHES COVENTRY AND WARKS,SHAW TRUST,2030373807,"233,044"
Department for Work and Pensions,Housing Benefits,12-Jul-13,HOUSING BENEFIT ADMINISTRATION,HB ENGLAND,WALSALL BOROUGH COUNCIL,2030215933,"232,550"
Department for Work and Pensions,Employment Programmes,30-Jul-13,SERVICE FEE,WWEG EP WORK CHOICE BEDFORDSHIRE AND HERTFORDSHIRE ESSEX,SHAW TRUST,2030373807,"231,883"
Department for Work and Pensions,Corporate,15-Jul-13,NON-TREDDS APPS DEV FIXED PRICE CONTRACTS,CHG BENEFIT CAP,IBM UNITED KINGDOM LTD,2030219746,"230,475"
Department for Work and Pensions,Housing Benefits,12-Jul-13,HOUSING BENEFIT ADMINISTRATION,HB ENGLAND,KINGSTON UPON HULL CITY COUNCIL,2030215734,"230,173"
Department for Work and Pensions,Corporate,12-Jul-13,SOFTWARE LICENCES,CIO ITLR SOFTWARE P,SPECIALIST COMPUTER CENTRES PLC,2030217594,"229,313"
Department for Work and Pensions,Housing Benefits,12-Jul-13,HOUSING BENEFIT ADMINISTRATION,HB ENGLAND,LONDON BOROUGH OF BARNET,2030216036,"225,387"
Department for Work and Pensions,Child Maintenance and Enforcement Commission,31-Jul-13,HOSTING FIXED PRICE CONTRACTS,LEGACY SYSTEMS IT RUNNING COSTS - IOL,DWP,2000986,"225,119"
Department for Work and Pensions,Employment Programmes,30-Jul-13,SERVICE FEE,WWEG EP WORK CHOICE WEST YORKSHIRE,THE PLUSS ORGANISATION,2030374244,"222,785"
Department for Work and Pensions,Housing Benefits,12-Jul-13,HOUSING BENEFIT ADMINISTRATION,HB ENGLAND,LONDON BOROUGH OF WANDSWORTH,2030215858,"222,747"
Department for Work and Pensions,Housing Benefits,12-Jul-13,HOUSING BENEFIT ADMINISTRATION,HB ENGLAND,BRIGHTON & HOVE COUNCIL,2030215726,"222,455"
Department for Work and Pensions,Employment Programmes,17-Jul-13,INNOVATION FUND,WWEG EP NATIONAL,TRIODOS NEW HORIZONS LTD,2030243099,"221,744"
Department for Work and Pensions,Housing Benefits,12-Jul-13,HOUSING BENEFIT ADMINISTRATION,HB WALES,CARDIFF CITY COUNCIL,2030215840,"220,793"
Department for Work and Pensions,Housing Benefits,12-Jul-13,HOUSING BENEFIT ADMINISTRATION,HB ENGLAND,DONCASTER METROPOLITAN BOROUGH COUNCIL,2030215746,"220,631"
Department for Work and Pensions,Corporate,15-Jul-13,CONTRACTED OUT DOCUMENT SCANNING,OPS OPE OIS CENTRAL CONTRACTS,BALFOUR BEATTY WORKPLACE LTD,2030220054,"217,755"
Department for Work and Pensions,Housing Benefits,12-Jul-13,HOUSING BENEFIT ADMINISTRATION,HB ENGLAND,WOLVERHAMPTON CITY COUNCIL,2030216062,"216,803"
Department for Work and Pensions,Housing Benefits,12-Jul-13,HOUSING BENEFIT ADMINISTRATION,HB SCOTLAND,FIFE COUNCIL,2030216059,"216,412"
Department for Work and Pensions,Housing Benefits,12-Jul-13,HOUSING BENEFIT ADMINISTRATION,HB ENGLAND,LONDON BOROUGH OF CAMDEN,2030215730,"213,379"
Department for Work and Pensions,Employment Programmes,30-Jul-13,SERVICE FEE,WWEG EP WORK CHOICE G MANCHESTER CENTRAL; G MANCHESTER E & W,SHAW TRUST,2030373807,"212,415"
Department for Work and Pensions,Housing Benefits,12-Jul-13,HOUSING BENEFIT ADMINISTRATION,HB ENGLAND,CITY OF WESTMINSTER,2030215862,"211,914"
Department for Work and Pensions,Housing Benefits,12-Jul-13,HOUSING BENEFIT ADMINISTRATION,HB ENGLAND,SALFORD CITY COUNCIL,2030215900,"211,287"
Department for Work and Pensions,European Social Fund,02-Jul-13,MA ESF(D) PROGRAMME EXPENDITURE EC PREFUNDED L A's,WWEG EUROPEAN SOCIAL FUND PROGRAMME 2007-2013,CENTRAL BEDFORDSHIRE DISTRICT COUNCIL,5000001403,"211,057"
Department for Work and Pensions,Housing Benefits,12-Jul-13,HOUSING BENEFIT ADMINISTRATION,HB ENGLAND,NEWCASTLE CITY COUNCIL,2030215859,"209,492"
Department for Work and Pensions,Corporate,16-Jul-13,NON-TREDDS IS IT SERVICES (AMS),CIO ADEP ITLR HISTORIC PREMIUM & TRANSFORMATION,IBM UNITED KINGDOM LTD,2030221823,"209,245"
Department for Work and Pensions,Corporate,09-Jul-13,SOFTWARE LICENCES,CIO CIS CORE,SPECIALIST COMPUTER CENTRES PLC,2030149112,"207,978"
Department for Work and Pensions,Housing Benefits,12-Jul-13,HOUSING BENEFIT ADMINISTRATION,HB ENGLAND,BOLTON METROPOLITAN BOROUGH COUNCIL,2030215992,"207,351"
Department for Work and Pensions,Employment Programmes,17-Jul-13,RESIDENTIAL TRAINING COSTS,WWEG EP DELIVERY WELFARE TO WORK PRODUCT SUPPORT,ST LOYES COLLEGE FOUNDATION,2030236286,"204,893"
Department for Work and Pensions,Employment Programmes,30-Jul-13,SERVICE FEE,WWEG EP WORK CHOICE CAMBRIDGESHIRE AND SUFFOLK NORFOLK,SHAW TRUST,2030373807,"204,632"
Department for Work and Pensions,Employment Programmes,30-Jul-13,SERVICE FEE,WWEG EP WORK CHOICE NORTH AND MID WALES SOUTH EAST WALES,WORKING LINKS,2030374334,"204,353"
Department for Work and Pensions,Housing Benefits,12-Jul-13,HOUSING BENEFIT ADMINISTRATION,HB ENGLAND,LONDON BOROUGH OF WALTHAM FOREST,2030215795,"202,988"
Department for Work and Pensions,European Social Fund,17-Jul-13,MA ESF(D) PROGRAMME EXPENDITURE EC PREFUNDED THIRD PARTIES,WWEG EUROPEAN SOCIAL FUND PROGRAMME 2007-2013,NATIONAL INSTITUTE OF ADULT CONTINUING EDUCATION NIACE,5000001415,"200,870"
Department for Work and Pensions,Housing Benefits,12-Jul-13,HOUSING BENEFIT ADMINISTRATION,HB ENGLAND,WILTSHIRE COUNCIL,2030215923,"199,401"
Department for Work and Pensions,Corporate,29-Jul-13,PACS INTER-VOTE CREDITOR,BALANCE SHEET,DWP MANUAL PAYMENTS,2003985,"199,050"
Department for Work and Pensions,Housing Benefits,12-Jul-13,HOUSING BENEFIT ADMINISTRATION,HB ENGLAND,WIGAN BOROUGH COUNCIL,2030216009,"197,754"
Department for Work and Pensions,Corporate,17-Jul-13,ENCASHMENT OF CHEQUES,F&C FIN CONT COBAP CHEQUES,SANTANDER,1005897,"197,540"
Department for Work and Pensions,Child Maintenance and Enforcement Commission,12-Jul-13,TREDDS IS IT CONSULTANCY (HOSTING) NON ADVICE,FUTURE SYSTEM IT RUNNING COSTS - IOL,HP ENTERPRISE SERVICES UK LTD,1000182865,"197,279"
Department for Work and Pensions,European Social Fund,26-Jul-13,MA ESF(D) PROGRAMME EXPENDITURE EC PREFUNDED THIRD PARTIES,WWEG EUROPEAN SOCIAL FUND PROGRAMME 2007-2013,UNIVERSITY OF CUMBRIA,5000001419,"196,916"
Department for Work and Pensions,Corporate,30-Jul-13,SOFTWARE LICENCES,OPS BEN BD DIRECTORS RESIDUAL,SPECIALIST COMPUTER CENTRES PLC,2030376152,"194,327"
Department for Work and Pensions,Corporate,23-Jul-13,NEW ENTERPRISE ALLOWANCE MENTOR MATCHING,OPS WDC WSD NE N AND E YORKS AND HUMBER DISTRICT OFFICE,COLLEGE AT THE GRANGE,2030300571,"193,348"
Department for Work and Pensions,Employment Programmes,15-Jul-13,RESIDENTIAL TRAINING COSTS,WWEG EP DELIVERY WELFARE TO WORK PRODUCT SUPPORT,QUEEN ELIZABETHS FOUNDATION TRAINING COLLEGE,2030221221,"192,609"
Department for Work and Pensions,Housing Benefits,12-Jul-13,HOUSING BENEFIT ADMINISTRATION,HB ENGLAND,STOKE ON TRENT CITY COUNCIL,2030216040,"189,980"
Department for Work and Pensions,Corporate,10-Jul-13,PUBLICITY ADVERTISING MEDIA,CHG ERSP COMMS,M4C,2030209707,"189,781"
Department for Work and Pensions,Employment Programmes,30-Jul-13,SERVICE FEE,WWEG EP WORK CHOICE NOTTINGHAMSHIRE LINCOLNSHIRE AND RUTLAND,SHAW TRUST,2030373807,"189,601"
Department for Work and Pensions,Corporate,02-Jul-13,NON-TREDDS IS IT APPS DEV MANDAY,CHG SCANNING & DIGITAL STORAGE,IBM UNITED KINGDOM LTD,2030068665,"189,562"
Department for Work and Pensions,Housing Benefits,12-Jul-13,HOUSING BENEFIT ADMINISTRATION,HB ENGLAND,PLYMOUTH CITY COUNCIL,2030215843,"189,160"
Department for Work and Pensions,Corporate,31-Jul-13,FSF - SUPPORT CONTRACT MODULES FOR JSA JOBSEEKERS,OPS WDC WSD SC WEST OF SCOTLAND DO,JHP GROUP LTD,2030398119,"188,803"
Department for Work and Pensions,Corporate,24-Jul-13,NON-TREDDS IS IT APPS DEV MANDAY,CIO INFRASTRUCTURE & SERVICE REMEDIATION,ACCENTURE UK LTD,2030320980,"188,559"
Department for Work and Pensions,Housing Benefits,12-Jul-13,HOUSING BENEFIT ADMINISTRATION,HB ENGLAND,NORTHUMBERLAND COUNCIL,2030215925,"188,219"
Department for Work and Pensions,Housing Benefits,12-Jul-13,HOUSING BENEFIT ADMINISTRATION,HB ENGLAND,DUDLEY METROPOLITAN BOROUGH COUNCIL,2030215947,"188,184"
Department for Work and Pensions,Employment Programmes,30-Jul-13,SERVICE FEE,WWEG EP WORK CHOICE GLASGOW LANARKS AND E DUNBART,SHAW TRUST,2030373807,"187,982"
Department for Work and Pensions,Housing Benefits,12-Jul-13,HOUSING BENEFIT ADMINISTRATION,HB SCOTLAND,SOUTH LANARKSHIRE COUNCIL,2030215700,"187,282"
Department for Work and Pensions,Employment Programmes,30-Jul-13,SERVICE FEE,WWEG EP WORK CHOICE BIRMINGHAM SOLIHULL BLACK COUNTRY,ADVANCE HOUSING & SUPPORT LTD,2030374332,"187,211"
Department for Work and Pensions,Housing Benefits,12-Jul-13,HOUSING BENEFIT ADMINISTRATION,HB ENGLAND,SEFTON METROPOLITAN BOROUGH COUNCIL,2030216037,"186,252"
Department for Work and Pensions,Corporate,15-Jul-13,NETWORK SERVICES,CIO AD HOC ITLR PROJECTS,BT GLOBAL SERVICES,2030220573,"185,726"
Department for Work and Pensions,Employment Programmes,30-Jul-13,SERVICE FEE,WWEG EP WORK CHOICE HAMPSHIRE AND ISLE OF WIGHT,CDG WISE ABILITY LTD,2030374486,"185,088"
Department for Work and Pensions,Child Maintenance and Enforcement Commission,19-Jul-13,NON-TREDDS IS IT APPS DEV MANDAY,FS PHASE 2 - TCS COSTS,TATA CONSULTANCY SERVICES LTD,1000183483,"183,932"
Department for Work and Pensions,Employment Programmes,30-Jul-13,SERVICE FEE,WWEG EP WORK CHOICE HIGH ISLDS AND CLYDE COAST AND GRAMP,MOMENTUM SCOTLAND,2030373804,"183,271"
Department for Work and Pensions,Corporate,15-Jul-13,TREDDS APPS DEV MANDAYS,CIO SECURITY IMPROVEMENT PROGRAMME,HP ENTERPRISE SERVICES UK LTD,2030220887,"180,844"
Department for Work and Pensions,Employment Programmes,17-Jul-13,RESIDENTIAL TRAINING COSTS,WWEG EP DELIVERY WELFARE TO WORK PRODUCT SUPPORT,FINCHALE TRAINING COLLEGE,2030258612,"180,569"
Department for Work and Pensions,Employment Programmes,30-Jul-13,SERVICE FEE,WWEG EP WORK CHOICE N E YORKS AND THE HUMBER TEES VALLEY,SHAW TRUST,2030373807,"180,539"
Department for Work and Pensions,Employment Programmes,30-Jul-13,SERVICE FEE,WWEG EP WORK CHOICE S TYNE AND WEAR VALLEY NORTHUMBRIA,SHAW TRUST,2030373807,"176,695"
Department for Work and Pensions,Employment Programmes,30-Jul-13,SERVICE FEE,WWEG EP WORK CHOICE MERSEYSIDE CHESH HALTON & WARRINGTON,SHAW TRUST,2030373807,"175,595"
Department for Work and Pensions,Child Maintenance and Enforcement Commission,22-Jul-13,APPS DEV INDEX ARR,HEAD OFFICE RUNNING COSTS,HP ENTERPRISE SERVICES UK LTD,1000183571,"174,652"
Department for Work and Pensions,Corporate,12-Jul-13,ENCASHMENT OF CHEQUES,F&C FIN CONT COBAP CHEQUES,SANTANDER,1005891,"174,182"
Department for Work and Pensions,Housing Benefits,12-Jul-13,HOUSING BENEFIT ADMINISTRATION,HB ENGLAND,LONDON BOROUGH OF HILLINGDON,2030215913,"172,398"
Department for Work and Pensions,Corporate,26-Jul-13,FSF - SUPPORT CONTRACT MODULES FOR JSA JOBSEEKERS,OPS WDC WSD LN SOUTH LONDON DISTRICT OFFICE,A4E LTD,2030368086,"171,875"
Department for Work and Pensions,European Social Fund,12-Jul-13,MA ESF(D) PROGRAMME EXPENDITURE EC PREFUNDED OGDS,WWEG EUROPEAN SOCIAL FUND PROGRAMME 2007-2013,GREATER LONDON AUTHORITY,5000001408,"171,539"
Department for Work and Pensions,Housing Benefits,12-Jul-13,HOUSING BENEFIT ADMINISTRATION,HB ENGLAND,LONDON BOROUGH OF HOUNSLOW,2030216013,"170,980"
Department for Work and Pensions,Employment Programmes,30-Jul-13,SERVICE FEE,WWEG EP WORK CHOICE ED LOTH BORDS AYR DUM GALL INVER,SHAW TRUST,2030373807,"170,815"
Department for Work and Pensions,Housing Benefits,12-Jul-13,HOUSING BENEFIT ADMINISTRATION,HB ENGLAND,TAMESIDE BOROUGH COUNCIL,2030215964,"170,668"
Department for Work and Pensions,Housing Benefits,12-Jul-13,HOUSING BENEFIT ADMINISTRATION,HB ENGLAND,EAST RIDING OF YORKSHIRE BOROUGH COUNCIL,2030215733,"169,371"
Department for Work and Pensions,SHARED SERVICES,02-Jul-13,NON-TREDDS IS IT APPS DEV MANDAY,I-RECRUITMENT,FUJITSU SERVICES LTD,2030069702,"169,040"
Department for Work and Pensions,Employment Programmes,30-Jul-13,SERVICE FEE,WWEG EP WORK CHOICE W OF ENGLAND GLOS WILTS AND SWINDON,WORKING LINKS,2030374334,"168,058"
Department for Work and Pensions,Housing Benefits,12-Jul-13,HOUSING BENEFIT ADMINISTRATION,HB ENGLAND,CHESHIRE WEST & CHESTER COUNCIL,2030215928,"167,010"
Department for Work and Pensions,Housing Benefits,12-Jul-13,HOUSING BENEFIT ADMINISTRATION,HB ENGLAND,SOUTHAMPTON CITY COUNCIL,2030215918,"166,768"
Department for Work and Pensions,Housing Benefits,12-Jul-13,HOUSING BENEFIT ADMINISTRATION,HB ENGLAND,OLDHAM BOROUGH COUNCIL,2030215990,"166,765"
Department for Work and Pensions,Housing Benefits,12-Jul-13,HOUSING BENEFIT ADMINISTRATION,HB ENGLAND,CHESHIRE EAST BOROUGH COUNCIL,2030215949,"166,690"
Department for Work and Pensions,Housing Benefits,12-Jul-13,HOUSING BENEFIT ADMINISTRATION,HB WALES,RHONDDA CYNON TAFF COUNTY BOROUGH COUNCIL,2030216006,"166,573"
Department for Work and Pensions,Housing Benefits,12-Jul-13,HOUSING BENEFIT ADMINISTRATION,HB ENGLAND,MEDWAY TOWNS COUNCIL,2030215711,"166,284"
Department for Work and Pensions,Housing Benefits,12-Jul-13,HOUSING BENEFIT ADMINISTRATION,HB ENGLAND,ROTHERHAM BOROUGH COUNCIL,2030215961,"166,005"
Department for Work and Pensions,Housing Benefits,12-Jul-13,HOUSING BENEFIT ADMINISTRATION,HB ENGLAND,LONDON BOROUGH OF HAMMERSMITH & FULHAM,2030215752,"165,714"
Department for Work and Pensions,Corporate,12-Jul-13,POSTAGE,OPS OPE CENTRAL CONTACTS,ROYAL MAIL GROUP PLC,2030216239,"165,625"
Department for Work and Pensions,Corporate,16-Jul-13,PROFESSIONAL ADVICE & OPINION VAT RECOVERABLE,PSG LEGAL SERVICES LITIGATION & EMPLOYMENT,TREASURY SOLICITOR TSOL,2030222770,"165,484"
Department for Work and Pensions,Corporate,15-Jul-13,AR PRIME RECOVERIES,BALANCE SHEET,TELEREAL TRILLIUM,2030221067,"164,189"
Department for Work and Pensions,Corporate,30-Jul-13,NON-TREDDS IS IT SERVICES (HOSTING),CIO GG SERVICE DELIVERY,DELL FINANCIAL SERVICES,2030375933,"163,889"
Department for Work and Pensions,Housing Benefits,12-Jul-13,HOUSING BENEFIT ADMINISTRATION,HB ENGLAND,PORTSMOUTH CITY COUNCIL,2030215702,"163,076"
Department for Work and Pensions,Housing Benefits,12-Jul-13,HOUSING BENEFIT ADMINISTRATION,HB ENGLAND,BARNSLEY BOROUGH COUNCIL,2030215962,"161,688"
Department for Work and Pensions,Corporate,18-Jul-13,MEDICAL OPINIONS (EMP) DISABILITY LIVING ALLOWANCE (DLA),OPS BEN DD DISABILITY CSD OVERLAY,ATOS HEALTHCARE,2030286974,"160,757"
Department for Work and Pensions,Corporate,10-Jul-13,CONTRACTED OUT OFFICE SERVICES,CHG SCANNING & DIGITAL STORAGE - AGILITY,BALFOUR BEATTY WORKPLACE LTD,2030210761,"160,477"
Department for Work and Pensions,Corporate,12-Jul-13,TREDDS APPS DEV MANDAYS,CIO SECURITY IMPROVEMENT PROGRAMME,HP ENTERPRISE SERVICES UK LTD,2030216715,"160,261"
Department for Work and Pensions,Housing Benefits,12-Jul-13,HOUSING BENEFIT ADMINISTRATION,HB ENGLAND,ROCHDALE BOROUGH COUNCIL,2030215989,"159,841"
Department for Work and Pensions,Child Maintenance and Enforcement Commission,31-Jul-13,SIAM MANAGEMENT SERVICES,LEGACY SYSTEMS IT RUNNING COSTS - IOL,DWP,2000986,"159,480"
Department for Work and Pensions,Housing Benefits,12-Jul-13,HOUSING BENEFIT ADMINISTRATION,HB ENGLAND,MILTON KEYNES BOROUGH COUNCIL,2030216053,"159,087"
Department for Work and Pensions,Employment Programmes,30-Jul-13,SERVICE FEE,WWEG EP WORK CHOICE FORTH VALLEY FIFE AND TAYSIDE,SHAW TRUST,2030373807,"158,754"
Department for Work and Pensions,Corporate,10-Jul-13,CONTRACTED OUT OFFICE SERVICES,F&C OPS FIN DM CONTRACTS,BALFOUR BEATTY WORKPLACE LTD,2030210761,"158,646"
Department for Work and Pensions,Employment Programmes,30-Jul-13,SERVICE FEE,WWEG EP WORK CHOICE S LON LAMBETH SOUTHWARK WANDSWORTH,INGEUS UK LTD,2030374331,"157,229"
Department for Work and Pensions,Corporate,15-Jul-13,CONTRACTED OUT OFFICE SERVICES,F&C OPS FIN DEBT OPS CENTRAL,EXPERIAN LTD,2030220575,"156,750"
Department for Work and Pensions,Corporate,11-Jul-13,CONTRACTED OUT OFFICE SERVICES,F&C OPS FIN DEBT OPS CENTRAL,EXPERIAN LTD,2030215577,"156,750"
Department for Work and Pensions,Housing Benefits,12-Jul-13,HOUSING BENEFIT ADMINISTRATION,HB WALES,SWANSEA CITY COUNCIL,2030216005,"156,543"
Department for Work and Pensions,Housing Benefits,12-Jul-13,HOUSING BENEFIT ADMINISTRATION,HB ENGLAND,DERBY CITY COUNCIL,2030215891,"156,501"
Department for Work and Pensions,Housing Benefits,12-Jul-13,HOUSING BENEFIT ADMINISTRATION,HB ENGLAND,LONDON BOROUGH OF BARKING & DAGENHAM,2030215701,"155,060"
Department for Work and Pensions,Corporate,22-Jul-13,DESKTOP SERVICES,CIO ITLR DESKTOP,HP ENTERPRISE SERVICES UK LTD,2030297898,"153,775"
Department for Work and Pensions,Corporate,19-Jul-13,NEW ENTERPRISE ALLOWANCE MENTOR MATCHING,OPS WDC WSD SC GLASGOW LANARKSHIRE E DUMBARTONSHIRE DO,GLASGOW CITY COUNCIL,2030295422,"153,216"
Department for Work and Pensions,SHARED SERVICES,12-Jul-13,NON-TREDDS IS IT APPS DEV MANDAY,I-RECRUITMENT,FUJITSU SERVICES LTD,2030216377,"152,590"
Department for Work and Pensions,Housing Benefits,12-Jul-13,HOUSING BENEFIT ADMINISTRATION,HB ENGLAND,LONDON BOROUGH OF BROMLEY,2030215997,"152,481"
Department for Work and Pensions,Child Maintenance and Enforcement Commission,31-Jul-13,IS/IT RECHARGES TO BU'S COVERING RESOURCES WITHIN CENTRALLY (CIT) FUNDED SERVICES AS PER THE SSBA & ICONS CONTRACT,LEGACY SYSTEMS IT RUNNING COSTS - IOL,DWP,2000986,"152,310"
Department for Work and Pensions,Housing Benefits,12-Jul-13,HOUSING BENEFIT ADMINISTRATION,HB ENGLAND,STOCKPORT BOROUGH COUNCIL,2030215988,"151,605"
Department for Work and Pensions,Housing Benefits,12-Jul-13,HOUSING BENEFIT ADMINISTRATION,HB ENGLAND,BLACKPOOL BOROUGH COUNCIL,2030215994,"151,568"
Department for Work and Pensions,Corporate,22-Jul-13,NON-TREDDS IS IT SERVICES (HOSTING),CIO GG CORE,DELL CORPORATION LTD,2030299149,"150,464"
Department for Work and Pensions,Housing Benefits,12-Jul-13,HOUSING BENEFIT ADMINISTRATION,HB ENGLAND,LONDON BOROUGH OF HARROW,2030215792,"150,450"
Department for Work and Pensions,Corporate,15-Jul-13,TREDDS APPS DEV MANDAYS,CHG APPEALS REFORM,HP ENTERPRISE SERVICES UK LTD,2030220887,"150,040"
Department for Work and Pensions,Housing Benefits,12-Jul-13,HOUSING BENEFIT ADMINISTRATION,HB ENGLAND,LONDON BOROUGH OF REDBRIDGE,2030215895,"149,889"
Department for Work and Pensions,Housing Benefits,12-Jul-13,HOUSING BENEFIT ADMINISTRATION,HB ENGLAND,SHROPSHIRE COUNCIL,2030215924,"144,896"
Department for Work and Pensions,Corporate,09-Jul-13,FSF - SUPPORT CONTRACT MODULES FOR JSA JOBSEEKERS,OPS WDC WSD LN EAST LONDON DISTRICT OFFICE,A4E LTD,2030146511,"144,454"
Department for Work and Pensions,Child Maintenance and Enforcement Commission,19-Jul-13,BAILIFF TRACE,EXTERNAL CONTRACTS CENTRALLY HELD INLAND REVENUE TRACING,HM REVENUE & CUSTOMS,2000979,"143,345"
Department for Work and Pensions,Housing Benefits,12-Jul-13,HOUSING BENEFIT ADMINISTRATION,HB ENGLAND,GATESHEAD BOROUGH COUNCIL,2030215960,"143,321"
Department for Work and Pensions,Corporate,24-Jul-13,MEDICAL OPINIONS (EMP) DISABILITY LIVING ALLOWANCE (DLA),OPS BEN DD DISABILITY CSD OVERLAY,ATOS HEALTHCARE,2030337305,"142,940"
Department for Work and Pensions,Employment Programmes,30-Jul-13,SERVICE FEE,WWEG EP WORK CHOICE DORSET AND SOMERSET,SHAW TRUST,2030373807,"142,816"
Department for Work and Pensions,Housing Benefits,12-Jul-13,HOUSING BENEFIT ADMINISTRATION,HB ENGLAND,KNOWSLEY BOROUGH COUNCIL,2030215943,"141,790"
Department for Work and Pensions,Corporate,15-Jul-13,FSF - TRAINING PAYMENTS TO PROVIDERS - JSA JOBSEEKERS,OPS WDC WSD CE DERBYSHIRE DISTRICT OFFICE,TBG LEARNING LTD,2030219718,"141,500"
Department for Work and Pensions,Corporate,18-Jul-13,VOCA Charges,F&C FIN CONT COBAP BANKING,VOCALINK,2030289054,"141,175"
Department for Work and Pensions,Housing Benefits,12-Jul-13,HOUSING BENEFIT ADMINISTRATION,HB ENGLAND,LONDON BOROUGH OF KENSINGTON & CHELSEA,2030215782,"141,055"
Department for Work and Pensions,Housing Benefits,12-Jul-13,HOUSING BENEFIT ADMINISTRATION,HB ENGLAND,CALDERDALE BOROUGH COUNCIL,2030215785,"140,520"
Department for Work and Pensions,Housing Benefits,12-Jul-13,HOUSING BENEFIT ADMINISTRATION,HB ENGLAND,NORTH TYNESIDE BOROUGH COUNCIL,2030215959,"140,089"
Department for Work and Pensions,Corporate,19-Jul-13,NON-TREDDS IS IT APPS DEV MANDAY,CHG DELIVERING THE IRIS ORGANISATION,IBM UNITED KINGDOM LTD,2030293540,"140,047"
Department for Work and Pensions,Housing Benefits,12-Jul-13,HOUSING BENEFIT ADMINISTRATION,HB ENGLAND,BOURNEMOUTH BOROUGH COUNCIL,2030215727,"139,562"
Department for Work and Pensions,Corporate,22-Jul-13,RECRUITMENT & ASSESSMENT SERVICES AGENCY,HR DWP GENERAL FAST STREAM,HM REVENUE & CUSTOMS,2003984,"139,184"
Department for Work and Pensions,Housing Benefits,12-Jul-13,HOUSING BENEFIT ADMINISTRATION,HB ENGLAND,STOCKTON  BOROUGH COUNCIL,2030216031,"137,835"
Department for Work and Pensions,Corporate,30-Jul-13,PROFESSIONAL ADVICE & OPINION VAT RECOVERABLE,PSG LEGAL SERVICES LITIGATION & EMPLOYMENT,TREASURY SOLICITORS DEPARTMENT,2030375225,"137,346"
Department for Work and Pensions,Housing Benefits,12-Jul-13,HOUSING BENEFIT ADMINISTRATION,HB ENGLAND,MIDDLESBROUGH COUNCIL,2030215788,"136,119"
Department for Work and Pensions,Employment Programmes,30-Jul-13,SERVICE FEE,WWEG EP WORK CHOICE BERKSHIRE BUCKS AND OXFORDSHIRE,SHAW TRUST,2030373807,"136,104"
Department for Work and Pensions,Housing Benefits,12-Jul-13,HOUSING BENEFIT ADMINISTRATION,HB ENGLAND,PETERBOROUGH CITY COUNCIL,2030215729,"135,235"
Department for Work and Pensions,Housing Benefits,12-Jul-13,HOUSING BENEFIT ADMINISTRATION,HB ENGLAND,NORTH EAST LINCOLNSHIRE COUNCIL,2030215966,"134,013"
Department for Work and Pensions,Employment Programmes,30-Jul-13,SERVICE FEE,WWEG EP CHOICE WALT FOR RBRID HAV BARK DAG C E LON,WORKING LINKS,2030374334,"132,585"
Department for Work and Pensions,Housing Benefits,12-Jul-13,HOUSING BENEFIT ADMINISTRATION,HB ENGLAND,ST HELENS BOROUGH COUNCIL,2030215963,"131,827"
Department for Work and Pensions,Employment Programmes,10-Jul-13,INNOVATION FUND,WWEG EP NATIONAL,ADVANCED PERSONNEL MANAGEMENT,2030166390,"131,280"
Department for Work and Pensions,Housing Benefits,12-Jul-13,HOUSING BENEFIT ADMINISTRATION,HB ENGLAND,LUTON BOROUGH COUNCIL,2030215774,"130,783"
Department for Work and Pensions,Housing Benefits,12-Jul-13,HOUSING BENEFIT ADMINISTRATION,HB ENGLAND,NORTHAMPTON BOROUGH COUNCIL,2030215810,"129,164"
Department for Work and Pensions,Corporate,31-Jul-13,SERVICE FEE,CHG RIGHT TO CONTROL DELP,LEICESTER CITY COUNCIL,1005927,"128,205"
Department for Work and Pensions,Child Maintenance and Enforcement Commission,26-Jul-13,REMOTE STORAGE COSTS VAT RECOV,CS CENTRALLY HELD BUDGETS FILESTORES,CAPITA BUSINESS SERVICES LTD,1000184126,"128,024"
Department for Work and Pensions,SHARED SERVICES,29-Jul-13,NON-TREDDS IS IT APPS DEV MANDAY,I-RECRUITMENT,FUJITSU SERVICES LTD,2030370178,"127,446"
Department for Work and Pensions,Housing Benefits,12-Jul-13,HOUSING BENEFIT ADMINISTRATION,HB SCOTLAND,DUNDEE CITY COUNCIL,2030215786,"127,386"
Department for Work and Pensions,Employment Programmes,30-Jul-13,SERVICE FEE,WWEG EP WORK CHOICE CUMBRIA AND LANCASHIRE,SHAW TRUST,2030373807,"126,734"
Department for Work and Pensions,Corporate,31-Jul-13,PRIME FACILITY PRICE,F&C CD BIRCHWOOD,TELEREAL TRILLIUM,2030386813,"126,681"
Department for Work and Pensions,Corporate,09-Jul-13,NETWORK SERVICES,CHG PIP DELIVERY,BT GLOBAL SERVICES,2030149717,"126,647"
Department for Work and Pensions,Housing Benefits,12-Jul-13,HOUSING BENEFIT ADMINISTRATION,HB SCOTLAND,RENFREWSHIRE COUNCIL,2030215812,"126,355"
Department for Work and Pensions,Employment Programmes,12-Jul-13,SERVICE FEE,"WWEG EP SUPPORT ESSEX, BEDFORSHIRE AND HERTFORDSHIRE",SEETEC BUSINESS TECHNOLOGY CENTRE LTD,2030218233,"125,640"
Department for Work and Pensions,Corporate,03-Jul-13,DLA MEDICAL SERVICE ADVICE,OPS BEN DD DISABILITY CSD OVERLAY,ATOS HEALTHCARE,2030108210,"124,951"
Department for Work and Pensions,Corporate,24-Jul-13,DLA MEDICAL SERVICE ADVICE,OPS BEN DD DISABILITY CSD OVERLAY,ATOS HEALTHCARE,2030337305,"124,951"
Department for Work and Pensions,Housing Benefits,12-Jul-13,HOUSING BENEFIT ADMINISTRATION,HB ENGLAND,SOUTHEND ON SEA BOROUGH COUNCIL,2030216020,"124,751"
Department for Work and Pensions,Housing Benefits,12-Jul-13,HOUSING BENEFIT ADMINISTRATION,HB ENGLAND,TORBAY  COUNCIL,2030215901,"123,820"
Department for Work and Pensions,Housing Benefits,12-Jul-13,HOUSING BENEFIT ADMINISTRATION,HB ENGLAND,SOUTH GLOUCESTERSHIRE COUNCIL,2030215872,"123,320"
Department for Work and Pensions,Housing Benefits,12-Jul-13,HOUSING BENEFIT ADMINISTRATION,HB ENGLAND,LONDON BOROUGH OF BEXLEY,2030215998,"123,248"
Department for Work and Pensions,Corporate,10-Jul-13,STAFF RELATED COSTS VAT RECOVERABLE,HR EAP,RIGHT CORECARE,2030210976,"123,118"
Department for Work and Pensions,Employment Programmes,12-Jul-13,SERVICE FEE,"WWEG EP SUPPORT CAMBRDIGE AND SUFFOLK, NORFOLK, LINCOLN AND RUTLAND",TNG LTD,2030217789,"122,951"
Department for Work and Pensions,Corporate,08-Jul-13,CIVIL SERVICE OCCUPATIONAL HEALTH SERVICE,HR OHS,ATOS ORIGIN IT SERVICES UK LTD,2030144074,"122,024"
Department for Work and Pensions,Corporate,17-Jul-13,NON PRIME UTILITIES,F&C CD DWP GAS & ELECTRICITY PAYMENTS / RECHARGES,BRITISH GAS BUSINESS SCC UTILITIES ONLY,2030231950,"122,023"
Department for Work and Pensions,Housing Benefits,12-Jul-13,HOUSING BENEFIT ADMINISTRATION,HB ENGLAND,NORTH SOMERSET COUNCIL,2030215867,"121,920"
Department for Work and Pensions,Corporate,04-Jul-13,STAFF RELATED COSTS VAT RECOVERABLE,HR EAP,RIGHT CORECARE,2030135908,"121,807"
Department for Work and Pensions,Housing Benefits,12-Jul-13,HOUSING BENEFIT ADMINISTRATION,HB SCOTLAND,HIGHLAND COUNCIL,2030216010,"120,745"
Department for Work and Pensions,Housing Benefits,12-Jul-13,HOUSING BENEFIT ADMINISTRATION,HB ENGLAND,LONDON BOROUGH OF HAVERING,2030215894,"120,733"
Department for Work and Pensions,Housing Benefits,12-Jul-13,HOUSING BENEFIT ADMINISTRATION,HB ENGLAND,THANET DISTRICT COUNCIL,2030215866,"120,438"
Department for Work and Pensions,Housing Benefits,12-Jul-13,HOUSING BENEFIT ADMINISTRATION,HB ENGLAND,TRAFFORD BOROUGH COUNCIL,2030215809,"120,059"
Department for Work and Pensions,Corporate,03-Jul-13,NEW ENTERPRISE ALLOWANCE LOAN PAYMENT (DEL CAPITAL),OPS WDC WSD DEL PROG REPORTING,THE ENTERPRISE FUND LTD,2030117612,"120,000"
Department for Work and Pensions,Housing Benefits,12-Jul-13,HOUSING BENEFIT ADMINISTRATION,HB ENGLAND,SOUTH TYNESIDE METROPOLITAN BOROUGH COUNCIL,2030215936,"119,613"
Department for Work and Pensions,Employment Programmes,30-Jul-13,SERVICE FEE,WWEG EP WORK CHOICE LEICESTERSHIRE AND NORTHAMPTONSHIRE,WORKING LINKS,2030374334,"119,029"
Department for Work and Pensions,Housing Benefits,12-Jul-13,HOUSING BENEFIT ADMINISTRATION,HB ENGLAND,SWINDON BOROUGH COUNCIL,2030215888,"117,646"
Department for Work and Pensions,European Social Fund,29-Jul-13,MA ESF(D) PROGRAMME EXPENDITURE EC PREFUNDED DWP,WWEG EUROPEAN SOCIAL FUND PROGRAMME 2007-2013,ESF EVALUATION TEAM JOBSEEKERS DIVISION,5000001425,"117,354"
Department for Work and Pensions,Corporate,22-Jul-13,PIP PAPER BASED ASSESSMENTS,OPS CCS PIP LOT 1,ATOS IT SERVICES UK LTD,2030296196,"116,628"
Department for Work and Pensions,Employment Programmes,12-Jul-13,SERVICE FEE,WWEG EP SUPPORT WEST OF ENGLAND,PINNACLE PEOPLE,2030216921,"116,545"
Department for Work and Pensions,Housing Benefits,12-Jul-13,HOUSING BENEFIT ADMINISTRATION,HB ENGLAND,LONDON BOROUGH OF MERTON,2030215896,"116,314"
Department for Work and Pensions,Housing Benefits,12-Jul-13,HOUSING BENEFIT ADMINISTRATION,HB ENGLAND,BOROUGH OF TELFORD & WREKIN COUNCIL,2030215881,"116,000"
Department for Work and Pensions,Corporate,31-Jul-13,PRIME FACILITY PRICE,F&C CD SHEFFIELD STEEL CITY HOUSE,TELEREAL TRILLIUM,2030386813,"115,973"
Department for Work and Pensions,Corporate,31-Jul-13,PRIME FACILITY PRICE,F&C CD SHEFFIELD KINGS COURT,TELEREAL TRILLIUM,2030386813,"115,898"
Department for Work and Pensions,Corporate,31-Jul-13,PRIME BUSINESS RATES,F&C CD LEEDS QUARRY HOUSE,TELEREAL TRILLIUM,2030435834,"114,702"
Department for Work and Pensions,Housing Benefits,12-Jul-13,HOUSING BENEFIT ADMINISTRATION,HB WALES,CAERPHILLY COUNTY BOROUGH COUNCIL,2030215865,"113,980"
Department for Work and Pensions,Housing Benefits,12-Jul-13,HOUSING BENEFIT ADMINISTRATION,HB ENGLAND,BURY METROPOLITAN BOROUGH COUNCIL,2030215991,"113,730"
Department for Work and Pensions,Corporate,09-Jul-13,CONTRACTORS & STAFF SUBSTITUTIONS,CHG UNIVERSAL CREDIT PROG DIRECTOR & PMO,DETICA LTD,2030150955,"113,355"
Department for Work and Pensions,Corporate,19-Jul-13,SOFTWARE LICENCES,CIO ITLR SOFTWARE P,SPECIALIST COMPUTER CENTRES PLC,2030294091,"112,786"
Department for Work and Pensions,Housing Benefits,12-Jul-13,HOUSING BENEFIT ADMINISTRATION,HB ENGLAND,BASILDON DISTRICT COUNCIL,2030215770,"112,241"
Department for Work and Pensions,Corporate,18-Jul-13,PROFESSIONAL ADVICE & OPINION VAT RECOVERABLE,PSG LEGAL SERVICES LITIGATION & EMPLOYMENT,TREASURY SOLICITOR TSOL,2030289567,"112,048"
Department for Work and Pensions,Housing Benefits,12-Jul-13,HOUSING BENEFIT ADMINISTRATION,HB ENGLAND,REDCAR & CLEVELAND BOROUGH  COUNCIL,2030216030,"110,559"
Department for Work and Pensions,European Social Fund,11-Jul-13,MA ESF(D) PROGRAMME EXPENDITURE EC PREFUNDED L A's,WWEG EUROPEAN SOCIAL FUND PROGRAMME 2007-2013,CORNWALL COUNTY COUNCIL,5000001407,"110,064"
Department for Work and Pensions,Corporate,03-Jul-13,NEW ENTERPRISE ALLOWANCE LOAN PAYMENT (DEL CAPITAL),OPS WDC WSD DEL PROG REPORTING,GREATER LONDON ENTERPRISE,2030116289,"110,000"
Department for Work and Pensions,Housing Benefits,12-Jul-13,HOUSING BENEFIT ADMINISTRATION,HB SCOTLAND,NORTH AYRSHIRE COUNCIL,2030215819,"109,863"
Department for Work and Pensions,Housing Benefits,12-Jul-13,HOUSING BENEFIT ADMINISTRATION,HB ENGLAND,LONDON BOROUGH OF SUTTON,2030216012,"109,750"
Department for Work and Pensions,Corporate,31-Jul-13,CIVIL SERVICE OCCUPATIONAL HEALTH SERVICE,HR OHS,ATOS ORIGIN IT SERVICES UK LTD,2030385319,"109,502"
Department for Work and Pensions,Housing Benefits,12-Jul-13,HOUSING BENEFIT ADMINISTRATION,HB ENGLAND,WARRINGTON BOROUGH COUNCIL,2030215868,"109,025"
Department for Work and Pensions,Corporate,31-Jul-13,PRIME FACILITY PRICE,F&C CD SHEFFIELD PORTERBROOK HOUSE,TELEREAL TRILLIUM,2030386813,"108,751"
Department for Work and Pensions,Housing Benefits,12-Jul-13,HOUSING BENEFIT ADMINISTRATION,HB ENGLAND,NORWICH CITY COUNCIL,2030215750,"107,849"
Department for Work and Pensions,Housing Benefits,12-Jul-13,HOUSING BENEFIT ADMINISTRATION,HB ENGLAND,TENDRING DISTRICT COUNCIL,2030215821,"107,739"
Department for Work and Pensions,Employment Programmes,12-Jul-13,SERVICE FEE,"WWEG EP SUPPORT CHESHIRE, HALTON AND WARR, MERSEYSIDE",REED IN PARTNERSHIP LTD,2030216560,"107,713"
Department for Work and Pensions,Housing Benefits,12-Jul-13,HOUSING BENEFIT ADMINISTRATION,HB ENGLAND,CENTRAL BEDFORDSHIRE DISTRICT COUNCIL,2030215705,"106,628"
Department for Work and Pensions,Housing Benefits,12-Jul-13,HOUSING BENEFIT ADMINISTRATION,HB ENGLAND,NORTH LINCOLNSHIRE COUNCIL,2030216016,"106,239"
Department for Work and Pensions,Corporate,19-Jul-13,NEW ENTERPRISE ALLOWANCE MENTOR MATCHING,OPS WDC WSD NE DURHAM AND TEES VALLEY DISTRICT OFFICE,NORTH EAST ENTERPRISE AGENCIES LTD,2030293481,"106,195"
Department for Work and Pensions,Housing Benefits,12-Jul-13,HOUSING BENEFIT ADMINISTRATION,HB ENGLAND,BLACKBURN BOROUGH COUNCIL,2030215689,"105,706"
Department for Work and Pensions,Housing Benefits,12-Jul-13,HOUSING BENEFIT ADMINISTRATION,HB SCOTLAND,WEST LOTHIAN COUNCIL,2030215767,"105,457"
Department for Work and Pensions,Corporate,31-Jul-13,FSF - TRAINING PAYMENTS TO PROVIDERS - JSA JOBSEEKERS,OPS WDC WSD NW KENDAL JOBCENTRE PLUS,BTCV,2030403090,"105,262"
Department for Work and Pensions,Employment Programmes,09-Jul-13,WP JSA 25+ SUSTAINMENT OUTCOME PAYMENT,WWEG EP SCOTLAND INGEUS UK,INGEUS UK LTD,2030146448,"105,135"
Department for Work and Pensions,Corporate,03-Jul-13,PUBLICITY ADVERTISING MEDIA,CHG ERSP COMMS,M4C,2030112168,"104,851"
Department for Work and Pensions,Housing Benefits,12-Jul-13,HOUSING BENEFIT ADMINISTRATION,HB WALES,CARMARTHENSHIRE COUNTY COUNCIL,2030215751,"104,603"
Department for Work and Pensions,Housing Benefits,12-Jul-13,HOUSING BENEFIT ADMINISTRATION,HB WALES,NEATH PORT TALBOT COUNTY BOROUGH COUNCIL,2030215838,"104,223"
Department for Work and Pensions,Employment Programmes,30-Jul-13,RESIDENTIAL TRAINING COSTS,WWEG EP DELIVERY WELFARE TO WORK PRODUCT SUPPORT,RNCB ROYAL NATIONAL COLLEGE FOR BLIND,2030376505,"103,872"
Department for Work and Pensions,Housing Benefits,12-Jul-13,HOUSING BENEFIT ADMINISTRATION,HB SCOTLAND,ABERDEEN CITY COUNCIL,2030215699,"103,466"
Department for Work and Pensions,Corporate,26-Jul-13,NEW ENTERPRISE ALLOWANCE MENTOR MATCHING,OPS WDC WSD NE WEST YORKSHIRE DISTRICT OFFICE,WYEA LTD,2030367244,"103,260"
Department for Work and Pensions,Employment Programmes,12-Jul-13,SERVICE FEE,"WWEG EP SUPPORT GRTR MANCHESTER CNTRL, GRTR MANCHESTER E AND W",STANDGUIDE LTD,2030217292,"103,229"
Department for Work and Pensions,Housing Benefits,12-Jul-13,HOUSING BENEFIT ADMINISTRATION,HB ENGLAND,READING BOROUGH COUNCIL,2030215815,"103,013"
Department for Work and Pensions,Corporate,18-Jul-13,NON-TREDDS IS IT APPS DEV MANDAY,CHG PIP DELIVERY,CAPGEMINI UK PLC,2030287597,"102,462"
Department for Work and Pensions,Housing Benefits,12-Jul-13,HOUSING BENEFIT ADMINISTRATION,HB ENGLAND,ISLE OF WIGHT COUNTY COUNCIL,2030215732,"101,467"
Department for Work and Pensions,Corporate,31-Jul-13,AR PRIME RECOVERIES,BALANCE SHEET,TELEREAL TRILLIUM,2030386811,"101,321"
Department for Work and Pensions,Corporate,25-Jul-13,NEW ENTERPRISE ALLOWANCE SERVICE FEE TO PROVIDERS (DEL P),OPS WDC WSD DEL PROG REPORTING,GREATER LONDON ENTERPRISE,2030363264,"101,188"
Department for Work and Pensions,Corporate,09-Jul-13,NON-TREDDS APPS DEV FIXED PRICE CONTRACTS,CHG CP SERVICE ORIENTATED ARCHITECTURE,IBM UNITED KINGDOM LTD,2030146508,"100,620"
Department for Work and Pensions,Corporate,05-Jul-13,COURIER COSTS,F&C OPS FIN DM CONTRACTS,DX NETWORK SERVICES LTD,2030139144,"100,420"
Department for Work and Pensions,Employment Programmes,12-Jul-13,SERVICE FEE,"WWEG EP SUPPORT KENT, SURREY AND SUSSEX",PINNACLE PEOPLE,2030216921,"100,021"
Department for Work and Pensions,Housing Benefits,12-Jul-13,HOUSING BENEFIT ADMINISTRATION,HB WALES,NEWPORT CITY COUNCIL,2030215698,"99,944"
Department for Work and Pensions,Housing Benefits,12-Jul-13,HOUSING BENEFIT ADMINISTRATION,HB SCOTLAND,DUMFRIES & GALLOWAY COUNCIL,2030215886,"99,883"
Department for Work and Pensions,Corporate,22-Jul-13,TREDDS IS IT CONSULTANCY (HOSTING) NON ADVICE,CHG DELIVERING THE IRIS ORGANISATION,HP ENTERPRISE SERVICES UK LTD,2030297898,"99,831"
Department for Work and Pensions,Housing Benefits,12-Jul-13,HOUSING BENEFIT ADMINISTRATION,HB ENGLAND,SOLIHULL METROPOLITAN BOROUGH COUNCIL,2030215789,"99,127"
Department for Work and Pensions,Corporate,02-Jul-13,CURRENT GRANTS TO LOCAL GOVERNMENT,CHG RIGHT TO CONTROL DELP,LONDON BOROUGH OF BARNET,1005860,"99,045"
Department for Work and Pensions,Housing Benefits,12-Jul-13,HOUSING BENEFIT ADMINISTRATION,HB ENGLAND,SLOUGH BOROUGH COUNCIL,2030215748,"98,766"
Department for Work and Pensions,Corporate,02-Jul-13,CURRENT GRANTS TO LOCAL GOVERNMENT,CHG RIGHT TO CONTROL DELP,LEICESTER CITY COUNCIL,1005868,"97,236"
Department for Work and Pensions,Housing Benefits,12-Jul-13,HOUSING BENEFIT ADMINISTRATION,HB ENGLAND,HALTON BOROUGH COUNCIL,2030216058,"97,185"
Department for Work and Pensions,Corporate,03-Jul-13,CONSULTANTS VAT RECOVERABLE,CHG DELIVERING THE IRIS ORGANISATION,CAPGEMINI UK PLC,2030119900,"97,115"
Department for Work and Pensions,Housing Benefits,12-Jul-13,HOUSING BENEFIT ADMINISTRATION,HB ENGLAND,BEDFORD BOROUGH COUNCIL,2030215791,"95,871"
Department for Work and Pensions,Housing Benefits,12-Jul-13,HOUSING BENEFIT ADMINISTRATION,HB ENGLAND,EAST LINDSEY DISTRICT COUNCIL,2030215835,"95,212"
Department for Work and Pensions,Employment Programmes,12-Jul-13,SERVICE FEE,"WWEG EP SUPPORT N AND E YORKSHIRE AND HUMBER, TEES VALLEY",PERTEMPS,2030217517,"94,737"
Department for Work and Pensions,Corporate,02-Jul-13,CURRENT GRANTS TO LOCAL GOVERNMENT,CHG RIGHT TO CONTROL DELP,LONDON BOROUGH OF NEWHAM,1005857,"94,338"
Department for Work and Pensions,Corporate,12-Jul-13,TREDDS APPS DEV MANDAYS,CHG TRANSFORMING LABOUR MARKET SERVICES,HP ENTERPRISE SERVICES UK LTD,2030216715,"93,945"
Department for Work and Pensions,Housing Benefits,12-Jul-13,HOUSING BENEFIT ADMINISTRATION,HB SCOTLAND,FALKIRK DISTRICT COUNCIL,2030215987,"93,599"
Department for Work and Pensions,Corporate,19-Jul-13,FSF - SUPPORT CONTRACT MODULES FOR JSA JOBSEEKERS,OPS WDC WSD NW MERSEYSIDE BUSINESS DEVELOPMENT TEAM,REED IN PARTNERSHIP LTD,2030293934,"93,442"
Department for Work and Pensions,Corporate,26-Jul-13,CONTRACTORS & STAFF SUBSTITUTIONS,CHG IT TRANSFORMATION PROG,CAPITA RESOURCING LTD,2030366745,"93,206"
Department for Work and Pensions,Employment Programmes,12-Jul-13,SERVICE FEE,"WWEG EP SUPPORT HAMPSHIRE AND ISLE OF WIGHT, BERKS, BUCKS AND OXON",A4E LTD,2030217071,"93,043"
Department for Work and Pensions,Child Maintenance and Enforcement Commission,26-Jul-13,CONSULTANTS VAT RECOVERABLE,NEW SCHEME DEVELOPMENT AND CLIENT SIDE SUPPORT,ATKINS LTD,1000184137,"92,543"
Department for Work and Pensions,Housing Benefits,12-Jul-13,HOUSING BENEFIT ADMINISTRATION,HB SCOTLAND,ABERDEENSHIRE COUNCIL,2030215769,"92,501"
Department for Work and Pensions,Corporate,23-Jul-13,NON-TREDDS IS IT APPS DEV MANDAY,CIO CIS INFRASTRUCTURE,IBM UNITED KINGDOM LTD,2030303655,"92,388"
Department for Work and Pensions,Housing Benefits,12-Jul-13,HOUSING BENEFIT ADMINISTRATION,HB WALES,BRIDGEND COUNTY BOROUGH COUNCIL,2030215897,"92,020"
Department for Work and Pensions,Housing Benefits,12-Jul-13,HOUSING BENEFIT ADMINISTRATION,HB ENGLAND,THURROCK BOROUGH COUNCIL,2030215870,"91,695"
Department for Work and Pensions,Corporate,30-Jul-13,NEW ENTERPRISE ALLOWANCE MENTOR MATCHING,OPS WDC WSD SE GLOUCESTERSHIRE AND WEST OF ENGLAND DO,GLOUCESTERSHIRE ENTERPRISE LTD,2030374077,"91,170"
Department for Work and Pensions,Employment Programmes,12-Jul-13,SERVICE FEE,WWEG EP SUPPORT WEST YORKSHIRE,A4E LTD,2030217071,"90,807"
Department for Work and Pensions,Corporate,16-Jul-13,DESKTOP FIXED PRICE CONTRACTS,CIO ITLR DESKTOP,HP ENTERPRISE SERVICES UK LTD,2030222380,"90,745"
Department for Work and Pensions,Housing Benefits,12-Jul-13,HOUSING BENEFIT ADMINISTRATION,HB ENGLAND,PRESTON BOROUGH COUNCIL,2030215837,"90,569"
Department for Work and Pensions,Corporate,25-Jul-13,CURRENT GRANTS TO LOCAL GOVERNMENT,STR CHILD POVERTY UNIT,GREATER LONDON AUTHORITY,1005919,"90,000"
Department for Work and Pensions,Employment Programmes,12-Jul-13,SERVICE FEE,"WWEG EP SUPPORT NORTHUMBRIA, SOUTH TYNE AND WEAR VALLEY",ESG HOLDINGS LTD,2030216920,"89,927"
Department for Work and Pensions,European Social Fund,29-Jul-13,MA ESF(D) PROGRAMME EXPENDITURE EC PREFUNDED DWP,WWEG EUROPEAN SOCIAL FUND PROGRAMME 2007-2013,SOUTH WEST DWP,5000001421,"89,804"
Department for Work and Pensions,Employment Programmes,12-Jul-13,WP JSA 25+ SUSTAINMENT OUTCOME PAYMENT,WWEG EP EAST OF ENGLAND SEETEC,SEETEC BUSINESS TECHNOLOGY CENTRE LTD,2030218233,"89,655"
Department for Work and Pensions,Housing Benefits,12-Jul-13,HOUSING BENEFIT ADMINISTRATION,HB ENGLAND,HEREFORDSHIRE COUNCIL,2030215948,"89,630"
Department for Work and Pensions,Corporate,08-Jul-13,NON-TREDDS IS IT SERVICES (AMS),CIO ITPD AM PROTOTYPE & STANDALONE SYS,CAPGEMINI UK PLC,2030143480,"89,542"
Department for Work and Pensions,Corporate,31-Jul-13,PRIME FACILITY PRICE,F&C CD BRADFORD AMBLER MILL,TELEREAL TRILLIUM,2030386813,"88,988"
Department for Work and Pensions,Corporate,12-Jul-13,TREDDS APPS DEV MANDAYS,OPS OPE IT REL - JSAPS,HP ENTERPRISE SERVICES UK LTD,2030216715,"88,986"
Department for Work and Pensions,Housing Benefits,12-Jul-13,HOUSING BENEFIT ADMINISTRATION,HB ENGLAND,HARTLEPOOL BOROUGH COUNCIL,2030215917,"88,726"
Department for Work and Pensions,Employment Programmes,17-Jul-13,RESIDENTIAL TRAINING COSTS,WWEG EP DELIVERY WELFARE TO WORK PRODUCT SUPPORT,QUEEN ALEXANDRA COLLEGE,2030247287,"88,574"
Department for Work and Pensions,Housing Benefits,12-Jul-13,HOUSING BENEFIT ADMINISTRATION,HB SCOTLAND,WEST DUNBARTONSHIRE COUNCIL,2030215703,"88,083"
Department for Work and Pensions,Corporate,19-Jul-13,PRINTING/BINDING,F&C CD CORPORATE CHARGES,XEROX UK LTD 3W,2030294781,"87,992"
Department for Work and Pensions,Housing Benefits,12-Jul-13,HOUSING BENEFIT ADMINISTRATION,HB ENGLAND,HASTINGS BOROUGH COUNCIL,2030215899,"87,896"
Department for Work and Pensions,Corporate,31-Jul-13,PRIME FACILITY PRICE,F&C CD DEARNE VALLEY DISCOVERY HOUSE,TELEREAL TRILLIUM,2030386813,"87,698"
Department for Work and Pensions,Corporate,31-Jul-13,PRIME FACILITY PRICE,F&C CD MANCHESTER ANCHORAGE HOUSE,TELEREAL TRILLIUM,2030386813,"87,225"
Department for Work and Pensions,Corporate,26-Jul-13,CONTRACTORS & STAFF SUBSTITUTIONS,CHG UC PROJECT LEDGER CC,CAPITA RESOURCING LTD,2030366745,"87,144"
Department for Work and Pensions,Housing Benefits,12-Jul-13,HOUSING BENEFIT ADMINISTRATION,HB SCOTLAND,EAST AYRSHIRE COUNCIL FINANCE DEPARTMENT,2030215982,"87,106"
Department for Work and Pensions,Housing Benefits,12-Jul-13,HOUSING BENEFIT ADMINISTRATION,HB ENGLAND,COLCHESTER BOROUGH COUNCIL,2030215813,"87,081"
Department for Work and Pensions,Housing Benefits,12-Jul-13,HOUSING BENEFIT ADMINISTRATION,HB ENGLAND,ARUN DISTRICT COUNCIL,2030215889,"86,833"
Department for Work and Pensions,Corporate,02-Jul-13,NON-TREDDS IS IT APPS DEV MANDAY,CHG DEV OF BUSINESS CRITICAL SMALL SYSTEMS,CAPGEMINI UK PLC,2030073535,"86,704"
Department for Work and Pensions,Corporate,09-Jul-13,FSF - PARTNERSHIP GRANTS - TO HELP JSA CLIENTS INTO WORK,OPS WDC WSD SC ABERDEEN EBURY HOUSE JOBCENTRE PLUS,ABERDEEN CITY COUNCIL,2030148247,"86,500"
Department for Work and Pensions,Employment Programmes,09-Jul-13,WP JSA 25+ SUSTAINMENT OUTCOME PAYMENT,WWEG EP EAST OF ENGLAND INGEUS UK,INGEUS UK LTD,2030146448,"86,430"
Department for Work and Pensions,Housing Benefits,12-Jul-13,HOUSING BENEFIT ADMINISTRATION,HB ENGLAND,BATH & NORTH EAST SOMERSET COUNCIL,2030215794,"86,330"
Department for Work and Pensions,Housing Benefits,12-Jul-13,HOUSING BENEFIT ADMINISTRATION,HB ENGLAND,CITY OF YORK COUNCIL,2030215869,"86,301"
Department for Work and Pensions,Corporate,24-Jul-13,CONTRACTED OUT OFFICE SERVICES,OPS OPE OIS CENTRAL CONTRACTS,XEROX UK LTD 3W,2030310701,"86,146"
Department for Work and Pensions,Housing Benefits,12-Jul-13,HOUSING BENEFIT ADMINISTRATION,HB ENGLAND,IPSWICH BOROUGH COUNCIL,2030215806,"86,020"
Department for Work and Pensions,Employment Programmes,30-Jul-13,RESIDENTIAL TRAINING COSTS,WWEG EP DELIVERY WELFARE TO WORK PRODUCT SUPPORT,PORTLAND COLLEGE,2030373816,"85,538"
Department for Work and Pensions,Corporate,04-Jul-13,SOFTWARE LICENCES,CHG SCANNING & DIGITAL STORAGE - AGILITY,SPECIALIST COMPUTER CENTRES PLC,2030134182,"85,068"
Department for Work and Pensions,Corporate,03-Jul-13,SOFTWARE LICENCES,CHG CP DWP ENQUIRY SERVICE,COMPUTACENTER UK LTD,2030110331,"84,802"
Department for Work and Pensions,Employment Programmes,01-Jul-13,WP JSA 25+ SUSTAINMENT OUTCOME PAYMENT,WWEG EP SOUTH EAST SURR SUSSX AND KENT G4S,G4S REGIONAL MANAGEMENT UK & I LTD,2030066688,"84,710"
Department for Work and Pensions,Employment Programmes,12-Jul-13,SERVICE FEE,"WWEG EP SUPPORT DERBYSHIRE, SOUTH YORKSHIRE",A4E LTD,2030217071,"84,600"
Department for Work and Pensions,Housing Benefits,12-Jul-13,HOUSING BENEFIT ADMINISTRATION,HB ENGLAND,SCARBOROUGH BOROUGH COUNCIL,2030216017,"84,345"
Department for Work and Pensions,Corporate,31-Jul-13,PRIME FACILITY PRICE,F&C CD SHEFFIELD ROCKINGHAM HOUSE,TELEREAL TRILLIUM,2030386813,"84,315"
Department for Work and Pensions,Corporate,15-Jul-13,FSF - SUPPORT CONTRACT MODULES FOR JSA JOBSEEKERS,OPS WDC WSD CE EMPLOYER AND PARTNERSHIPS STAFFS & SHROPS,JHP GROUP LTD,2030220782,"84,304"
Department for Work and Pensions,Corporate,02-Jul-13,COURIER COSTS,F&C CD COURIER,TNT UK LTD,2030068639,"83,992"
Department for Work and Pensions,Corporate,09-Jul-13,SOFTWARE LICENCES,CIO ITLR IGS,SPECIALIST COMPUTER CENTRES PLC,2030149112,"83,936"
Department for Work and Pensions,Housing Benefits,12-Jul-13,HOUSING BENEFIT ADMINISTRATION,HB ENGLAND,SOUTH SOMERSET DISTRICT COUNCIL,2030215854,"83,472"
Department for Work and Pensions,Housing Benefits,12-Jul-13,HOUSING BENEFIT ADMINISTRATION,HB ENGLAND,KINGS LYNN & WEST NORFOLK BOROUGH COUNCIL,2030215980,"83,464"
Department for Work and Pensions,Corporate,23-Jul-13,NEW ENTERPRISE ALLOWANCE MENTOR MATCHING,OPS WDC WSD NW GTR MANCHESTER CENTRAL AND CHESHIRE DO,BLUE ORCHID,2030300237,"83,341"
Department for Work and Pensions,Corporate,16-Jul-13,MOTABILITY ADMINISTRATION GRANT,STR MOTABILITY,MOTABILITY,1005893,"83,330"
Department for Work and Pensions,Housing Benefits,12-Jul-13,HOUSING BENEFIT ADMINISTRATION,HB ENGLAND,SWALE BOROUGH COUNCIL,2030215709,"82,962"
Department for Work and Pensions,Employment Programmes,26-Jul-13,WP JSA 25+ SUSTAINMENT OUTCOME PAYMENT,WWEG EP SCOTLAND INGEUS UK,INGEUS UK LTD,2030367031,"82,130"
Department for Work and Pensions,Corporate,31-Jul-13,FSF - SUPPORT CONTRACT MODULES FOR JSA JOBSEEKERS,OPS WDC WSD LN WEST LONDON DISTRICT OFFICE,A4E LTD,2030422582,"81,797"
Department for Work and Pensions,Employment Programmes,12-Jul-13,SERVICE FEE,WWEG EP SUPPORT BIRMINGHAM AND SOLIHULL,INGEUS UK LTD,2030218148,"81,483"
Department for Work and Pensions,Housing Benefits,12-Jul-13,HOUSING BENEFIT ADMINISTRATION,HB ENGLAND,LONDON BOROUGH OF RICHMOND UPON THAMES,2030215763,"81,441"
Department for Work and Pensions,Employment Programmes,12-Jul-13,SERVICE FEE,"WWEG EP SUPPORT COVENTRY AND WARWICKSHIRE, MARCHES, STAFFORDSHIRE",JHP GROUP LTD,2030217845,"81,209"
Department for Work and Pensions,Housing Benefits,12-Jul-13,HOUSING BENEFIT ADMINISTRATION,HB ENGLAND,ROYAL BOROUGH OF KINGSTON UPON THAMES,2030215764,"80,833"
Department for Work and Pensions,Corporate,02-Jul-13,CURRENT GRANTS TO LOCAL GOVERNMENT,CHG RIGHT TO CONTROL DELP,MANCHESTER CITY COUNCIL,1005865,"80,262"
Department for Work and Pensions,Housing Benefits,12-Jul-13,HOUSING BENEFIT ADMINISTRATION,HB ENGLAND,GREAT YARMOUTH COUNCIL,2030215999,"80,056"
Department for Work and Pensions,Employment Programmes,09-Jul-13,WP JSA 25+ SUSTAINMENT OUTCOME PAYMENT,WWEG EP SOUTH EAST SURR SUSSX AND KENT G4S,G4S REGIONAL MANAGEMENT UK & I LTD,2030151675,"79,550"
Department for Work and Pensions,Corporate,09-Jul-13,NON-TREDDS IS IT SERVICES (HOSTING),OPS NET DIG BUSINESS LIVE RUNNING,VALTECH LTD,2030150792,"79,420"
Department for Work and Pensions,Housing Benefits,12-Jul-13,HOUSING BENEFIT ADMINISTRATION,HB ENGLAND,GLOUCESTER CITY COUNCIL,2030215704,"79,390"
Department for Work and Pensions,Corporate,26-Jul-13,PROFESSIONAL ADVICE & OPINION VAT RECOVERABLE,PSG INFO SERVICES,ORC INTERNATIONAL LTD,2030366601,"79,176"
Department for Work and Pensions,European Social Fund,29-Jul-13,MA ESF(D) PROGRAMME EXPENDITURE EC PREFUNDED THIRD PARTIES,WWEG EUROPEAN SOCIAL FUND PROGRAMME 2007-2013,UNIVERSITY COLLEGE FALMOUTH,5000001424,"79,123"
Department for Work and Pensions,Corporate,18-Jul-13,FSF - TRAINING PAYMENTS TO PROVIDERS - JSA JOBSEEKERS,OPS WDC WSD CE DERBYSHIRE DISTRICT OFFICE,TBG LEARNING LTD,2030289905,"78,875"
Department for Work and Pensions,Housing Benefits,12-Jul-13,HOUSING BENEFIT ADMINISTRATION,HB ENGLAND,OXFORD CITY COUNCIL,2030215974,"78,712"
Department for Work and Pensions,Employment Programmes,12-Jul-13,WP JSA 25+ SUSTAINMENT OUTCOME PAYMENT,WWEG EP SCOTLAND INGEUS UK,INGEUS UK LTD,2030218148,"78,690"
Department for Work and Pensions,Housing Benefits,12-Jul-13,HOUSING BENEFIT ADMINISTRATION,HB ENGLAND,BURNLEY BOROUGH COUNCIL,2030215772,"78,442"
Department for Work and Pensions,Corporate,31-Jul-13,PRIME FACILITY PRICE,F&C CD NUNEATON DISCOVERY HOUSE,TELEREAL TRILLIUM,2030386813,"78,375"
Department for Work and Pensions,Housing Benefits,12-Jul-13,HOUSING BENEFIT ADMINISTRATION,HB ENGLAND,BRAINTREE DISTRICT COUNCIL,2030215919,"77,279"
Department for Work and Pensions,Corporate,15-Jul-13,PRIME VARIABLE CHARGE,OPS OPE ESTATES RECESSION,TELEREAL TRILLIUM,2030221067,"77,097"
Department for Work and Pensions,Corporate,16-Jul-13,NON-TREDDS IS IT APPS DEV MANDAY,CHG UC PATHFINDER DELIVERY MANAGEMENT,IBM UNITED KINGDOM LTD,2030221823,"77,045"
Department for Work and Pensions,Housing Benefits,12-Jul-13,HOUSING BENEFIT ADMINISTRATION,HB ENGLAND,LANCASTER CITY COUNCIL,2030215940,"77,033"
Department for Work and Pensions,Employment Programmes,09-Jul-13,WP JSA 25+ SUSTAINMENT OUTCOME PAYMENT,WWEG EP NORTH WEST GM CHES AND WARR G4S,G4S REGIONAL MANAGEMENT UK & I LTD,2030151675,"76,970"
Department for Work and Pensions,Housing Benefits,12-Jul-13,HOUSING BENEFIT ADMINISTRATION,HB WALES,FLINTSHIRE COUNTY COUNCIL,2030215887,"76,714"
Department for Work and Pensions,Housing Benefits,12-Jul-13,HOUSING BENEFIT ADMINISTRATION,HB ENGLAND,WAVENEY DISTRICT COUNCIL,2030216057,"76,617"
Department for Work and Pensions,Employment Programmes,26-Jul-13,WP JSA 25+ SUSTAINMENT OUTCOME PAYMENT,WWEG EP EAST OF ENGLAND INGEUS UK,INGEUS UK LTD,2030367031,"76,540"
Department for Work and Pensions,Employment Programmes,01-Jul-13,WP JSA 25+ SUSTAINMENT OUTCOME PAYMENT,WWEG EP NORTH WEST GM CHES AND WARR G4S,G4S REGIONAL MANAGEMENT UK & I LTD,2030066688,"76,540"
Department for Work and Pensions,Housing Benefits,12-Jul-13,HOUSING BENEFIT ADMINISTRATION,HB WALES,WREXHAM COUNTY BOROUGH COUNCIL,2030215773,"75,790"
Department for Work and Pensions,Child Maintenance and Enforcement Commission,09-Jul-13,PRIME BILLABLE EXTRAS PRIME CONTRACT MANAGEMENT (PCM),SITES AND WORKFORCE PLANNING,TELEREAL TRILLIUM,1000182346,"75,513"
Department for Work and Pensions,Housing Benefits,12-Jul-13,HOUSING BENEFIT ADMINISTRATION,HB ENGLAND,POOLE BOROUGH COUNCIL,2030215875,"75,491"
Department for Work and Pensions,Child Maintenance and Enforcement Commission,31-Jul-13,NON-TREDDS IS IT SERVICES (DESKTOP),LEGACY SYSTEMS IT RUNNING COSTS - IOL,DWP,2000986,"75,185"
Department for Work and Pensions,Housing Benefits,12-Jul-13,HOUSING BENEFIT ADMINISTRATION,HB ENGLAND,BASINGSTOKE DISTRICT COUNCIL,2030215799,"74,811"
Department for Work and Pensions,Housing Benefits,12-Jul-13,HOUSING BENEFIT ADMINISTRATION,HB ENGLAND,WYCOMBE DISTRICT COUNCIL,2030216052,"74,705"
Department for Work and Pensions,Child Maintenance and Enforcement Commission,11-Jul-13,PRIME UTILITIES,PRIME,DWP,2000972,"74,704"
Department for Work and Pensions,Child Maintenance and Enforcement Commission,26-Jul-13,CONSULTANTS VAT RECOVERABLE,NEW SCHEME DEVELOPMENT AND CLIENT SIDE SUPPORT,ATKINS LTD,1000184110,"74,685"
Department for Work and Pensions,Employment Programmes,12-Jul-13,WP JSA 25+ SUSTAINMENT OUTCOME PAYMENT,WWEG EP NORTH WEST GM CHES AND WARR SEETEC,SEETEC BUSINESS TECHNOLOGY CENTRE LTD,2030218233,"74,605"
Department for Work and Pensions,Employment Programmes,24-Jul-13,INNOVATION FUND,WWEG EP NATIONAL,ENERGISE INNOVATION LTD,2030350177,"74,430"
Department for Work and Pensions,Employment Programmes,19-Jul-13,WP JSA 25+ SUSTAINMENT OUTCOME PAYMENT,WWEG EP EAST OF ENGLAND INGEUS UK,INGEUS UK LTD,2030292881,"74,390"
Department for Work and Pensions,Housing Benefits,12-Jul-13,HOUSING BENEFIT ADMINISTRATION,HB ENGLAND,EASTBOURNE BOROUGH COUNCIL,2030215849,"74,173"
Department for Work and Pensions,Housing Benefits,12-Jul-13,HOUSING BENEFIT ADMINISTRATION,HB ENGLAND,HUNTINGDON DISTRICT COUNCIL,2030216050,"73,994"
Department for Work and Pensions,Corporate,17-Jul-13,FSF - PARTNERSHIP GRANTS - TO HELP JSA CLIENTS INTO WORK,OPS WDC WSD LN NORTH LONDON DISTRICT OFFICE,LIVABILITY,2030230409,"73,875"
Department for Work and Pensions,Corporate,10-Jul-13,STAFF RELATED COSTS VAT RECOVERABLE,HR WELLBEING AND PRODUCTIVITY,RIGHT CORECARE,2030210976,"73,791"
Department for Work and Pensions,Corporate,04-Jul-13,PIP PAPER BASED ASSESSMENTS,OPS CCS PIP LOT 1,ATOS IT SERVICES UK LTD,2030134808,"73,570"
Department for Work and Pensions,Employment Programmes,08-Jul-13,WP JSA 25+ SUSTAINMENT OUTCOME PAYMENT,WWEG EP SCOTLAND WORKING LINKS,WORKING LINKS,2030145750,"73,530"
Department for Work and Pensions,Corporate,05-Jul-13,NEW ENTERPRISE ALLOWANCE MENTOR MATCHING,OPS WDC WSD NW GREATER MANCHESTER E AND W DO,BLUE ORCHID SUPPORT SERVICES,2030138257,"73,313"
Department for Work and Pensions,Corporate,24-Jul-13,NEW ENTERPRISE ALLOWANCE MENTOR MATCHING,OPS WDC WSD NW GREATER MANCHESTER E AND W DO,BLUE ORCHID,2030355745,"73,313"
Department for Work and Pensions,Corporate,09-Jul-13,NETWORK SERVICES,CIO NISSA OGD,BT GLOBAL SERVICES,2030149717,"72,987"
Department for Work and Pensions,Employment Programmes,22-Jul-13,RESIDENTIAL TRAINING COSTS,WWEG EP DELIVERY WELFARE TO WORK PRODUCT SUPPORT,DONCASTER DEAF TRUST,2030297735,"72,745"
Department for Work and Pensions,Housing Benefits,12-Jul-13,HOUSING BENEFIT ADMINISTRATION,HB WALES,CONWY COUNTY BOROUGH  COUNCIL,2030216042,"72,534"
Department for Work and Pensions,Housing Benefits,12-Jul-13,HOUSING BENEFIT ADMINISTRATION,HB SCOTLAND,SOUTH AYRSHIRE COUNCIL,2030215884,"72,476"
Department for Work and Pensions,Housing Benefits,12-Jul-13,HOUSING BENEFIT ADMINISTRATION,HB ENGLAND,DARLINGTON BOROUGH COUNCIL,2030215831,"72,383"
Department for Work and Pensions,Housing Benefits,12-Jul-13,HOUSING BENEFIT ADMINISTRATION,HB SCOTLAND,PERTH & KINROSS COUNCIL,2030216015,"72,359"
Department for Work and Pensions,Housing Benefits,12-Jul-13,HOUSING BENEFIT ADMINISTRATION,HB ENGLAND,NUNEATON BOROUGH COUNCIL,2030215716,"72,043"
Department for Work and Pensions,Corporate,18-Jul-13,NEW ENTERPRISE ALLOWANCE MENTOR MATCHING,OPS WDC WSD LN SOUTH LONDON DISTRICT OFFICE,IXION HOLDINGS LTD,2030291901,"71,803"
Department for Work and Pensions,Employment Programmes,19-Jul-13,WP JSA 25+ SUSTAINMENT OUTCOME PAYMENT,WWEG EP SCOTLAND INGEUS UK,INGEUS UK LTD,2030292881,"71,595"
Department for Work and Pensions,Housing Benefits,12-Jul-13,HOUSING BENEFIT ADMINISTRATION,HB SCOTLAND,INVERCLYDE DISTRICT COUNCIL,2030215983,"71,384"
Department for Work and Pensions,Housing Benefits,12-Jul-13,HOUSING BENEFIT ADMINISTRATION,HB ENGLAND,AYLESBURY VALE DISTRICT COUNCIL,2030216034,"71,298"
Department for Work and Pensions,Housing Benefits,12-Jul-13,HOUSING BENEFIT ADMINISTRATION,HB ENGLAND,ASHFIELD DISTRICT COUNCIL,2030215787,"71,292"
Department for Work and Pensions,Corporate,18-Jul-13,FSF - SUPPORT CONTRACT MODULES FOR JSA JOBSEEKERS,OPS WDC WSD LN NORTH LONDON DISTRICT OFFICE,A4E LTD,2030290331,"71,284"
Department for Work and Pensions,Employment Programmes,08-Jul-13,ACCESS TO WORK - PAYMENT FOR SUPPORT WORKERS,WWEG EP LONDON REGION,SOUTH WEST LONDON & ST GEORGES NHS TRUST,2030143485,"71,180"
Department for Work and Pensions,Corporate,15-Jul-13,TREDDS APPS DEV MANDAYS,CHG UC PROJECT LEDGER CC,HP ENTERPRISE SERVICES UK LTD,2030220887,"71,158"
Department for Work and Pensions,Employment Programmes,12-Jul-13,SERVICE FEE,"WWEG EP SUPPORT ADGI,EDIN,LOTH AND BORDRS,LNRK AND EAST DUN",JHP GROUP LTD,2030217845,"71,121"
Department for Work and Pensions,Housing Benefits,12-Jul-13,HOUSING BENEFIT ADMINISTRATION,HB ENGLAND,SHEPWAY DISTRICT COUNCIL,2030215937,"70,903"
Department for Work and Pensions,Housing Benefits,12-Jul-13,HOUSING BENEFIT ADMINISTRATION,HB ENGLAND,NEW FOREST DISTRICT COUNCIL,2030215778,"70,782"
Department for Work and Pensions,Corporate,31-Jul-13,PRIME BUSINESS RATES,F&C CD PEEL PARK,TELEREAL TRILLIUM,2030435834,"70,645"
Department for Work and Pensions,Housing Benefits,12-Jul-13,HOUSING BENEFIT ADMINISTRATION,HB WALES,GWYNEDD COUNCIL,2030215744,"70,498"
Department for Work and Pensions,Housing Benefits,12-Jul-13,HOUSING BENEFIT ADMINISTRATION,HB ENGLAND,CRAWLEY BOROUGH COUNCIL,2030215694,"70,408"
Department for Work and Pensions,Housing Benefits,12-Jul-13,HOUSING BENEFIT ADMINISTRATION,HB ENGLAND,CANTERBURY CITY COUNCIL,2030215714,"70,324"
Department for Work and Pensions,Corporate,12-Jul-13,TREDDS APPS DEV MANDAYS,CHG APPEALS REFORM,HP ENTERPRISE SERVICES UK LTD,2030216715,"70,187"
Department for Work and Pensions,Housing Benefits,12-Jul-13,HOUSING BENEFIT ADMINISTRATION,HB ENGLAND,MANSFIELD DISTRICT COUNCIL,2030215914,"69,977"
Department for Work and Pensions,Employment Programmes,12-Jul-13,SERVICE FEE,"WWEG EP SUPP H ISLS,C COAST AND GRAM,F VALL,FIFE AND TSID",JHP GROUP LTD,2030217845,"69,918"
Department for Work and Pensions,Housing Benefits,12-Jul-13,HOUSING BENEFIT ADMINISTRATION,HB ENGLAND,CHESTERFIELD BOROUGH COUNCIL,2030215915,"69,901"
Department for Work and Pensions,Corporate,16-Jul-13,AMS STAT MANDAYS,CIO ITLR AMS,HP ENTERPRISE SERVICES UK LTD,2030222380,"69,894"
Department for Work and Pensions,Housing Benefits,12-Jul-13,HOUSING BENEFIT ADMINISTRATION,HB ENGLAND,CHARNWOOD BOROUGH COUNCIL,2030216043,"69,600"
Department for Work and Pensions,Housing Benefits,12-Jul-13,HOUSING BENEFIT ADMINISTRATION,HB ENGLAND,MAIDSTONE BOROUGH COUNCIL,2030215712,"69,552"
Department for Work and Pensions,Corporate,31-Jul-13,FSF - SUPPORT CONTRACT MODULES FOR JSA JOBSEEKERS,OPS WDC WSD NW BLACKBURN ORCHARD HOUSE JOBCENTRE PLUS,JHP GROUP LTD,2030398119,"69,458"
Department for Work and Pensions,Housing Benefits,12-Jul-13,HOUSING BENEFIT ADMINISTRATION,HB ENGLAND,BRECKLAND DISTRICT COUNCIL,2030216001,"69,432"
Department for Work and Pensions,Corporate,16-Jul-13,STAFF RELATED COSTS,HR EYECARE,ASE CORPORATE EYECARE LTD,2030222667,"69,398"
Department for Work and Pensions,Corporate,15-Jul-13,"FURNITURE, FIXTURES & FITTINGS (NON-PRIME)",CHG APPEALS REFORM,HMCTS HM COURTS & TRIBUNALS SERVICE,2030220275,"69,297"
Department for Work and Pensions,Employment Programmes,30-Jul-13,WP JSA 25+ SUSTAINMENT OUTCOME PAYMENT,WWEG EP SOUTH EAST TV HANTS AND IOW MAXIMUS EMPLOYMENT,MAXIMUS EMPLOYMENT UK LTD,2030374084,"69,015"
Department for Work and Pensions,Housing Benefits,12-Jul-13,HOUSING BENEFIT ADMINISTRATION,HB ENGLAND,CHELMSFORD BOROUGH COUNCIL,2030215824,"68,999"
Department for Work and Pensions,Housing Benefits,12-Jul-13,HOUSING BENEFIT ADMINISTRATION,HB ENGLAND,HAVANT BOROUGH COUNCIL,2030215817,"68,865"
Department for Work and Pensions,Corporate,04-Jul-13,SOC SEC RESEARCH BUDGET,PSG ANALYSIS CAD,NATIONAL INSTITUTE FOR ECONOMIC & SOCIAL RESEARCH,2030135466,"68,800"
Department for Work and Pensions,Housing Benefits,12-Jul-13,HOUSING BENEFIT ADMINISTRATION,HB ENGLAND,DOVER DISTRICT COUNCIL,2030215713,"68,587"
Department for Work and Pensions,Corporate,18-Jul-13,LATE PAYMENT OF BILLS - INTEREST PAID,CORP DEL A ADJUSTMENTS,HM REVENUE & CUSTOMS,2030290821,"68,476"
Department for Work and Pensions,Child Maintenance and Enforcement Commission,16-Jul-13,APPS DEV INDEX ARR,NEW SCHEME SOFTWARE,HP ENTERPRISE SERVICES UK LTD,1000183035,"68,410"
Department for Work and Pensions,Housing Benefits,12-Jul-13,HOUSING BENEFIT ADMINISTRATION,HB ENGLAND,WYRE BOROUGH COUNCIL,2030215942,"68,366"
Department for Work and Pensions,Housing Benefits,12-Jul-13,HOUSING BENEFIT ADMINISTRATION,HB WALES,TORFAEN BOROUGH COUNCIL,2030216027,"68,056"
Department for Work and Pensions,Corporate,18-Jul-13,FSF - SUPPORT CONTRACT MODULES FOR JSA JOBSEEKERS,OPS WDC WSD SE SURREY AND SUSSEX EXTERNAL RELATIONS TEAM,PINNACLE PEOPLE,2030286976,"67,677"
Department for Work and Pensions,Housing Benefits,12-Jul-13,HOUSING BENEFIT ADMINISTRATION,HB ENGLAND,EXETER CITY COUNCIL,2030215906,"67,606"
Department for Work and Pensions,Employment Programmes,12-Jul-13,WP JSA 25+ SUSTAINMENT OUTCOME PAYMENT,WWEG EP EAST OF ENGLAND INGEUS UK,INGEUS UK LTD,2030218148,"67,510"
Department for Work and Pensions,Housing Benefits,12-Jul-13,HOUSING BENEFIT ADMINISTRATION,HB SCOTLAND,SCOTTISH BORDERS COUNCIL,2030215938,"67,387"
Department for Work and Pensions,Corporate,16-Jul-13,PRIME BILLABLE EXTRAS PRIME CONTRACT MANAGEMENT (PCM),CHG ESTATES RATIONALISATION SHEFFIELD,TELEREAL TRILLIUM,2030224789,"67,293"
Department for Work and Pensions,Housing Benefits,12-Jul-13,HOUSING BENEFIT ADMINISTRATION,HB ENGLAND,SEDGEMOOR DISTRICT COUNCIL,2030215893,"67,203"
Department for Work and Pensions,Housing Benefits,12-Jul-13,HOUSING BENEFIT ADMINISTRATION,HB ENGLAND,LINCOLN CITY COUNCIL,2030216021,"67,100"
Department for Work and Pensions,Corporate,05-Jul-13,CONTRACTORS & STAFF SUBSTITUTIONS,CHG UC PROJECT LEDGER CC,CAPITA RESOURCING LTD,2030140266,"67,029"
Department for Work and Pensions,Corporate,09-Jul-13,FSF - SUPPORT CONTRACT MODULES FOR JSA JOBSEEKERS,OPS WDC WSD NE EMPLOYER AND PARTNERSHIPS,SENCIA LTD,2030147385,"67,029"
Department for Work and Pensions,Employment Programmes,31-Jul-13,WP JSA 25+ SUSTAINMENT OUTCOME PAYMENT,WWEG EP WEST LONDON MAXIMUS EMPLOYMENT UK,MAXIMUS EMPLOYMENT UK LTD,2030398232,"66,865"
Department for Work and Pensions,Housing Benefits,12-Jul-13,HOUSING BENEFIT ADMINISTRATION,HB ENGLAND,DACORUM BOROUGH COUNCIL,2030215892,"66,636"
Department for Work and Pensions,Corporate,02-Jul-13,NEW ENTERPRISE ALLOWANCE MENTOR MATCHING,OPS WDC WSD NW CUMBRIA AND LANCASHIRE DISTRICT OFFICE,CUMBRIA CHAMBER OF COMMERCE,2030069391,"66,621"
Department for Work and Pensions,Corporate,19-Jul-13,NEW ENTERPRISE ALLOWANCE MENTOR MATCHING,OPS WDC WSD NW CUMBRIA AND LANCASHIRE DISTRICT OFFICE,CUMBRIA CHAMBER OF COMMERCE,2030295039,"66,621"
Department for Work and Pensions,Housing Benefits,12-Jul-13,HOUSING BENEFIT ADMINISTRATION,HB ENGLAND,TEIGNBRIDGE DISTRICT COUNCIL,2030215903,"66,455"
Department for Work and Pensions,Corporate,19-Jul-13,FSF - SUPPORT CONTRACT MODULES FOR JSA JOBSEEKERS,OPS WDC WSD LN BEDS AND HERTS DISTRICT OFFICE,SEETEC,2030295280,"66,297"
Department for Work and Pensions,Housing Benefits,12-Jul-13,HOUSING BENEFIT ADMINISTRATION,HB WALES,VALE OF GLAMORGAN COUNCIL,2030215708,"66,283"
Department for Work and Pensions,Housing Benefits,12-Jul-13,HOUSING BENEFIT ADMINISTRATION,HB ENGLAND,PENDLE BOROUGH COUNCIL,2030215898,"66,219"
Department for Work and Pensions,Housing Benefits,12-Jul-13,HOUSING BENEFIT ADMINISTRATION,HB ENGLAND,NEWCASTLE UNDER LYME BOROUGH COUNCIL,2030215830,"65,966"
Department for Work and Pensions,Corporate,23-Jul-13,TREDDS APPS DEV FIXED PRICE CONTRACTS,CHG ELECTRONIC SIGNING,HP ENTERPRISE SERVICES UK LTD,2030301587,"65,840"
Department for Work and Pensions,Corporate,22-Jul-13,NEW ENTERPRISE ALLOWANCE MENTOR MATCHING,OPS WDC WSD LN EAST LONDON DISTRICT OFFICE,NETWORK PROJECTS LTD,2030298766,"65,813"
Department for Work and Pensions,Corporate,22-Jul-13,CONSULTANTS VAT RECOVERABLE,CHG DELIVERING THE IRIS ORGANISATION,CAPGEMINI UK PLC,2030298040,"65,773"
Department for Work and Pensions,Corporate,19-Jul-13,FSF - TRAINING PAYMENTS TO PROVIDERS - JSA JOBSEEKERS,OPS WDC WSD LN SOUTH LONDON DISTRICT OFFICE,PROSPECTS SERVICES LTD,2030292618,"65,649"
Department for Work and Pensions,Housing Benefits,12-Jul-13,HOUSING BENEFIT ADMINISTRATION,HB WALES,PEMBROKESHIRE COUNTY COUNCIL,2030215834,"65,574"
Department for Work and Pensions,Corporate,23-Jul-13,NEW ENTERPRISE ALLOWANCE MENTOR MATCHING,OPS WDC WSD CE BLACK COUNTRY DISTRICT OFFICE,BLACK COUNTRY CHAMBER OF COMMERCE,2030302955,"65,191"
Department for Work and Pensions,Corporate,03-Jul-13,FSF - SUPPORT CONTRACT MODULES FOR JSA JOBSEEKERS,OPS WDC WSD CE MERCIA DISTRICT OFFICE,JHP GROUP LTD,2030108820,"65,144"
Department for Work and Pensions,Corporate,16-Jul-13,NEW ENTERPRISE ALLOWANCE MENTOR MATCHING,OPS WDC WSD SE SURREY AND SUSSEX DISTRICT OFFICE,LETS DO BUSINESS,2030222158,"65,137"
Department for Work and Pensions,Housing Benefits,12-Jul-13,HOUSING BENEFIT ADMINISTRATION,HB ENGLAND,HYNDBURN BOROUGH COUNCIL,2030215687,"65,120"
Department for Work and Pensions,Housing Benefits,12-Jul-13,HOUSING BENEFIT ADMINISTRATION,HB ENGLAND,NORTH HERTFORDSHIRE DISTRICT COUNCIL,2030215747,"65,071"
Department for Work and Pensions,Corporate,11-Jul-13,CONSULTANTS VAT RECOVERABLE,F&C CD SOURCING,KPMG,2030214481,"64,943"
Department for Work and Pensions,Housing Benefits,12-Jul-13,HOUSING BENEFIT ADMINISTRATION,HB ENGLAND,BASSETLAW DISTRICT COUNCIL,2030215911,"64,888"
Department for Work and Pensions,Corporate,23-Jul-13,PRIME BILLABLE EXTRAS PRIME CONTRACT MANAGEMENT (PCM),CHG ESTATES RATIONALISATION LONDON,TELEREAL TRILLIUM,2030301368,"64,883"
Department for Work and Pensions,Child Maintenance and Enforcement Commission,12-Jul-13,TREDDS APPS DEV MANDAYS,FUTURE SCHEME SERVICE MANAGEMENT,HP ENTERPRISE SERVICES UK LTD,1000182865,"64,827"
Department for Work and Pensions,Corporate,19-Jul-13,FSF - TRAINING PAYMENTS TO PROVIDERS - JSA JOBSEEKERS,OPS WDC WSD WL SOUTH EAST WALES DISTRICT OFFICE,REMPLOY LTD,2030294629,"64,825"
Department for Work and Pensions,Corporate,31-Jul-13,PRIME BUSINESS RATES,F&C CD NORCROSS,TELEREAL TRILLIUM,2030435834,"64,561"
Department for Work and Pensions,Housing Benefits,12-Jul-13,HOUSING BENEFIT ADMINISTRATION,HB WALES,POWYS COUNTY COUNCIL,2030215972,"64,558"
Department for Work and Pensions,Corporate,05-Jul-13,NON-TREDDS IS IT APPS DEV MANDAY,CIO GG CORE,ATOS ORIGIN IT SERVICES UK LTD,2030141766,"64,303"
Department for Work and Pensions,Housing Benefits,12-Jul-13,HOUSING BENEFIT ADMINISTRATION,HB ENGLAND,CHERWELL DISTRICT COUNCIL,2030216054,"64,297"
Department for Work and Pensions,Housing Benefits,12-Jul-13,HOUSING BENEFIT ADMINISTRATION,HB ENGLAND,AMBER VALLEY BOROUGH COUNCIL,2030216061,"64,202"
Department for Work and Pensions,Corporate,22-Jul-13,SERVICE FEE,CHG RIGHT TO CONTROL DELP,BURY COUNCIL,1005906,"64,161"
Department for Work and Pensions,Corporate,26-Jul-13,CONTRACTED OUT WINTER FUEL PAYMENTS SERVICES,OPS OPE OIS CENT CONT WFPS,PROMOTIONAL LOGISTICS LTD,2030367311,"64,156"
Department for Work and Pensions,Child Maintenance and Enforcement Commission,19-Jul-13,PRIME VARIABLE CHARGE,PRIME,DWP,2000976,"63,912"
Department for Work and Pensions,Corporate,18-Jul-13,NEW ENTERPRISE ALLOWANCE MENTOR MATCHING,OPS WDC WSD NE SOUTH YORKSHIRE DISTRICT OFFICE,DONCASTER CHAMBER,2030287071,"63,803"
Department for Work and Pensions,Housing Benefits,12-Jul-13,HOUSING BENEFIT ADMINISTRATION,HB ENGLAND,FENLAND DISTRICT COUNCIL,2030215871,"63,403"
Department for Work and Pensions,Corporate,31-Jul-13,SERVICE FEE,CHG RIGHT TO CONTROL DELP,STOCKPORT MBC,1005930,"63,390"
Department for Work and Pensions,Corporate,30-Jul-13,NON-TREDDS IS IT SERVICES (HOSTING),CIO GG SERVICE DELIVERY,ATOS ORIGIN IT SERVICES UK LTD,2030373568,"63,294"
Department for Work and Pensions,Housing Benefits,12-Jul-13,HOUSING BENEFIT ADMINISTRATION,HB ENGLAND,WEST BERKSHIRE COUNCIL,2030215761,"63,221"
Department for Work and Pensions,Employment Programmes,31-Jul-13,WP JSA 25+ SUSTAINMENT OUTCOME PAYMENT,WWEG EP SOUTH EAST TV HANTS AND IOW MAXIMUS EMPLOYMENT,MAXIMUS EMPLOYMENT UK LTD,2030398232,"62,780"
Department for Work and Pensions,Employment Programmes,09-Jul-13,WP JSA 25+ SUSTAINMENT OUTCOME PAYMENT,WWEG EP EAST MIDLANDS INGEUS UK,INGEUS UK LTD,2030146448,"62,565"
Department for Work and Pensions,Employment Programmes,12-Jul-13,SERVICE FEE,WWEG EP SUPPORT BLACK COUNTRY,A4E LTD,2030217071,"62,320"
Department for Work and Pensions,Corporate,08-Jul-13,SOFTWARE LICENCES,CIO ITLR HOSTING,HP ENTERPRISE SERVICES UK LTD,2030143475,"62,304"
Department for Work and Pensions,Child Maintenance and Enforcement Commission,05-Jul-13,TREDDS APPS DEV MANDAYS,NEW SCHEME TESTING,CAPGEMINI UK PLC,1000182129,"62,000"
Department for Work and Pensions,Housing Benefits,12-Jul-13,HOUSING BENEFIT ADMINISTRATION,HB ENGLAND,EREWASH BOROUGH COUNCIL,2030215955,"61,998"
Department for Work and Pensions,Corporate,26-Jul-13,FSF - SUPPORT CONTRACT MODULES FOR JSA JOBSEEKERS,OPS WDC WSD WL SOUTH WEST WALES DISTRICT OFFICE,CAPITAL TRAINING GROUP,2030368921,"61,677"
Department for Work and Pensions,Housing Benefits,12-Jul-13,HOUSING BENEFIT ADMINISTRATION,HB ENGLAND,HARROGATE BOROUGH COUNCIL,2030215950,"61,468"
Department for Work and Pensions,Housing Benefits,12-Jul-13,HOUSING BENEFIT ADMINISTRATION,HB WALES,DENBIGHSHIRE COUNTY COUNCIL,2030215839,"61,339"
Department for Work and Pensions,Corporate,25-Jul-13,MEDICAL SERVICES FIXED COSTS,CHG PIP ORG DESIGN & REASSESSMENT,ATOS IT SERVICES UK LTD,2030364951,"61,332"
Department for Work and Pensions,Housing Benefits,12-Jul-13,HOUSING BENEFIT ADMINISTRATION,HB SCOTLAND,ANGUS COUNCIL,2030215945,"61,044"
Department for Work and Pensions,Housing Benefits,12-Jul-13,HOUSING BENEFIT ADMINISTRATION,HB ENGLAND,SOUTH KESTEVEN DISTRICT COUNCIL,2030216003,"60,930"
Department for Work and Pensions,Employment Programmes,29-Jul-13,INNOVATION FUND,WWEG EP NATIONAL,PREVISTA LTD,2030371260,"60,634"
Department for Work and Pensions,Housing Benefits,12-Jul-13,HOUSING BENEFIT ADMINISTRATION,HB WALES,BLAENAU GWENT COUNTY BOROUGH COUNCIL,2030215749,"60,575"
Department for Work and Pensions,Corporate,09-Jul-13,NON-TREDDS IS IT APPS DEV MANDAY,CHG BENEFIT CAP,CAPGEMINI UK PLC,2030150734,"60,528"
Department for Work and Pensions,Child Maintenance and Enforcement Commission,09-Jul-13,NON-TREDDS IS IT SERVICES (AMS),NEW SCHEME SECURITY AND PROTECTIVE MONITORING,S COM GROUP LTD,1000182319,"60,526"
Department for Work and Pensions,Corporate,18-Jul-13,NON PRIME PROPERTY COSTS,OPS OPE OIS ESTATES BASELINE,COPELAND BOROUGH COUNCIL,2030290422,"60,492"
Department for Work and Pensions,Employment Programmes,10-Jul-13,INNOVATION FUND,WWEG EP NATIONAL,3SC,2030178317,"60,390"
Department for Work and Pensions,Housing Benefits,12-Jul-13,HOUSING BENEFIT ADMINISTRATION,HB ENGLAND,WYRE FOREST DISTRICT COUNCIL,2030215757,"60,257"
Department for Work and Pensions,Housing Benefits,12-Jul-13,HOUSING BENEFIT ADMINISTRATION,HB ENGLAND,GEDLING BOROUGH COUNCIL,2030215909,"60,122"
Department for Work and Pensions,Housing Benefits,12-Jul-13,HOUSING BENEFIT ADMINISTRATION,HB ENGLAND,WORTHING BOROUGH COUNCIL,2030215692,"59,852"
Department for Work and Pensions,Housing Benefits,12-Jul-13,HOUSING BENEFIT ADMINISTRATION,HB ENGLAND,HARLOW DISTRICT COUNCIL,2030215841,"59,409"
Department for Work and Pensions,Housing Benefits,12-Jul-13,HOUSING BENEFIT ADMINISTRATION,HB ENGLAND,EAST STAFFORDSHIRE DISTRICT COUNCIL,2030215852,"59,378"
Department for Work and Pensions,Employment Programmes,26-Jul-13,WP JSA 25+ SUSTAINMENT OUTCOME PAYMENT,WWEG EP EAST LONDON CAREERS DEVELOPMENT GROUP,CAREERS DEVELOPMENT GROUP,2030368556,"59,340"
Department for Work and Pensions,Corporate,04-Jul-13,TREDDS APPS DEV MANDAYS,DWP CHG MOPR SMOTS,CHILD MAINTENANCE ENFORCEMENT COMMISSION,1005869,"59,117"
Department for Work and Pensions,Housing Benefits,12-Jul-13,HOUSING BENEFIT ADMINISTRATION,HB ENGLAND,EAST DEVON DISTRICT COUNCIL,2030215929,"59,107"
Department for Work and Pensions,Housing Benefits,12-Jul-13,HOUSING BENEFIT ADMINISTRATION,HB ENGLAND,ASHFORD BOROUGH COUNCIL,2030215731,"59,047"
Department for Work and Pensions,Corporate,31-Jul-13,PRIME FACILITY PRICE,F&C CD PRESTON HOLBORN HOUSE,TELEREAL TRILLIUM,2030386813,"58,810"
Department for Work and Pensions,Housing Benefits,12-Jul-13,HOUSING BENEFIT ADMINISTRATION,HB ENGLAND,CHELTENHAM BOROUGH COUNCIL,2030215722,"58,687"
Department for Work and Pensions,Corporate,02-Jul-13,CURRENT GRANTS TO LOCAL GOVERNMENT,CHG RIGHT TO CONTROL DELP,BARNSLEY METROPOLITAN BOROUGH COUNCIL,1005863,"58,591"
Department for Work and Pensions,Housing Benefits,12-Jul-13,HOUSING BENEFIT ADMINISTRATION,HB ENGLAND,CANNOCK CHASE DISTRICT COUNCIL,2030215853,"58,533"
Department for Work and Pensions,Housing Benefits,12-Jul-13,HOUSING BENEFIT ADMINISTRATION,HB ENGLAND,WEST LANCASHIRE DISTRICT COUNCIL,2030216046,"58,411"
Department for Work and Pensions,Corporate,17-Jul-13,POSTAGE,F&C CD NEWCASTLE ESTATE,UK MAIL,2030236553,"58,408"
Department for Work and Pensions,Employment Programmes,08-Jul-13,WP JSA 25+ SUSTAINMENT OUTCOME PAYMENT,WWEG EP EAST LONDON CAREERS DEVELOPMENT GROUP,CAREERS DEVELOPMENT GROUP,2030143487,"58,265"
Department for Work and Pensions,Corporate,05-Jul-13,FSF - SUPPORT CONTRACT MODULES FOR JSA JOBSEEKERS,OPS WDC WSD CE BIRMINGHAM AND SOLIHULL DISTRICT OFFICE,INGEUS UK LTD,2030141804,"58,080"
Department for Work and Pensions,Housing Benefits,12-Jul-13,HOUSING BENEFIT ADMINISTRATION,HB ENGLAND,GRAVESHAM BOROUGH COUNCIL,2030215863,"58,074"
Department for Work and Pensions,Corporate,12-Jul-13,SOFTWARE LICENCES,CIO ITLR IGS,SPECIALIST COMPUTER CENTRES PLC,2030217594,"58,065"
Department for Work and Pensions,Housing Benefits,12-Jul-13,HOUSING BENEFIT ADMINISTRATION,HB ENGLAND,MENDIP DISTRICT COUNCIL,2030215880,"57,771"
Department for Work and Pensions,Housing Benefits,12-Jul-13,HOUSING BENEFIT ADMINISTRATION,HB ENGLAND,REIGATE & BANSTEAD BOROUGH COUNCIL,2030215737,"57,717"
Department for Work and Pensions,Corporate,08-Jul-13,AMS FIXED PRICE CONTRACTS,CIO ITLR AMS,HP ENTERPRISE SERVICES UK LTD,2030143475,"57,681"
Department for Work and Pensions,Employment Programmes,12-Jul-13,SERVICE FEE,WWEG EP SUPPORT CUMBRIA AND LANCASHIRE,JHP GROUP LTD,2030217845,"57,676"
Department for Work and Pensions,Housing Benefits,12-Jul-13,HOUSING BENEFIT ADMINISTRATION,HB ENGLAND,TAUNTON DEANE BOROUGH COUNCIL,2030215879,"57,652"
Department for Work and Pensions,Corporate,31-Jul-13,PRIME FACILITY PRICE,F&C CD CORBY DISCOVERY HOUSE,TELEREAL TRILLIUM,2030386813,"57,466"
Department for Work and Pensions,Housing Benefits,12-Jul-13,HOUSING BENEFIT ADMINISTRATION,HB ENGLAND,WORCESTER CITY COUNCIL,2030215793,"57,416"
Department for Work and Pensions,Housing Benefits,12-Jul-13,HOUSING BENEFIT ADMINISTRATION,HB ENGLAND,NORTH DEVON DISTRICT COUNCIL,2030215905,"57,094"
Department for Work and Pensions,Corporate,31-Jul-13,PRIME FACILITY PRICE,F&C CD CLARKE HOUSE,TELEREAL TRILLIUM,2030386813,"57,076"
Department for Work and Pensions,Housing Benefits,12-Jul-13,HOUSING BENEFIT ADMINISTRATION,HB ENGLAND,CITY OF CARLISLE DISTRICT COUNCIL,2030215958,"56,718"
Department for Work and Pensions,Corporate,12-Jul-13,SOFTWARE LICENCES,PSG STRATEGIC COMMS COO,SPECIALIST COMPUTER CENTRES PLC,2030217594,"56,650"
Department for Work and Pensions,Corporate,31-Jul-13,PRIME UTILITIES,OPS OPE OIS ESTATES RECESSION,TELEREAL TRILLIUM,2030386811,"56,381"
Department for Work and Pensions,Corporate,31-Jul-13,SOFTWARE LICENCES,OPS OPE FS UFI INTEL SCOTLAND NORTH WEST AND WALES,SPECIALIST COMPUTER CENTRES PLC,2030400223,"56,325"
Department for Work and Pensions,Employment Programmes,12-Jul-13,SERVICE FEE,"WWEG EP SUPPORT SOUTH EAST WALES, NORTH AND MID WALES",A4E LTD,2030217071,"56,174"
Department for Work and Pensions,Corporate,17-Jul-13,NEW ENTERPRISE ALLOWANCE MENTOR MATCHING,OPS WDC WSD LN NORTH LONDON DISTRICT OFFICE,LIVABILITY,2030230409,"56,145"
Department for Work and Pensions,Corporate,22-Jul-13,NEW ENTERPRISE ALLOWANCE MENTOR MATCHING,OPS WDC WSD LN NORTH LONDON DISTRICT OFFICE,LIVABILITY,2030299154,"56,145"
Department for Work and Pensions,Housing Benefits,12-Jul-13,HOUSING BENEFIT ADMINISTRATION,HB ENGLAND,BROXBOURNE BOROUGH COUNCIL,2030215756,"56,069"
Department for Work and Pensions,Corporate,09-Jul-13,NEW ENTERPRISE ALLOWANCE MENTOR MATCHING,OPS WDC WSD SE GREATER WESSEX DISTRICT OFFICE,ENTERPRISE FIRST,2030147414,"55,740"
Department for Work and Pensions,Corporate,19-Jul-13,ADEP AM SERVICES - VAT NON-RECOVERABLE,CHG UC PROJECT LEDGER CC,IBM UNITED KINGDOM LTD,2030293540,"55,716"
Department for Work and Pensions,Employment Programmes,30-Jul-13,WP JSA 25+ SUSTAINMENT OUTCOME PAYMENT,WWEG EP WEST LONDON MAXIMUS EMPLOYMENT UK,MAXIMUS EMPLOYMENT UK LTD,2030374084,"55,685"
Department for Work and Pensions,Corporate,23-Jul-13,NEW ENTERPRISE ALLOWANCE MENTOR MATCHING,OPS WDC WSD NW MERSEYSIDE DISTRICT OFFICE,BLUE ORCHID,2030300237,"55,470"
Department for Work and Pensions,Housing Benefits,12-Jul-13,HOUSING BENEFIT ADMINISTRATION,HB ENGLAND,WELWYN HATFIELD DISTRICT COUNCIL,2030215735,"55,447"
Department for Work and Pensions,Corporate,09-Jul-13,TREDDS APPS DEV MANDAYS,CHG PIP DELIVERY,HP ENTERPRISE SERVICES UK LTD,2030150486,"55,428"
Department for Work and Pensions,Housing Benefits,12-Jul-13,HOUSING BENEFIT ADMINISTRATION,HB ENGLAND,GOSPORT BOROUGH COUNCIL,2030215780,"55,363"
Department for Work and Pensions,Housing Benefits,12-Jul-13,HOUSING BENEFIT ADMINISTRATION,HB ENGLAND,NORTH NORFOLK DISTRICT COUNCIL,2030215981,"55,255"
Department for Work and Pensions,Corporate,11-Jul-13,FSF - SUPPORT CONTRACT MODULES FOR JSA JOBSEEKERS,OPS WDC WSD SC WEST OF SCOTLAND DO,JHP GROUP LTD,2030215330,"54,853"
Department for Work and Pensions,Employment Programmes,10-Jul-13,WP JSA 25+ SUSTAINMENT OUTCOME PAYMENT,WWEG EP EAST LONDON A4E,A4E LTD,2030211114,"54,825"
Department for Work and Pensions,SHARED SERVICES,10-Jul-13,CONTRACTED OUT OFFICE SERVICES,OFFICE SERVICES,BALFOUR BEATTY WORKPLACE LTD,2030210761,"54,820"
Department for Work and Pensions,Housing Benefits,12-Jul-13,HOUSING BENEFIT ADMINISTRATION,HB ENGLAND,GUILDFORD BOROUGH COUNCIL,2030215739,"54,800"
Department for Work and Pensions,Corporate,23-Jul-13,NON-TREDDS IS IT APPS DEV MANDAY,CHG TRANSFORMING LABOUR MARKET SERVICES,IBM UNITED KINGDOM LTD,2030303655,"54,728"
Department for Work and Pensions,Employment Programmes,25-Jul-13,WP JSA 25+ SUSTAINMENT OUTCOME PAYMENT,WWEG EP EAST LONDON A4E,A4E LTD,2030365546,"54,610"
Department for Work and Pensions,Child Maintenance and Enforcement Commission,10-Jul-13,CONTRACTORS & STAFF SUBSTITUTIONS,NEW SCHEME PROJECT RESOURCE RECHARGE,CAPITA RESOURCING LTD,1000182459,"54,579"
Department for Work and Pensions,Housing Benefits,12-Jul-13,HOUSING BENEFIT ADMINISTRATION,HB ENGLAND,WARWICK DISTRICT COUNCIL,2030215725,"54,430"
Department for Work and Pensions,Housing Benefits,12-Jul-13,HOUSING BENEFIT ADMINISTRATION,HB ENGLAND,CAMBRIDGE CITY COUNCIL,2030215939,"54,412"
Department for Work and Pensions,Employment Programmes,25-Jul-13,WP JSA 25+ SUSTAINMENT OUTCOME PAYMENT,WWEG EP NORTH WEST MERS HAL CUMB AND LANCS A4E,A4E LTD,2030365546,"54,395"
Department for Work and Pensions,Employment Programmes,18-Jul-13,WP JSA 25+ SUSTAINMENT OUTCOME PAYMENT,WWEG EP EAST LONDON A4E,A4E LTD,2030287183,"54,395"
Department for Work and Pensions,Housing Benefits,12-Jul-13,HOUSING BENEFIT ADMINISTRATION,HB ENGLAND,WEALDEN DISTRICT COUNCIL,2030215847,"54,292"
Department for Work and Pensions,Housing Benefits,12-Jul-13,HOUSING BENEFIT ADMINISTRATION,HB ENGLAND,BRACKNELL FOREST BOROUGH COUNCIL,2030215762,"54,283"
Department for Work and Pensions,Corporate,17-Jul-13,NEW ENTERPRISE ALLOWANCE MENTOR MATCHING,OPS WDC WSD LN BEDS AND HERTS DISTRICT OFFICE,WENTA,2030241880,"53,996"
Department for Work and Pensions,Employment Programmes,12-Jul-13,WP JSA 25+ SUSTAINMENT OUTCOME PAYMENT,WWEG EP NORTH WEST MERS HAL CUMB AND LANCS INGEUS UK,INGEUS UK LTD,2030218148,"53,965"
Department for Work and Pensions,Housing Benefits,12-Jul-13,HOUSING BENEFIT ADMINISTRATION,HB ENGLAND,EPPING FOREST DISTRICT COUNCIL,2030215823,"53,718"
Department for Work and Pensions,Housing Benefits,12-Jul-13,HOUSING BENEFIT ADMINISTRATION,HB ENGLAND,NEWARK DISTRICT COUNCIL,2030215908,"53,592"
Department for Work and Pensions,Employment Programmes,26-Jul-13,WP JSA 25+ SUSTAINMENT OUTCOME PAYMENT,WWEG EP NORTH WEST MERS HAL CUMB AND LANCS INGEUS UK,INGEUS UK LTD,2030367031,"53,105"
Department for Work and Pensions,Corporate,12-Jul-13,NON-TREDDS APPS DEV FIXED PRICE CONTRACTS,CHG CP SERVICE ORIENTATED ARCHITECTURE,IBM UNITED KINGDOM LTD,2030217069,"53,059"
Department for Work and Pensions,Corporate,05-Jul-13,NON-TREDDS IS IT APPS DEV MANDAY,CHG LA DATA SHARING PROG,IBM UNITED KINGDOM LTD,2030141222,"53,058"
Department for Work and Pensions,Corporate,22-Jul-13,PIP FACE TO FACE ASSESSMENTS,OPS CCS PIP LOT 1,ATOS IT SERVICES UK LTD,2030296196,"52,926"
Department for Work and Pensions,Housing Benefits,12-Jul-13,HOUSING BENEFIT ADMINISTRATION,HB ENGLAND,CHICHESTER DISTRICT COUNCIL,2030215695,"52,832"
Department for Work and Pensions,Housing Benefits,12-Jul-13,HOUSING BENEFIT ADMINISTRATION,HB ENGLAND,WINDSOR & MAIDENHEAD BOROUGH COUNCIL,2030215760,"52,807"
Department for Work and Pensions,Housing Benefits,12-Jul-13,HOUSING BENEFIT ADMINISTRATION,HB ENGLAND,WATFORD BOROUGH COUNCIL,2030215967,"52,720"
Department for Work and Pensions,Housing Benefits,12-Jul-13,HOUSING BENEFIT ADMINISTRATION,HB ENGLAND,EAST HERTFORDSHIRE DISTRICT COUNCIL,2030215833,"52,705"
Department for Work and Pensions,Housing Benefits,12-Jul-13,HOUSING BENEFIT ADMINISTRATION,HB ENGLAND,HERTSMERE BOROUGH COUNCIL,2030215755,"52,615"
Department for Work and Pensions,Housing Benefits,12-Jul-13,HOUSING BENEFIT ADMINISTRATION,HB ENGLAND,SOUTH NORFOLK DISTRICT COUNCIL,2030216032,"52,545"
Department for Work and Pensions,Employment Programmes,26-Jul-13,WP JSA 25+ SUSTAINMENT OUTCOME PAYMENT,WWEG EP EAST LONDON SEETEC,SEETEC BUSINESS TECHNOLOGY CENTRE LTD,2030367372,"52,460"
Department for Work and Pensions,European Social Fund,26-Jul-13,MA ESF(D) PROGRAMME EXPENDITURE EC PREFUNDED THIRD PARTIES,WWEG EUROPEAN SOCIAL FUND PROGRAMME 2007-2013,MERSEYSIDE EXPANDING HORIZONS LTD,5000001418,"52,450"
Department for Work and Pensions,Housing Benefits,12-Jul-13,HOUSING BENEFIT ADMINISTRATION,HB SCOTLAND,ARGYLL & BUTE COUNCIL,2030215808,"52,274"
Department for Work and Pensions,Corporate,02-Jul-13,CURRENT GRANTS TO LOCAL GOVERNMENT,CHG RIGHT TO CONTROL DELP,SURREY COUNTY COUNCIL,1005856,"52,263"
Department for Work and Pensions,Employment Programmes,12-Jul-13,WP JSA 25+ SUSTAINMENT OUTCOME PAYMENT,WWEG EP NORTH WEST GM CHES AND WARR G4S,G4S REGIONAL MANAGEMENT UK & I LTD,2030216190,"52,030"
Department for Work and Pensions,Corporate,05-Jul-13,CONTRACTORS & STAFF SUBSTITUTIONS,CIO ADC DIRECTOR,CAPITA RESOURCING LTD,2030140266,"51,814"
Department for Work and Pensions,Housing Benefits,12-Jul-13,HOUSING BENEFIT ADMINISTRATION,HB ENGLAND,ALLERDALE DISTRICT COUNCIL,2030216029,"51,791"
Department for Work and Pensions,Employment Programmes,05-Jul-13,WP JSA 25+ SUSTAINMENT OUTCOME PAYMENT,WWEG EP NORTH WEST MERS HAL CUMB AND LANCS A4E,A4E LTD,2030141506,"51,600"
Department for Work and Pensions,Housing Benefits,12-Jul-13,HOUSING BENEFIT ADMINISTRATION,HB ENGLAND,RUSHMOOR BOROUGH COUNCIL,2030215777,"51,567"
Department for Work and Pensions,Employment Programmes,05-Jul-13,INNOVATION FUND,WWEG EP NATIONAL,TRIODOS NEW HORIZONS LTD,2030138641,"51,458"
Department for Work and Pensions,Housing Benefits,12-Jul-13,HOUSING BENEFIT ADMINISTRATION,HB ENGLAND,STEVENAGE BOROUGH COUNCIL,2030215754,"51,443"
Department for Work and Pensions,Housing Benefits,12-Jul-13,HOUSING BENEFIT ADMINISTRATION,HB ENGLAND,CHORLEY BOROUGH COUNCIL,2030215688,"51,351"
Department for Work and Pensions,Employment Programmes,26-Jul-13,WP JSA 25+ SUSTAINMENT OUTCOME PAYMENT,WWEG EP EAST OF ENGLAND SEETEC,SEETEC BUSINESS TECHNOLOGY CENTRE LTD,2030367372,"51,170"
Department for Work and Pensions,Employment Programmes,12-Jul-13,SERVICE FEE,WWEG EP SUPPORT LEICESTERSHIRE AND NORTHAMPTONSHIRE,INGEUS UK LTD,2030218148,"50,998"
Department for Work and Pensions,Housing Benefits,12-Jul-13,HOUSING BENEFIT ADMINISTRATION,HB ENGLAND,TONBRIDGE & MALLING DISTRICT COUNCIL,2030215691,"50,959"
Department for Work and Pensions,Employment Programmes,26-Jul-13,WP JSA 25+ SUSTAINMENT OUTCOME PAYMENT,WWEG EP WEST LONDON INGEUS UK,INGEUS UK LTD,2030367031,"50,955"
Department for Work and Pensions,Housing Benefits,12-Jul-13,HOUSING BENEFIT ADMINISTRATION,HB ENGLAND,STAFFORD BOROUGH COUNCIL,2030215742,"50,952"
Department for Work and Pensions,Housing Benefits,12-Jul-13,HOUSING BENEFIT ADMINISTRATION,HB SCOTLAND,EAST LOTHIAN DISTRICT COUNCIL,2030215986,"50,720"
Department for Work and Pensions,Employment Programmes,31-Jul-13,FSF - TRAINING PAYMENTS TO PROVIDERS - JSA JOBSEEKERS,WWEG EP WALES COUNTRY,WORKING LINKS,2030391144,"50,674"
Department for Work and Pensions,Employment Programmes,09-Jul-13,WP JSA 25+ SUSTAINMENT OUTCOME PAYMENT,WWEG EP EAST LONDON SEETEC,SEETEC BUSINESS TECHNOLOGY CENTRE LTD,2030149955,"50,525"
Department for Work and Pensions,Employment Programmes,26-Jul-13,WP JSA 25+ SUSTAINMENT OUTCOME PAYMENT,WWEG EP EAST MIDLANDS INGEUS UK,INGEUS UK LTD,2030367031,"50,310"
Department for Work and Pensions,Employment Programmes,09-Jul-13,WP JSA 25+ SUSTAINMENT OUTCOME PAYMENT,WWEG EP WEST YORKSHIRE INGEUS UK,INGEUS UK LTD,2030146448,"50,310"
Department for Work and Pensions,Housing Benefits,12-Jul-13,HOUSING BENEFIT ADMINISTRATION,HB ENGLAND,ROTHER DISTRICT COUNCIL,2030215848,"50,085"
Department for Work and Pensions,Housing Benefits,12-Jul-13,HOUSING BENEFIT ADMINISTRATION,HB ENGLAND,RUGBY BOROUGH COUNCIL,2030215715,"50,016"
Department for Work and Pensions,Corporate,31-Jul-13,FSF - TRAINING PAYMENTS TO PROVIDERS - JSA JOBSEEKERS,OPS WDC WSD SC PETERHEAD JOBCENTRE PLUS,ABERDEENSHIRE COUNCIL,2030406370,"50,000"
Department for Work and Pensions,Corporate,09-Jul-13,NON-TREDDS IS IT APPS DEV MANDAY,CIO GTS,IBM UNITED KINGDOM LTD,2030146508,"49,876"
Department for Work and Pensions,Housing Benefits,12-Jul-13,HOUSING BENEFIT ADMINISTRATION,HB ENGLAND,BROXTOWE BOROUGH COUNCIL,2030215910,"49,796"
Department for Work and Pensions,Corporate,23-Jul-13,NEW ENTERPRISE ALLOWANCE MENTOR MATCHING,OPS WDC WSD CE EAST ANGLIA DISTRICT OFFICE,IXION HOLDINGS LTD,2030303051,"49,789"
Department for Work and Pensions,Employment Programmes,12-Jul-13,WP JSA 25+ SUSTAINMENT OUTCOME PAYMENT,WWEG EP EAST MIDLANDS INGEUS UK,INGEUS UK LTD,2030218148,"49,665"
Department for Work and Pensions,Housing Benefits,12-Jul-13,HOUSING BENEFIT ADMINISTRATION,HB ENGLAND,EASTLEIGH BOROUGH COUNCIL,2030215797,"49,662"
Department for Work and Pensions,Housing Benefits,12-Jul-13,HOUSING BENEFIT ADMINISTRATION,HB ENGLAND,WYCHAVON DISTRICT COUNCIL,2030215844,"49,587"
Department for Work and Pensions,Corporate,03-Jul-13,NEW ENTERPRISE ALLOWANCE MENTOR MATCHING,OPS WDC WSD SE GLOUCESTERSHIRE AND WEST OF ENGLAND DO,GLOUCESTERSHIRE ENTERPRISE LTD,2030116446,"49,560"
Department for Work and Pensions,Housing Benefits,12-Jul-13,HOUSING BENEFIT ADMINISTRATION,HB ENGLAND,LEWES DISTRICT COUNCIL,2030216056,"49,415"
Department for Work and Pensions,Corporate,02-Jul-13,SOC SEC RESEARCH BUDGET,PSG ANALYSIS CAD,IFF RESEARCH LTD,2030071320,"49,405"
Department for Work and Pensions,Housing Benefits,12-Jul-13,HOUSING BENEFIT ADMINISTRATION,HB ENGLAND,SUFFOLK COASTAL DISTRICT COUNCIL,2030215804,"49,330"
Department for Work and Pensions,Employment Programmes,19-Jul-13,WP JSA 25+ SUSTAINMENT OUTCOME PAYMENT,WWEG EP EAST MIDLANDS INGEUS UK,INGEUS UK LTD,2030292881,"49,235"
Department for Work and Pensions,Housing Benefits,12-Jul-13,HOUSING BENEFIT ADMINISTRATION,HB ENGLAND,KETTERING BOROUGH COUNCIL,2030215977,"49,039"
Department for Work and Pensions,Corporate,16-Jul-13,PRIME BILLABLE EXTRAS PRIME CONTRACT MANAGEMENT (PCM),F&C CD LEEDS BMT,TELEREAL TRILLIUM,2030224789,"49,013"
Department for Work and Pensions,Housing Benefits,12-Jul-13,HOUSING BENEFIT ADMINISTRATION,HB ENGLAND,STRATFORD ON AVON DISTRICT COUNCIL,2030215697,"48,849"
Department for Work and Pensions,Employment Programmes,09-Jul-13,WP JSA 25+ SUSTAINMENT OUTCOME PAYMENT,WWEG EP NORTH WEST MERS HAL CUMB AND LANCS INGEUS UK,INGEUS UK LTD,2030146448,"48,805"
Department for Work and Pensions,Employment Programmes,09-Jul-13,WP JSA 25+ SUSTAINMENT OUTCOME PAYMENT,WWEG EP NORTH WEST GM CHES AND WARR SEETEC,SEETEC BUSINESS TECHNOLOGY CENTRE LTD,2030149955,"48,805"
Department for Work and Pensions,Housing Benefits,12-Jul-13,HOUSING BENEFIT ADMINISTRATION,HB ENGLAND,WEST LINDSEY DISTRICT COUNCIL,2030216002,"48,690"
Department for Work and Pensions,Employment Programmes,01-Jul-13,WP JSA 25+ SUSTAINMENT OUTCOME PAYMENT,WWEG EP SCOTLAND WORKING LINKS,WORKING LINKS,2030066832,"48,590"
Department for Work and Pensions,Corporate,05-Jul-13,MEDICAL SERVICES FIXED COSTS,OPS CCS MEDICAL SERVICES,ATOS HEALTHCARE,2030138040,"48,493"
Department for Work and Pensions,Child Maintenance and Enforcement Commission,09-Jul-13,POSTAGE,CS CENTRALLY HELD BUDGETS FACILITIES CONTRACTS,ROYAL MAIL GROUP PLC,1000182363,"48,078"
Department for Work and Pensions,Housing Benefits,12-Jul-13,HOUSING BENEFIT ADMINISTRATION,HB ENGLAND,HIGH PEAK BOROUGH COUNCIL,2030215954,"48,032"
Department for Work and Pensions,Housing Benefits,12-Jul-13,HOUSING BENEFIT ADMINISTRATION,HB ENGLAND,BOROUGH OF REDDITCH,2030215758,"47,994"
Department for Work and Pensions,Employment Programmes,22-Jul-13,WP JSA 25+ SUSTAINMENT OUTCOME PAYMENT,WWEG EP EAST LONDON CAREERS DEVELOPMENT GROUP,CAREERS DEVELOPMENT GROUP,2030297325,"47,945"
Department for Work and Pensions,Employment Programmes,18-Jul-13,WP JSA 25+ SUSTAINMENT OUTCOME PAYMENT,WWEG EP NORTH WEST MERS HAL CUMB AND LANCS A4E,A4E LTD,2030287183,"47,945"
Department for Work and Pensions,Housing Benefits,12-Jul-13,HOUSING BENEFIT ADMINISTRATION,HB ENGLAND,DARTFORD BOROUGH COUNCIL,2030216033,"47,934"
Department for Work and Pensions,Employment Programmes,12-Jul-13,SERVICE FEE,"WWEG EP SUPPORT SOUTH WEST WALES, SOUTH WALES VALLEYS",CAPITAL TRAINING GROUP LTD,2030216683,"47,730"
Department for Work and Pensions,Housing Benefits,12-Jul-13,HOUSING BENEFIT ADMINISTRATION,HB SCOTLAND,MIDLOTHIAN COUNCIL,2030215768,"47,657"
Department for Work and Pensions,Housing Benefits,12-Jul-13,HOUSING BENEFIT ADMINISTRATION,HB ENGLAND,BOROUGH OF WELLINGBOROUGH,2030215952,"47,596"
Department for Work and Pensions,Corporate,19-Jul-13,NON-TREDDS APPS DEV FIXED PRICE CONTRACTS,CHG BENEFIT CAP,IBM UNITED KINGDOM LTD,2030293540,"47,589"
Department for Work and Pensions,Corporate,05-Jul-13,NON-TREDDS IS IT APPS DEV MANDAY,CHG TRANSFORMING LABOUR MARKET SERVICES,IBM UNITED KINGDOM LTD,2030141222,"47,550"
Department for Work and Pensions,Housing Benefits,12-Jul-13,HOUSING BENEFIT ADMINISTRATION,HB ENGLAND,ST EDMUNDSBURY BOROUGH COUNCIL,2030215842,"47,536"
Department for Work and Pensions,Housing Benefits,12-Jul-13,HOUSING BENEFIT ADMINISTRATION,HB ENGLAND,ELMBRIDGE BOROUGH COUNCIL,2030215803,"47,523"
Department for Work and Pensions,Housing Benefits,12-Jul-13,HOUSING BENEFIT ADMINISTRATION,HB ENGLAND,SOUTH RIBBLE BOROUGH COUNCIL C,2030216047,"47,517"
Department for Work and Pensions,Corporate,08-Jul-13,NON ICONS NETWORK SERVICES,CIO ITLR NETWORK,TMOBILE LTD,2030142966,"47,469"
Department for Work and Pensions,Housing Benefits,12-Jul-13,HOUSING BENEFIT ADMINISTRATION,HB ENGLAND,TUNBRIDGE WELLS BOROUGH COUNCIL,2030215690,"47,393"
Department for Work and Pensions,Corporate,23-Jul-13,NEW ENTERPRISE ALLOWANCE MENTOR MATCHING,OPS WDC WSD LN KENT DISTRICT OFFICE,NETWORK PROJECTS LTD,2030300570,"47,253"
Department for Work and Pensions,Housing Benefits,12-Jul-13,HOUSING BENEFIT ADMINISTRATION,HB ENGLAND,TEST VALLEY BOROUGH COUNCIL,2030215818,"46,899"
Department for Work and Pensions,Corporate,02-Jul-13,FSF - TRAINING PAYMENTS TO PROVIDERS - JSA JOBSEEKERS,OPS WDC WSD LN BEDS AND HERTS DISTRICT OFFICE,SEETEC,2030069828,"46,875"
Department for Work and Pensions,Housing Benefits,12-Jul-13,HOUSING BENEFIT ADMINISTRATION,HB ENGLAND,NORTH EAST DERBYSHIRE DISTRICT COUNCIL,2030215931,"46,806"
Department for Work and Pensions,Housing Benefits,12-Jul-13,HOUSING BENEFIT ADMINISTRATION,HB WALES,MERTHYR TYDFIL BOROUGH COUNCIL,2030216007,"46,473"
Department for Work and Pensions,Employment Programmes,09-Jul-13,WP JSA 25+ SUSTAINMENT OUTCOME PAYMENT,WWEG EP NORTH EAST INGEUS UK,INGEUS UK LTD,2030146448,"46,440"
Department for Work and Pensions,Housing Benefits,12-Jul-13,HOUSING BENEFIT ADMINISTRATION,HB ENGLAND,CORBY BOROUGH COUNCIL,2030215766,"46,344"
Department for Work and Pensions,Housing Benefits,12-Jul-13,HOUSING BENEFIT ADMINISTRATION,HB ENGLAND,WEST DORSET DISTRICT COUNCIL,2030215873,"46,270"
Department for Work and Pensions,Housing Benefits,12-Jul-13,HOUSING BENEFIT ADMINISTRATION,HB ENGLAND,WEYMOUTH & PORTLAND BOROUGH COUNCIL,2030215850,"46,031"
Department for Work and Pensions,Employment Programmes,12-Jul-13,WP JSA 25+ SUSTAINMENT OUTCOME PAYMENT,WWEG EP SOUTH EAST SURR SUSSX AND KENT G4S,G4S REGIONAL MANAGEMENT UK & I LTD,2030216190,"46,010"
Department for Work and Pensions,Employment Programmes,12-Jul-13,WP JSA 25+ SUSTAINMENT OUTCOME PAYMENT,WWEG EP WEST LONDON INGEUS UK,INGEUS UK LTD,2030218148,"46,010"
Department for Work and Pensions,Housing Benefits,12-Jul-13,HOUSING BENEFIT ADMINISTRATION,HB ENGLAND,BOLSOVER DISTRICT COUNCIL,2030215723,"45,901"
Department for Work and Pensions,Employment Programmes,10-Jul-13,WP JSA 25+ SUSTAINMENT OUTCOME PAYMENT,WWEG EP NORTH WEST MERS HAL CUMB AND LANCS A4E,A4E LTD,2030211114,"45,795"
Department for Work and Pensions,Employment Programmes,05-Jul-13,WP JSA 25+ SUSTAINMENT OUTCOME PAYMENT,WWEG EP EAST LONDON A4E,A4E LTD,2030141506,"45,795"
Department for Work and Pensions,Employment Programmes,12-Jul-13,SERVICE FEE,WWEG EP SUPPORT CORNWALL AND DEVON,WORKING LINKS,2030218151,"45,743"
Department for Work and Pensions,European Social Fund,29-Jul-13,MA ESF(D) PROGRAMME EXPENDITURE EC PREFUNDED THIRD PARTIES,WWEG EUROPEAN SOCIAL FUND PROGRAMME 2007-2013,TYNE & WEAR CITY STRATEGY PARTNERSHIP,5000001423,"45,735"
Department for Work and Pensions,Corporate,02-Jul-13,NEW ENTERPRISE ALLOWANCE MENTOR MATCHING,OPS WDC WSD CE DERBYSHIRE DISTRICT OFFICE,BUSINESS IN THE COMMUNITY,2030068664,"45,496"
Department for Work and Pensions,Corporate,30-Jul-13,NEW ENTERPRISE ALLOWANCE MENTOR MATCHING,OPS WDC WSD CE DERBYSHIRE DISTRICT OFFICE,BUSINESS IN THE COMMUNITY,2030375772,"45,496"
Department for Work and Pensions,Corporate,19-Jul-13,BANK COMMISSION & CHARGES,F&C FIN CONT COBAP BANKING,HSBC BANK PLC,2030294998,"45,468"
Department for Work and Pensions,Corporate,31-Jul-13,PRIME FACILITY PRICE,F&C CD BIRMINGHAM CITY C POD IRS,TELEREAL TRILLIUM,2030386813,"45,380"
Department for Work and Pensions,Corporate,24-Jul-13,CONTRACTED OUT OFFICE SERVICES,F&C FIN CONT DEBT CONTROL,IQOR RECOVERY SERVICES LTD,2030313540,"45,369"
Department for Work and Pensions,Housing Benefits,12-Jul-13,HOUSING BENEFIT ADMINISTRATION,HB ENGLAND,STROUD DISTRICT COUNCIL,2030215801,"45,234"
Department for Work and Pensions,Housing Benefits,12-Jul-13,HOUSING BENEFIT ADMINISTRATION,HB ENGLAND,SEVENOAKS DISTRICT COUNCIL,2030215710,"45,162"
Department for Work and Pensions,Employment Programmes,26-Jul-13,WP JSA 25+ SUSTAINMENT OUTCOME PAYMENT,WWEG EP WEST YORKSHIRE INGEUS UK,INGEUS UK LTD,2030367031,"45,150"
Department for Work and Pensions,Corporate,29-Jul-13,NON-TREDDS APPS DEV FIXED PRICE CONTRACTS,CHG SPECIFIED ADULT CHILDCARE CREDITS,HMRC,2003993,"45,071"
Department for Work and Pensions,Corporate,16-Jul-13,SOC SEC RESEARCH BUDGET,PSG ANALYSIS CAD,ENTERPRISE LSE LTD,2030226624,"44,996"
Department for Work and Pensions,Corporate,01-Jul-13,BANK COMMISSION & CHARGES,F&C FIN CONT COBAP BANKING,HSBC BANK PLC,2030066846,"44,950"
Department for Work and Pensions,Corporate,09-Jul-13,SERVICE FEE,CHG RIGHT TO CONTROL DELP,SURREY COUNTY COUNCIL,1005876,"44,950"
Department for Work and Pensions,Employment Programmes,19-Jul-13,WP JSA 25+ SUSTAINMENT OUTCOME PAYMENT,WWEG EP WEST LONDON INGEUS UK,INGEUS UK LTD,2030292881,"44,935"
Department for Work and Pensions,Employment Programmes,19-Jul-13,WP JSA 25+ SUSTAINMENT OUTCOME PAYMENT,WWEG EP NORTH WEST MERS HAL CUMB AND LANCS INGEUS UK,INGEUS UK LTD,2030292881,"44,935"
Department for Work and Pensions,Housing Benefits,12-Jul-13,HOUSING BENEFIT ADMINISTRATION,HB ENGLAND,BROADLAND DISTRICT COUNCIL,2030216000,"44,780"
Department for Work and Pensions,Corporate,23-Jul-13,FSF - TRAINING PAYMENTS TO PROVIDERS - JSA JOBSEEKERS,OPS WDC WSD NW KENDAL JOBCENTRE PLUS,BTCV,2030300830,"44,687"
Department for Work and Pensions,Housing Benefits,12-Jul-13,HOUSING BENEFIT ADMINISTRATION,HB ENGLAND,BARROW BOROUGH COUNCIL,2030215721,"44,625"
Department for Work and Pensions,SHARED SERVICES,18-Jul-13,NON-TREDDS IS IT APPS DEV MANDAY,IT COSTS,FUJITSU SERVICES LTD,2030287859,"44,589"
Department for Work and Pensions,Corporate,15-Jul-13,TREDDS APPS DEV MANDAYS,CHG CP SERVICE ORIENTATED ARCHITECTURE,HP ENTERPRISE SERVICES UK LTD,2030220887,"44,545"
Department for Work and Pensions,Housing Benefits,12-Jul-13,HOUSING BENEFIT ADMINISTRATION,HB ENGLAND,FOREST OF DEAN DISTRICT COUNCIL,2030215820,"44,519"
Department for Work and Pensions,Employment Programmes,19-Jul-13,WP JSA 25+ SUSTAINMENT OUTCOME PAYMENT,WWEG EP EAST LONDON SEETEC,SEETEC BUSINESS TECHNOLOGY CENTRE LTD,2030295420,"44,290"
Department for Work and Pensions,Corporate,09-Jul-13,NON-TREDDS IS IT APPS DEV MANDAY,CHG SCANNING & DIGITAL STORAGE,IBM UNITED KINGDOM LTD,2030146508,"44,288"
Department for Work and Pensions,Housing Benefits,12-Jul-13,HOUSING BENEFIT ADMINISTRATION,HB ENGLAND,MID SUSSEX DISTRICT COUNCIL,2030215864,"44,247"
Department for Work and Pensions,Housing Benefits,12-Jul-13,HOUSING BENEFIT ADMINISTRATION,HB ENGLAND,SOUTH STAFFORDSHIRE DISTRICT COUNCIL,2030215829,"44,243"
Department for Work and Pensions,Corporate,12-Jul-13,POSTAGE,OPS BEN DD BENEFITS GROUP 3 SUPPORT,ROYAL MAIL GROUP PLC,2030216239,"44,236"
Department for Work and Pensions,Housing Benefits,12-Jul-13,HOUSING BENEFIT ADMINISTRATION,HB ENGLAND,ST ALBANS DISTRICT COUNCIL,2030215976,"44,073"
Department for Work and Pensions,Child Maintenance and Enforcement Commission,11-Jul-13,DWP COURT FEES & RELATED EXPENSES,EXTERNAL CONTRACTS CENTRALLY HELD LAW CHARGES,TREASURY SOLICITOR TSOL,2000973,"44,000"
Department for Work and Pensions,Employment Programmes,12-Jul-13,WP JSA 25+ SUSTAINMENT OUTCOME PAYMENT,WWEG EP NORTH EAST INGEUS UK,INGEUS UK LTD,2030218148,"43,860"
Department for Work and Pensions,Housing Benefits,12-Jul-13,HOUSING BENEFIT ADMINISTRATION,HB ENGLAND,CASTLE POINT DISTRICT COUNCIL,2030215825,"43,633"
Department for Work and Pensions,Housing Benefits,12-Jul-13,HOUSING BENEFIT ADMINISTRATION,HB ENGLAND,SOUTH HOLLAND DISTRICT COUNCIL,2030215743,"43,503"
Department for Work and Pensions,Employment Programmes,09-Jul-13,WP JSA 25+ SUSTAINMENT OUTCOME PAYMENT,WWEG EP WEST LONDON INGEUS UK,INGEUS UK LTD,2030146448,"43,430"
Department for Work and Pensions,Employment Programmes,01-Jul-13,WP JSA 25+ SUSTAINMENT OUTCOME PAYMENT,WWEG EP EAST OF ENGLAND SEETEC,SEETEC BUSINESS TECHNOLOGY CENTRE LTD,2030066748,"43,430"
Department for Work and Pensions,Housing Benefits,12-Jul-13,HOUSING BENEFIT ADMINISTRATION,HB ENGLAND,HORSHAM DISTRICT COUNCIL,2030215693,"43,329"
Department for Work and Pensions,Corporate,25-Jul-13,SOC SEC RESEARCH BUDGET,PSG ANALYSIS CAD,IFF RESEARCH LTD,2030365070,"43,154"
Department for Work and Pensions,Corporate,29-Jul-13,VALUATION OFFICE,OPS BEN BD NE SPECIAL OPERATIONS,VALUATION OFFICE AGENCY,2030371786,"42,970"
Department for Work and Pensions,Housing Benefits,12-Jul-13,HOUSING BENEFIT ADMINISTRATION,HB ENGLAND,NORTH KESTEVEN DISTRICT COUNCIL,2030215975,"42,895"
Department for Work and Pensions,Employment Programmes,09-Jul-13,SERVICE FEE,WWEG EP CORE MWA CPA LONDON,SEETEC BUSINESS TECHNOLOGY CENTRE LTD,2030149955,"42,895"
Department for Work and Pensions,Housing Benefits,12-Jul-13,HOUSING BENEFIT ADMINISTRATION,HB ENGLAND,EAST HAMPSHIRE DISTRICT COUNCIL,2030215798,"42,746"
Department for Work and Pensions,Housing Benefits,12-Jul-13,HOUSING BENEFIT ADMINISTRATION,HB ENGLAND,HINCKLEY & BOSWORTH BOROUGH COUNCIL,2030216044,"42,577"
Department for Work and Pensions,Employment Programmes,12-Jul-13,WP JSA 25+ SUSTAINMENT OUTCOME PAYMENT,WWEG EP WEST YORKSHIRE INGEUS UK,INGEUS UK LTD,2030218148,"42,570"
Department for Work and Pensions,Corporate,08-Jul-13,SOC SEC RESEARCH BUDGET,PSG ANALYSIS CAD,SHEFFIELD HALLAM UNIVERSITY,2030145992,"42,500"
Department for Work and Pensions,Corporate,19-Jul-13,CONTRACTORS & STAFF SUBSTITUTIONS,CIO ADC DIRECTOR,CAPITA RESOURCING LTD,2030295408,"42,425"
Department for Work and Pensions,Employment Programmes,25-Jul-13,WP JSA 25+ SUSTAINMENT OUTCOME PAYMENT,WWEG EP EAST MIDLANDS A4E,A4E LTD,2030365546,"42,355"
Department for Work and Pensions,Employment Programmes,03-Jul-13,WP JSA 25+ SUSTAINMENT OUTCOME PAYMENT,WWEG EP NORTH EAST AVANTA ENTERPRISE,AVANTA ENTERPRISE LTD,2030131375,"42,355"
Department for Work and Pensions,Corporate,23-Jul-13,RAPID RESPONSE - PROVIDER TRAINING,OPS WDC WSD LN ESSEX DISTRICT OFFICE,SEETEC,2030303714,"42,337"
Department for Work and Pensions,Corporate,23-Jul-13,NON-TREDDS IS IT APPS DEV MANDAY,CIO AD HOC ITLR PROJECTS,ACCENTURE UK LTD,2030300097,"42,221"
Department for Work and Pensions,Corporate,19-Jul-13,CONTRACTED OUT OFFICE SERVICES,OPS NET CC SERCO NBFH,SERCO PUBLIC SERVICES LTD,2030293516,"42,210"
Department for Work and Pensions,Housing Benefits,12-Jul-13,HOUSING BENEFIT ADMINISTRATION,HB ENGLAND,SOUTH CAMBRIDGESHIRE DISTRICT COUNCIL,2030216049,"42,208"
Department for Work and Pensions,Housing Benefits,12-Jul-13,HOUSING BENEFIT ADMINISTRATION,HB ENGLAND,VALE OF WHITE HORSE DISTRICT COUNCIL,2030215883,"42,178"
Department for Work and Pensions,Employment Programmes,29-Jul-13,WP JSA 25+ SUSTAINMENT OUTCOME PAYMENT,WWEG EP SCOTLAND WORKING LINKS,WORKING LINKS,2030370900,"42,140"
Department for Work and Pensions,Housing Benefits,12-Jul-13,HOUSING BENEFIT ADMINISTRATION,HB ENGLAND,SOUTH OXFORDSHIRE DISTRICT COUNCIL,2030215907,"41,899"
Department for Work and Pensions,Housing Benefits,12-Jul-13,HOUSING BENEFIT ADMINISTRATION,HB SCOTLAND,THE MORAY COUNCIL,2030215885,"41,888"
Department for Work and Pensions,Housing Benefits,12-Jul-13,HOUSING BENEFIT ADMINISTRATION,HB ENGLAND,ROSSENDALE BOROUGH COUNCIL,2030216048,"41,884"
Department for Work and Pensions,Corporate,23-Jul-13,NON-TREDDS IS IT APPS DEV MANDAY,CHG UC PATHFINDER DELIVERY MANAGEMENT,ACCENTURE UK LTD,2030300097,"41,841"
Department for Work and Pensions,Housing Benefits,12-Jul-13,HOUSING BENEFIT ADMINISTRATION,HB ENGLAND,SPELTHORNE BOROUGH COUNCIL,2030215720,"41,278"
Department for Work and Pensions,Housing Benefits,12-Jul-13,HOUSING BENEFIT ADMINISTRATION,HB ENGLAND,BOSTON BOROUGH COUNCIL,2030216022,"41,111"
Department for Work and Pensions,Employment Programmes,08-Jul-13,WP JSA 25+ SUSTAINMENT OUTCOME PAYMENT,WWEG EP WALES WORKING LINKS WALES,WORKING LINKS,2030145750,"41,065"
Department for Work and Pensions,Corporate,02-Jul-13,IPC FOREIGN ARREARS PAYMENTS,BALANCE SHEET,G TEGGIN,2030067452,"41,062"
Department for Work and Pensions,Housing Benefits,12-Jul-13,HOUSING BENEFIT ADMINISTRATION,HB ENGLAND,WEST OXFORDSHIRE DISTRICT COUNCIL,2030215882,"41,003"
Department for Work and Pensions,Corporate,30-Jul-13,HOSTING SERVICES,CIO ITLR HOSTING,HP ENTERPRISE SERVICES UK LTD,2030376202,"40,969"
Department for Work and Pensions,Corporate,19-Jul-13,CONTRACTORS & STAFF SUBSTITUTIONS,CHG UC PROJECT LEDGER CC,CAPITA RESOURCING LTD,2030295408,"40,887"
Department for Work and Pensions,Housing Benefits,12-Jul-13,HOUSING BENEFIT ADMINISTRATION,HB WALES,ISLE OF ANGLESEY COUNTY COUNCIL,2030216008,"40,856"
Department for Work and Pensions,Housing Benefits,12-Jul-13,HOUSING BENEFIT ADMINISTRATION,HB ENGLAND,NORTH WEST LEICESTER DISTRICT COUNCIL,2030216025,"40,850"
Department for Work and Pensions,Housing Benefits,12-Jul-13,HOUSING BENEFIT ADMINISTRATION,HB ENGLAND,WINCHESTER CITY COUNCIL,2030215776,"40,793"
Department for Work and Pensions,Corporate,23-Jul-13,NON-TREDDS IS IT APPS DEV MANDAY,CHG LA DATA SHARING PROG,IBM UNITED KINGDOM LTD,2030303655,"40,744"
Department for Work and Pensions,Child Maintenance and Enforcement Commission,19-Jul-13,PRIME UTILITIES,PRIME,DWP,2000976,"40,716"
Department for Work and Pensions,Employment Programmes,23-Jul-13,SERVICE FEE,WWEG EP CORE MWA CPA LONDON,SEETEC BUSINESS TECHNOLOGY CENTRE LTD,2030300335,"40,589"
Department for Work and Pensions,Corporate,15-Jul-13,CONTRACTORS & STAFF SUBSTITUTIONS,CHG UC PROJECT LEDGER CC,CAPITA RESOURCING LTD,2030220381,"40,527"
Department for Work and Pensions,Corporate,15-Jul-13,ICONS IS IT CONSULTANCY NON ADVICE,CHG PIP DELIVERY,BT GLOBAL SERVICES,2030220573,"40,522"
Department for Work and Pensions,Corporate,02-Jul-13,SERVICE FEE,CHG SPECIAL DISABILITY EMPLOYMENT PROGS DELP,REMPLOY LTD,1005866,"40,500"
Department for Work and Pensions,Employment Programmes,09-Jul-13,WP JSA 18-24 JOB SUSTAINMENT OUTCOME PAYMENT,WWEG EP SCOTLAND INGEUS UK,INGEUS UK LTD,2030146448,"40,460"
Department for Work and Pensions,Employment Programmes,18-Jul-13,WP JSA 25+ SUSTAINMENT OUTCOME PAYMENT,WWEG EP EAST MIDLANDS A4E,A4E LTD,2030287183,"40,420"
Department for Work and Pensions,Housing Benefits,12-Jul-13,HOUSING BENEFIT ADMINISTRATION,HB ENGLAND,WAVERLEY BOROUGH COUNCIL,2030215856,"40,318"
Department for Work and Pensions,Corporate,12-Jul-13,POSTAGE,OPS BEN BD DIRECTORS RESIDUAL,ROYAL MAIL GROUP PLC,2030216239,"40,314"
Department for Work and Pensions,Corporate,12-Jul-13,POSTAGE,F&C CD NEWCASTLE ESTATE,ROYAL MAIL GROUP PLC,2030216239,"40,278"
Department for Work and Pensions,Employment Programmes,05-Jul-13,WP JSA 25+ SUSTAINMENT OUTCOME PAYMENT,WWEG EP SOUTH EAST TV HANTS AND IOW MAXIMUS EMPLOYMENT,MAXIMUS EMPLOYMENT UK LTD,2030140085,"40,205"
Department for Work and Pensions,Housing Benefits,12-Jul-13,HOUSING BENEFIT ADMINISTRATION,HB ENGLAND,SOUTH HAMS DISTRICT COUNCIL,2030215904,"40,139"
Department for Work and Pensions,Employment Programmes,12-Jul-13,SERVICE FEE,WWEG EP SUPPORT NOTTINGHAM,INGEUS UK LTD,2030218148,"40,087"
Department for Work and Pensions,Corporate,19-Jul-13,STAFF TRAVEL,CHG ESTATES RATIONALISATION NORTH WEST,BLACKPOOL TRANSPORT SERVICE LTD,2030292948,"40,053"
Department for Work and Pensions,Housing Benefits,12-Jul-13,HOUSING BENEFIT ADMINISTRATION,HB ENGLAND,LICHFIELD DISTRICT COUNCIL,2030215851,"39,960"
Department for Work and Pensions,SHARED SERVICES,18-Jul-13,INCOME FROM MORTGAGE LENDERS,INCOME (OPERATIONS),CABINET OFFICE,2003961,"39,878"
Department for Work and Pensions,Housing Benefits,12-Jul-13,HOUSING BENEFIT ADMINISTRATION,HB WALES,MONMOUTHSHIRE COUNTY  COUNCIL,2030216028,"39,786"
Department for Work and Pensions,Child Maintenance and Enforcement Commission,15-Jul-13,TREDDS APPS DEV MANDAYS,NEW SCHEME HOSTING - DEVELOPMENT,HP ENTERPRISE SERVICES UK LTD,1000182913,"39,778"
Department for Work and Pensions,Child Maintenance and Enforcement Commission,11-Jul-13,NON PRIME PROPERTY COSTS,NON PRIME,HM REVENUE & CUSTOMS,2000974,"39,671"
Department for Work and Pensions,Employment Programmes,05-Jul-13,WP JSA 25+ JOB OUTCOME PAYMENTWP JSA 25+ JOB OUTCOME PAYMENT,WWEG EP SOUTH EAST SURR SUSSX AND KENT G4S,G4S REGIONAL MANAGEMENT UK & I LTD,2030141094,"39,600"
Department for Work and Pensions,Housing Benefits,12-Jul-13,HOUSING BENEFIT ADMINISTRATION,HB ENGLAND,TAMWORTH BOROUGH COUNCIL,2030215827,"39,467"
Department for Work and Pensions,Corporate,29-Jul-13,NON-TREDDS IS IT SERVICES (HOSTING),CIO GG CORE,ATOS ORIGIN IT SERVICES UK LTD,2030371048,"39,220"
Department for Work and Pensions,Corporate,23-Jul-13,NON-TREDDS IS IT SERVICES (HOSTING),CIO GG CORE,ATOS ORIGIN IT SERVICES UK LTD,2030301623,"39,220"
Department for Work and Pensions,Child Maintenance and Enforcement Commission,09-Jul-13,DNA TESTING,EXTERNAL CONTRACTS CENTRALLY HELD DNA,CELLMARK,1000182361,"39,213"
Department for Work and Pensions,Housing Benefits,12-Jul-13,HOUSING BENEFIT ADMINISTRATION,HB ENGLAND,COPELAND BOROUGH COUNCIL,2030215957,"39,201"
Department for Work and Pensions,Housing Benefits,12-Jul-13,HOUSING BENEFIT ADMINISTRATION,HB ENGLAND,WOKING BOROUGH COUNCIL,2030215718,"39,172"
Department for Work and Pensions,Housing Benefits,12-Jul-13,HOUSING BENEFIT ADMINISTRATION,HB SCOTLAND,STIRLING COUNCIL,2030216038,"39,167"
Department for Work and Pensions,Corporate,09-Jul-13,TREDDS APPS DEV MANDAYS,CIO NISSA OGD,HP ENTERPRISE SERVICES UK LTD,2030150486,"39,164"
Department for Work and Pensions,Employment Programmes,08-Jul-13,WP JSA 25+ SUSTAINMENT OUTCOME PAYMENT,WWEG EP WEST LONDON REED IN PARTNERSHIP,REED IN PARTNERSHIP LTD,2030143192,"39,130"
Department for Work and Pensions,Employment Programmes,05-Jul-13,WP JSA 25+ SUSTAINMENT OUTCOME PAYMENT,WWEG EP SOUTH EAST TV HANTS AND IOW A4E,A4E LTD,2030141506,"39,130"
Department for Work and Pensions,Corporate,09-Jul-13,TREDDS APPS DEV MANDAYS,OPS OPE IT REL - ISCS,HP ENTERPRISE SERVICES UK LTD,2030150486,"38,998"
Department for Work and Pensions,Corporate,17-Jul-13,NEW ENTERPRISE ALLOWANCE MENTOR MATCHING,OPS WDC WSD SE GREATER WESSEX DISTRICT OFFICE,ENTERPRISE FIRST,2030241979,"38,940"
Department for Work and Pensions,Corporate,22-Jul-13,NEW ENTERPRISE ALLOWANCE MENTOR MATCHING,OPS WDC WSD SE GREATER WESSEX DISTRICT OFFICE,ENTERPRISE FIRST,2030297544,"38,940"
Department for Work and Pensions,Employment Programmes,01-Jul-13,WP JSA 18-24 JOB SUSTAINMENT OUTCOME PAYMENT,WWEG EP SOUTH EAST SURR SUSSX AND KENT G4S,G4S REGIONAL MANAGEMENT UK & I LTD,2030066688,"38,930"
Department for Work and Pensions,Employment Programmes,01-Jul-13,WP JSA 25+ SUSTAINMENT OUTCOME PAYMENT,WWEG EP NORTH EAST AVANTA ENTERPRISE,AVANTA ENTERPRISE LTD,2030065881,"38,915"
Department for Work and Pensions,Corporate,05-Jul-13,NEW ENTERPRISE ALLOWANCE MENTOR MATCHING,OPS WDC WSD SE WESSEX DISTRICT OFFICE,OUTSET CIC,2030138186,"38,886"
Department for Work and Pensions,Corporate,25-Jul-13,NEW ENTERPRISE ALLOWANCE MENTOR MATCHING,OPS WDC WSD SE WESSEX DISTRICT OFFICE,OUTSET CIC,2030364293,"38,886"
Department for Work and Pensions,Employment Programmes,05-Jul-13,WP JSA 25+ JOB OUTCOME PAYMENTWP JSA 25+ JOB OUTCOME PAYMENT,WWEG EP SOUTH EAST TV HANTS AND IOW MAXIMUS EMPLOYMENT,MAXIMUS EMPLOYMENT UK LTD,2030140085,"38,850"
Department for Work and Pensions,Employment Programmes,29-Jul-13,WP JSA 25+ JOB OUTCOME PAYMENTWP JSA 25+ JOB OUTCOME PAYMENT,WWEG EP NORTH WEST MERS HAL CUMB AND LANCS INGEUS UK,INGEUS UK LTD,2030370735,"38,828"
Department for Work and Pensions,Housing Benefits,12-Jul-13,HOUSING BENEFIT ADMINISTRATION,HB SCOTLAND,EAST DUNBARTONSHIRE COUNCIL,2030216065,"38,732"
Department for Work and Pensions,Employment Programmes,10-Jul-13,WP JSA 25+ SUSTAINMENT OUTCOME PAYMENT,WWEG EP EAST MIDLANDS A4E,A4E LTD,2030211114,"38,700"
Department for Work and Pensions,Employment Programmes,05-Jul-13,WP JSA 25+ JOB OUTCOME PAYMENTWP JSA 25+ JOB OUTCOME PAYMENT,WWEG EP SCOTLAND WORKING LINKS,WORKING LINKS,2030141805,"38,400"
Department for Work and Pensions,Employment Programmes,23-Jul-13,WP JSA 25+ SUSTAINMENT OUTCOME PAYMENT,WWEG EP W MIDLANDS COV WARW STAFFS AND MARCHES SERCO,SERCO LTD,2030302307,"38,270"
Department for Work and Pensions,Housing Benefits,12-Jul-13,HOUSING BENEFIT ADMINISTRATION,HB ENGLAND,EAST NORTHANTS DISTRICT COUNCIL,2030215978,"38,162"
Department for Work and Pensions,Housing Benefits,12-Jul-13,HOUSING BENEFIT ADMINISTRATION,HB WALES,CEREDIGION COUNTY COUNCIL,2030215836,"38,152"
Department for Work and Pensions,Housing Benefits,12-Jul-13,HOUSING BENEFIT ADMINISTRATION,HB ENGLAND,STAFFORDSHIRE MOORLANDS DISTRICT COUNCIL,2030215828,"38,125"
Department for Work and Pensions,Corporate,22-Jul-13,NEW ENTERPRISE ALLOWANCE MENTOR MATCHING,OPS WDC WSD SE DEVON CORNWALL & SOMERSET DISTRICT,WEST DEVON BUSINESS INFORMATION POINT LTD,2030297573,"37,844"
Department for Work and Pensions,Employment Programmes,22-Jul-13,WP JSA 25+ SUSTAINMENT OUTCOME PAYMENT,WWEG EP EAST OF ENGLAND SEETEC,SEETEC BUSINESS TECHNOLOGY CENTRE LTD,2030297884,"37,840"
Department for Work and Pensions,Employment Programmes,26-Jul-13,WP JSA 25+ SUSTAINMENT OUTCOME PAYMENT,WWEG EP NORTH EAST INGEUS UK,INGEUS UK LTD,2030367031,"37,840"
Department for Work and Pensions,Employment Programmes,12-Jul-13,WP JSA 25+ SUSTAINMENT OUTCOME PAYMENT,WWEG EP EAST LONDON CAREERS DEVELOPMENT GROUP,CAREERS DEVELOPMENT GROUP,2030217805,"37,840"
Department for Work and Pensions,Housing Benefits,12-Jul-13,HOUSING BENEFIT ADMINISTRATION,HB ENGLAND,TORRIDGE DISTRICT COUNCIL,2030215878,"37,828"
Department for Work and Pensions,Housing Benefits,12-Jul-13,HOUSING BENEFIT ADMINISTRATION,HB ENGLAND,BABERGH DISTRICT COUNCIL,2030215826,"37,666"
Department for Work and Pensions,Employment Programmes,01-Jul-13,WP JSA 25+ SUSTAINMENT OUTCOME PAYMENT,WWEG EP WEST LONDON MAXIMUS EMPLOYMENT UK,MAXIMUS EMPLOYMENT UK LTD,2030066623,"37,625"
Department for Work and Pensions,Employment Programmes,12-Jul-13,WP JSA 25+ SUSTAINMENT OUTCOME PAYMENT,WWEG EP EAST LONDON SEETEC,SEETEC BUSINESS TECHNOLOGY CENTRE LTD,2030218233,"37,625"
Department for Work and Pensions,Corporate,01-Jul-13,CONTRACTED OUT OFFICE SERVICES,F&C FIN CONT DEBT CONTROL,COMMERCIAL COLLECTION SERVICES LTD,2030067006,"37,512"
Department for Work and Pensions,Corporate,26-Jul-13,CONTRACTORS & STAFF SUBSTITUTIONS,CIO ADC DIRECTOR,CAPITA RESOURCING LTD,2030366745,"37,508"
Department for Work and Pensions,Corporate,15-Jul-13,PRIME VARIABLE CHARGE,F&C CD CAXTON,TELEREAL TRILLIUM,2030221067,"37,469"
Department for Work and Pensions,Employment Programmes,09-Jul-13,WP JSA 25+ SUSTAINMENT OUTCOME PAYMENT,WWEG EP EAST LONDON CAREERS DEVELOPMENT GROUP,CAREERS DEVELOPMENT GROUP,2030150998,"37,410"
Department for Work and Pensions,Housing Benefits,12-Jul-13,HOUSING BENEFIT ADMINISTRATION,HB ENGLAND,WOKINGHAM DISTRICT COUNCIL,2030215921,"37,367"
Department for Work and Pensions,Housing Benefits,12-Jul-13,HOUSING BENEFIT ADMINISTRATION,HB ENGLAND,FAREHAM BOROUGH COUNCIL,2030215796,"37,274"
Department for Work and Pensions,Corporate,01-Jul-13,STAFF RELATED COSTS,HR EYECARE,SPECSAVERS CORPORATE EYECARE,2030064947,"37,258"
Department for Work and Pensions,Employment Programmes,22-Jul-13,WP JSA 25+ SUSTAINMENT OUTCOME PAYMENT,WWEG EP WEST LONDON REED IN PARTNERSHIP,REED IN PARTNERSHIP LTD,2030297745,"37,195"
Department for Work and Pensions,Corporate,15-Jul-13,DESKTOP SERVICES,CIO ITLR DESKTOP,HP ENTERPRISE SERVICES UK LTD,2030220887,"37,178"
Department for Work and Pensions,Housing Benefits,12-Jul-13,HOUSING BENEFIT ADMINISTRATION,HB ENGLAND,THREE RIVERS DISTRICT COUNCIL,2030215753,"37,106"
Department for Work and Pensions,Employment Programmes,09-Jul-13,WP JSA 18-24 JOB SUSTAINMENT OUTCOME PAYMENT,WWEG EP NORTH WEST GM CHES AND WARR G4S,G4S REGIONAL MANAGEMENT UK & I LTD,2030151675,"37,060"
Department for Work and Pensions,Housing Benefits,12-Jul-13,HOUSING BENEFIT ADMINISTRATION,HB ENGLAND,MID DEVON DISTRICT COUNCIL,2030215902,"37,040"
Department for Work and Pensions,Corporate,25-Jul-13,PRINTING/BINDING,F&C CD MANAGEMENT FEE,XEROX UK LTD 3W,2030364540,"37,012"
Department for Work and Pensions,Corporate,03-Jul-13,COURIER COSTS,OPS OPE CENTRAL CONTACTS,TNT UK LTD,2030115658,"36,830"
Department for Work and Pensions,Employment Programmes,25-Jul-13,WP JSA 25+ SUSTAINMENT OUTCOME PAYMENT,WWEG EP SOUTH EAST TV HANTS AND IOW A4E,A4E LTD,2030365546,"36,765"
Department for Work and Pensions,Housing Benefits,12-Jul-13,HOUSING BENEFIT ADMINISTRATION,HB ENGLAND,SOUTH LAKELAND DISTRICT COUNCIL,2030216014,"36,658"
Department for Work and Pensions,Employment Programmes,01-Jul-13,WP JSA 25+ SUSTAINMENT OUTCOME PAYMENT,WWEG EP SCOTLAND INGEUS UK,INGEUS UK LTD,2030066736,"36,550"
Department for Work and Pensions,Corporate,24-Jul-13,FSF - PARTNERSHIP GRANTS - TO HELP JSA CLIENTS INTO WORK,OPS WDC WSD WL SOUTH WEST WALES DISTRICT OFFICE,CAPITAL TRAINING GROUP,2030313244,"36,384"
Department for Work and Pensions,Employment Programmes,09-Jul-13,WP JSA 18-24 JOB SUSTAINMENT OUTCOME PAYMENT,WWEG EP SOUTH EAST SURR SUSSX AND KENT G4S,G4S REGIONAL MANAGEMENT UK & I LTD,2030151675,"36,380"
Department for Work and Pensions,Employment Programmes,02-Jul-13,WP JSA 25+ SUSTAINMENT OUTCOME PAYMENT,WWEG EP EAST OF ENGLAND SEETEC,SEETEC BUSINESS TECHNOLOGY CENTRE LTD,2030070860,"36,335"
Department for Work and Pensions,Housing Benefits,12-Jul-13,HOUSING BENEFIT ADMINISTRATION,HB ENGLAND,RUSHCLIFFE BOROUGH COUNCIL,2030215707,"36,197"
Department for Work and Pensions,Employment Programmes,22-Jul-13,WP JSA 25+ SUSTAINMENT OUTCOME PAYMENT,WWEG EP SOUTH EAST TV HANTS AND IOW MAXIMUS EMPLOYMENT,MAXIMUS EMPLOYMENT UK LTD,2030298397,"36,120"
Department for Work and Pensions,Employment Programmes,19-Jul-13,WP JSA 25+ JOB OUTCOME PAYMENTWP JSA 25+ JOB OUTCOME PAYMENT,WWEG EP EAST OF ENGLAND INGEUS UK,INGEUS UK LTD,2030292881,"36,000"
Department for Work and Pensions,Housing Benefits,12-Jul-13,HOUSING BENEFIT ADMINISTRATION,HB ENGLAND,EAST CAMBRIDGESHIRE DISTRICT COUNCIL,2030216051,"35,737"
Department for Work and Pensions,Corporate,02-Jul-13,NON-TREDDS APPS DEV FIXED PRICE CONTRACTS,CIO AD HOC ITLR PROJECTS,CAPGEMINI UK PLC,2030073535,"35,725"
Department for Work and Pensions,Employment Programmes,29-Jul-13,WP JSA 25+ SUSTAINMENT OUTCOME PAYMENT,WWEG EP WEST LONDON REED IN PARTNERSHIP,REED IN PARTNERSHIP LTD,2030370038,"35,690"
Department for Work and Pensions,Child Maintenance and Enforcement Commission,16-Jul-13,TREDDS APPS DEV MANDAYS,NEW SCHEME HOSTING - DEVELOPMENT,HP ENTERPRISE SERVICES UK LTD,1000183035,"35,617"
Department for Work and Pensions,Housing Benefits,12-Jul-13,HOUSING BENEFIT ADMINISTRATION,HB ENGLAND,FYLDE BOROUGH COUNCIL,2030216011,"35,570"
Department for Work and Pensions,Corporate,24-Jul-13,FSF - TRAINING PAYMENTS TO PROVIDERS - JSA JOBSEEKERS,OPS WDC WSD LN BEDS AND HERTS DISTRICT OFFICE,SEETEC,2030328153,"35,555"
Department for Work and Pensions,Employment Programmes,19-Jul-13,WP JSA 25+ SUSTAINMENT OUTCOME PAYMENT,WWEG EP EAST OF ENGLAND SEETEC,SEETEC BUSINESS TECHNOLOGY CENTRE LTD,2030295420,"35,475"
Department for Work and Pensions,Housing Benefits,12-Jul-13,HOUSING BENEFIT ADMINISTRATION,HB ENGLAND,HAMBLETON DISTRICT COUNCIL,2030215951,"35,436"
Department for Work and Pensions,Employment Programmes,01-Jul-13,WP JSA 25+ SUSTAINMENT OUTCOME PAYMENT,WWEG EP WEST LONDON REED IN PARTNERSHIP,REED IN PARTNERSHIP LTD,2030066956,"35,260"
Department for Work and Pensions,Housing Benefits,12-Jul-13,HOUSING BENEFIT ADMINISTRATION,HB ENGLAND,RUNNYMEDE BOROUGH COUNCIL,2030215736,"35,225"
Department for Work and Pensions,Housing Benefits,12-Jul-13,HOUSING BENEFIT ADMINISTRATION,HB ENGLAND,COTSWOLD DISTRICT COUNCIL,2030215745,"35,098"
Department for Work and Pensions,Employment Programmes,02-Jul-13,WP JSA 25+ SUSTAINMENT OUTCOME PAYMENT,WWEG EP S WEST DEV COR DOR AND SOM WORKING LINKS,WORKING LINKS,2030072880,"35,045"
Department for Work and Pensions,Employment Programmes,01-Jul-13,WP JSA 18-24 JOB SUSTAINMENT OUTCOME PAYMENT,WWEG EP NORTH WEST GM CHES AND WARR G4S,G4S REGIONAL MANAGEMENT UK & I LTD,2030066688,"35,020"
Department for Work and Pensions,Housing Benefits,12-Jul-13,HOUSING BENEFIT ADMINISTRATION,HB ENGLAND,SOUTH DERBYSHIRE DISTRICT COUNCIL,2030215832,"34,965"
Department for Work and Pensions,Employment Programmes,18-Jul-13,WP JSA 25+ SUSTAINMENT OUTCOME PAYMENT,WWEG EP SOUTH EAST TV HANTS AND IOW A4E,A4E LTD,2030287183,"34,830"
Department for Work and Pensions,Employment Programmes,29-Jul-13,WP JSA 25+ SUSTAINMENT OUTCOME PAYMENT,WWEG EP W MIDLANDS COV WARW STAFFS AND MARCHES SERCO,SERCO LTD,2030370996,"34,830"
Department for Work and Pensions,Housing Benefits,12-Jul-13,HOUSING BENEFIT ADMINISTRATION,HB ENGLAND,TEWKESBURY BOROUGH COUNCIL,2030215800,"34,702"
Department for Work and Pensions,Employment Programmes,29-Jul-13,WP JSA 25+ SUSTAINMENT OUTCOME PAYMENT,WWEG EP EAST OF ENGLAND SEETEC,SEETEC BUSINESS TECHNOLOGY CENTRE LTD,2030372196,"34,400"
Department for Work and Pensions,Employment Programmes,01-Jul-13,WP JSA 25+ SUSTAINMENT OUTCOME PAYMENT,WWEG EP EAST OF ENGLAND INGEUS UK,INGEUS UK LTD,2030066736,"34,400"
Department for Work and Pensions,Corporate,15-Jul-13,PRIME BILLABLE EXTRAS PRIME CONTRACT MANAGEMENT (PCM),CHG ESTATES RATIONALISATION LEEDS,TELEREAL TRILLIUM,2030221069,"34,350"
Department for Work and Pensions,Employment Programmes,10-Jul-13,ACCESS TO WORK - PAYMENT FOR SUPPORT WORKERS,WWEG EP LONDON REGION,COMMUNICATION ID,2030210551,"34,292"
Department for Work and Pensions,Employment Programmes,04-Jul-13,ACCESS TO WORK - TRAVEL TO WORK,WWEG EP NORTH EAST,BT DONALD,2030137033,"34,213"
Department for Work and Pensions,Employment Programmes,24-Jul-13,WP JSA 25+ SUSTAINMENT OUTCOME PAYMENT,WWEG EP SCOTLAND WORKING LINKS,WORKING LINKS,2030326289,"34,185"
Department for Work and Pensions,Employment Programmes,15-Jul-13,WP JSA 25+ SUSTAINMENT OUTCOME PAYMENT,WWEG EP WEST LONDON REED IN PARTNERSHIP,REED IN PARTNERSHIP LTD,2030220734,"34,185"
Department for Work and Pensions,Employment Programmes,09-Jul-13,WP JSA 25+ SUSTAINMENT OUTCOME PAYMENT,WWEG EP NORTH WEST GM CHES AND WARR AVANTA ENTERPRISE,AVANTA ENTERPRISE LTD,2030147866,"34,185"
Department for Work and Pensions,Corporate,23-Jul-13,FSF - SUPPORT CONTRACT MODULES FOR JSA JOBSEEKERS,OPS WDC WSD CE BLACK COUNTRY DISTRICT OFFICE,A4E LTD,2030299985,"34,120"
Department for Work and Pensions,Child Maintenance and Enforcement Commission,18-Jul-13,TREDDS IS IT CONSULTANCY (HOSTING) NON ADVICE,FUTURE SYSTEM IT RUNNING COSTS - IOL,HP ENTERPRISE SERVICES UK LTD,1000183439,"34,102"
Department for Work and Pensions,Employment Programmes,09-Jul-13,WP JSA 18-24 JOB SUSTAINMENT OUTCOME PAYMENT,WWEG EP EAST MIDLANDS INGEUS UK,INGEUS UK LTD,2030146448,"34,000"
Department for Work and Pensions,Employment Programmes,19-Jul-13,WP JSA 25+ SUSTAINMENT OUTCOME PAYMENT,WWEG EP WEST YORKSHIRE INGEUS UK,INGEUS UK LTD,2030292881,"33,970"
Department for Work and Pensions,Employment Programmes,09-Jul-13,WP JSA 25+ SUSTAINMENT OUTCOME PAYMENT,WWEG EP SCOTLAND WORKING LINKS,WORKING LINKS,2030146518,"33,970"
Department for Work and Pensions,Corporate,23-Jul-13,NEW ENTERPRISE ALLOWANCE MENTOR MATCHING,OPS WDC WSD LN ESSEX DISTRICT OFFICE,IXION HOLDINGS LTD,2030303051,"33,900"
Department for Work and Pensions,Employment Programmes,12-Jul-13,WP JSA 18-24 JOB SUSTAINMENT OUTCOME PAYMENT,WWEG EP NORTH WEST GM CHES AND WARR SEETEC,SEETEC BUSINESS TECHNOLOGY CENTRE LTD,2030218233,"33,830"
Department for Work and Pensions,Employment Programmes,26-Jul-13,WP JSA 25+ SUSTAINMENT OUTCOME PAYMENT,WWEG EP W MIDLANDS BIRM SOL BC FOURSTAR EMP AND SKILLS,EOS WORKS LTD,2030366618,"33,755"
Department for Work and Pensions,Employment Programmes,09-Jul-13,WP JSA 25+ SUSTAINMENT OUTCOME PAYMENT,WWEG EP EAST LONDON A4E,A4E LTD,2030146577,"33,755"
Department for Work and Pensions,Employment Programmes,09-Jul-13,WP JSA 18-24 JOB SUSTAINMENT OUTCOME PAYMENT,WWEG EP EAST OF ENGLAND INGEUS UK,INGEUS UK LTD,2030146448,"33,660"
Department for Work and Pensions,Corporate,15-Jul-13,CONTRACTORS & STAFF SUBSTITUTIONS,CHG IT TRANSFORMATION PROG,CAPITA RESOURCING LTD,2030220381,"33,619"
Department for Work and Pensions,Employment Programmes,29-Jul-13,WP JSA 25+ JOB OUTCOME PAYMENTWP JSA 25+ JOB OUTCOME PAYMENT,WWEG EP EAST MIDLANDS INGEUS UK,INGEUS UK LTD,2030370735,"33,600"
Department for Work and Pensions,Child Maintenance and Enforcement Commission,12-Jul-13,CIVIL SERVICE OCCUPATIONAL HEALTH SERVICE,CS CENTRALLY HELD BUDGETS BANK CHARGES,RIGHT CORECARE,1000182875,"33,597"
Department for Work and Pensions,Housing Benefits,12-Jul-13,HOUSING BENEFIT ADMINISTRATION,HB ENGLAND,EAST DORSET DISTRICT COUNCIL,2030215814,"33,596"
Department for Work and Pensions,Employment Programmes,30-Jul-13,WP JSA 25+ SUSTAINMENT OUTCOME PAYMENT,WWEG EP NORTH EAST AVANTA ENTERPRISE,AVANTA ENTERPRISE LTD,2030376177,"33,540"
Department for Work and Pensions,Employment Programmes,19-Jul-13,WP JSA 25+ SUSTAINMENT OUTCOME PAYMENT,WWEG EP SCOTLAND WORKING LINKS,WORKING LINKS,2030293102,"33,540"
Department for Work and Pensions,Employment Programmes,10-Jul-13,WP JSA 25+ SUSTAINMENT OUTCOME PAYMENT,WWEG EP SOUTH EAST TV HANTS AND IOW A4E,A4E LTD,2030211114,"33,540"
Department for Work and Pensions,Employment Programmes,05-Jul-13,WP JSA 25+ SUSTAINMENT OUTCOME PAYMENT,WWEG EP EAST MIDLANDS A4E,A4E LTD,2030141506,"33,540"
Department for Work and Pensions,Employment Programmes,12-Jul-13,WP JSA 18-24 JOB SUSTAINMENT OUTCOME PAYMENT,WWEG EP EAST OF ENGLAND SEETEC,SEETEC BUSINESS TECHNOLOGY CENTRE LTD,2030218233,"33,490"
Department for Work and Pensions,Corporate,29-Jul-13,STAFF TRAINING VAT RECOVERABLE,HR CONTRACTUAL L AND D,CAPITA CIVIL SERVICE LEARNING,2030370545,"33,346"
Department for Work and Pensions,Employment Programmes,16-Jul-13,WP JSA 25+ SUSTAINMENT OUTCOME PAYMENT,WWEG EP SCOTLAND WORKING LINKS,WORKING LINKS,2030224612,"33,325"
Department for Work and Pensions,Employment Programmes,01-Jul-13,WP JSA 25+ SUSTAINMENT OUTCOME PAYMENT,WWEG EP NORTH EAST Y AND H G4S,G4S REGIONAL MANAGEMENT UK & I LTD,2030066688,"33,325"
Department for Work and Pensions,Employment Programmes,01-Jul-13,WP JSA 25+ SUSTAINMENT OUTCOME PAYMENT,WWEG EP SOUTH EAST TV HANTS AND IOW MAXIMUS EMPLOYMENT,MAXIMUS EMPLOYMENT UK LTD,2030066623,"33,325"
Department for Work and Pensions,Housing Benefits,12-Jul-13,HOUSING BENEFIT ADMINISTRATION,HB ENGLAND,SELBY DISTRICT COUNCIL,2030215973,"33,303"
Department for Work and Pensions,Employment Programmes,15-Jul-13,ACCESS TO WORK - TRAVEL IN WORK,WWEG EP NORTH EAST,CAPITA SYMONDS LTD,2030220073,"33,282"
Department for Work and Pensions,Corporate,22-Jul-13,CONTRACTED OUT OFFICE SERVICES,CHG APPEALS REFORM,HMCTS,2003978,"33,270"
Department for Work and Pensions,Housing Benefits,12-Jul-13,HOUSING BENEFIT ADMINISTRATION,HB SCOTLAND,CLACKMANNANSHIRE COUNCIL,2030215971,"33,249"
Department for Work and Pensions,Employment Programmes,09-Jul-13,WP JSA 25+ SUSTAINMENT OUTCOME PAYMENT,WWEG EP EAST OF ENGLAND SEETEC,SEETEC BUSINESS TECHNOLOGY CENTRE LTD,2030149955,"33,110"
Department for Work and Pensions,Corporate,19-Jul-13,ADEP AM SERVICES - VAT NON-RECOVERABLE,CHG PAYMENT DEDUCTION PROG,IBM UNITED KINGDOM LTD,2030293540,"33,041"
Department for Work and Pensions,Corporate,31-Jul-13,PRIME BUSINESS RATES,F&C CD SHEFFIELD KINGS COURT,TELEREAL TRILLIUM,2030435834,"33,005"
Department for Work and Pensions,Employment Programmes,12-Jul-13,WP JSA 18-24 JOB SUSTAINMENT OUTCOME PAYMENT,WWEG EP EAST MIDLANDS INGEUS UK,INGEUS UK LTD,2030218148,"32,980"
Department for Work and Pensions,Corporate,04-Jul-13,PIP FACE TO FACE ASSESSMENTS,OPS CCS PIP LOT 1,ATOS IT SERVICES UK LTD,2030134808,"32,975"
Department for Work and Pensions,Housing Benefits,12-Jul-13,HOUSING BENEFIT ADMINISTRATION,HB ENGLAND,BLABY DISTRICT COUNCIL,2030216060,"32,922"
Department for Work and Pensions,Employment Programmes,08-Jul-13,WP JSA 25+ SUSTAINMENT OUTCOME PAYMENT,WWEG EP W MIDLANDS BIRM SOL BC FOURSTAR EMP AND SKILLS,EOS WORKS LTD,2030143541,"32,895"
Department for Work and Pensions,Child Maintenance and Enforcement Commission,16-Jul-13,TREDDS APPS DEV MANDAYS,LEGACY SYSTEMS IT RUNNING COSTS - DIRECT,HP ENTERPRISE SERVICES UK LTD,1000183035,"32,839"
Department for Work and Pensions,Employment Programmes,08-Jul-13,WP JSA CLAIMING 22 OF 24MTHS SUSTAINMENT OUTCOME PAYMENT,WWEG EP W MIDLANDS BIRM SOL BC FOURSTAR EMP AND SKILLS,EOS WORKS LTD,2030143541,"32,750"
Department for Work and Pensions,SHARED SERVICES,15-Jul-13,TREDDS APPS DEV MANDAYS,FAP COF,HP ENTERPRISE SERVICES UK LTD,2030220887,"32,693"
Department for Work and Pensions,Employment Programmes,19-Jul-13,WP JSA 25+ SUSTAINMENT OUTCOME PAYMENT,WWEG EP NORTH EAST INGEUS UK,INGEUS UK LTD,2030292881,"32,680"
Department for Work and Pensions,Employment Programmes,16-Jul-13,WP JSA 25+ SUSTAINMENT OUTCOME PAYMENT,WWEG EP EAST OF ENGLAND SEETEC,SEETEC BUSINESS TECHNOLOGY CENTRE LTD,2030224937,"32,680"
Department for Work and Pensions,Child Maintenance and Enforcement Commission,15-Jul-13,TREDDS APPS DEV MANDAYS,MI PROJECT WAREHOUSE,HP ENTERPRISE SERVICES UK LTD,1000182913,"32,670"
Department for Work and Pensions,Employment Programmes,12-Jul-13,WP JSA 25+ SUSTAINMENT OUTCOME PAYMENT,WWEG EP W MIDLANDS COV WARW STAFFS AND MARCHES SERCO,SERCO LTD,2030216678,"32,465"
Department for Work and Pensions,Housing Benefits,12-Jul-13,HOUSING BENEFIT ADMINISTRATION,HB ENGLAND,BROMSGROVE DISTRICT COUNCIL,2030215775,"32,335"
Department for Work and Pensions,Employment Programmes,10-Jul-13,WP JSA 25+ SUSTAINMENT OUTCOME PAYMENT,WWEG EP EAST LONDON CAREERS DEVELOPMENT GROUP,CAREERS DEVELOPMENT GROUP,2030211207,"32,250"
Department for Work and Pensions,Housing Benefits,12-Jul-13,HOUSING BENEFIT ADMINISTRATION,HB ENGLAND,MALVERN HILLS DISTRICT COUNCIL,2030216039,"32,192"
Department for Work and Pensions,Employment Programmes,10-Jul-13,WP JSA 25+ SUSTAINMENT OUTCOME PAYMENT,WWEG EP W MIDLANDS BIRM SOL BC NEWCASTLE COLLEGE GROUP,NEWCASTLE COLLEGE GROUP,2030209813,"32,035"
Department for Work and Pensions,Employment Programmes,08-Jul-13,WP JSA CLAIMING 22 OF 24MTHS SUSTAINMENT OUTCOME PAYMENT,WWEG EP WALES WORKING LINKS WALES,WORKING LINKS,2030145750,"32,000"
Department for Work and Pensions,Housing Benefits,12-Jul-13,HOUSING BENEFIT ADMINISTRATION,HB ENGLAND,MID SUFFOLK DISTRICT COUNCIL,2030215805,"31,976"
Department for Work and Pensions,Employment Programmes,05-Jul-13,WP JSA 25+ JOB OUTCOME PAYMENTWP JSA 25+ JOB OUTCOME PAYMENT,WWEG EP NORTH EAST AVANTA ENTERPRISE,AVANTA ENTERPRISE LTD,2030137624,"31,920"
Department for Work and Pensions,European Social Fund,31-Jul-13,MA ESF(D) PROGRAMME EXPENDITURE EC PREFUNDED THIRD PARTIES,WWEG EUROPEAN SOCIAL FUND PROGRAMME 2007-2013,GROUNDWORK UK,5000001427,"31,901"
Department for Work and Pensions,Corporate,05-Jul-13,TREDDS APPS DEV FIXED PRICE CONTRACTS,CHG ELECTRONIC SIGNING,HP ENTERPRISE SERVICES UK LTD,2030140285,"31,679"
Department for Work and Pensions,Employment Programmes,17-Jul-13,RESIDENTIAL TRAINING COSTS,WWEG EP DELIVERY WELFARE TO WORK PRODUCT SUPPORT,RNIB ROYAL NATIONAL INSTITUTE FOR THE BLIND,2030245763,"31,661"
Department for Work and Pensions,Corporate,12-Jul-13,PUBLICITY TRANS/ALT,OPS PEN PS INTERNATIONAL FUTURE AND SPECIALIST PC,XEROX UK LTD 3W,2030218369,"31,633"
Department for Work and Pensions,Employment Programmes,26-Jul-13,WP JSA 25+ SUSTAINMENT OUTCOME PAYMENT,WWEG EP WEST YORKSHIRE BEST LTD,INTERSERVE WORKING FUTURES,2030367568,"31,605"
Department for Work and Pensions,Employment Programmes,18-Jul-13,WP JSA 25+ SUSTAINMENT OUTCOME PAYMENT,WWEG EP EAST OF ENGLAND SEETEC,SEETEC BUSINESS TECHNOLOGY CENTRE LTD,2030288712,"31,605"
Department for Work and Pensions,Employment Programmes,10-Jul-13,WP JSA 25+ SUSTAINMENT OUTCOME PAYMENT,WWEG EP EAST OF ENGLAND INGEUS UK,INGEUS UK LTD,2030211125,"31,605"
Department for Work and Pensions,Employment Programmes,03-Jul-13,WP JSA 25+ SUSTAINMENT OUTCOME PAYMENT,WWEG EP SCOTLAND WORKING LINKS,WORKING LINKS,2030107869,"31,605"
Department for Work and Pensions,Corporate,05-Jul-13,CONTRACTORS & STAFF SUBSTITUTIONS,CHG IT TRANSFORMATION PROG,CAPITA RESOURCING LTD,2030140266,"31,573"
Department for Work and Pensions,Housing Benefits,12-Jul-13,HOUSING BENEFIT ADMINISTRATION,HB ENGLAND,ADUR DISTRICT COUNCIL,2030215696,"31,515"
Department for Work and Pensions,Housing Benefits,12-Jul-13,HOUSING BENEFIT ADMINISTRATION,HB ENGLAND,ROCHFORD DISTRICT COUNCIL,2030215822,"31,486"
Department for Work and Pensions,Employment Programmes,10-Jul-13,WP JSA 25+ SUSTAINMENT OUTCOME PAYMENT,WWEG EP SCOTLAND INGEUS UK,INGEUS UK LTD,2030211125,"31,390"
Department for Work and Pensions,Corporate,12-Jul-13,APPS DEV INDEX ARR,CHG CP BENEFIT ENQUIRY SERVICE ONLINE,HP ENTERPRISE SERVICES UK LTD,2030216715,"31,354"
Department for Work and Pensions,Corporate,09-Jul-13,FSF - SUPPORT CONTRACT MODULES FOR JSA JOBSEEKERS,OPS WDC WSD NE DURHAM AND TEES VALLEY DISTRICT OFFICE,SENCIA LTD,2030147385,"31,333"
Department for Work and Pensions,Corporate,10-Jul-13,RECURRENT PUBLICITY,CHG ERSP COMMS,M4C,2030209707,"31,309"
Department for Work and Pensions,Employment Programmes,08-Jul-13,WP JSA 18-24 JOB SUSTAINMENT OUTCOME PAYMENT,WWEG EP SCOTLAND WORKING LINKS,WORKING LINKS,2030145750,"31,280"
Department for Work and Pensions,Employment Programmes,15-Jul-13,WP JSA 25+ SUSTAINMENT OUTCOME PAYMENT,WWEG EP EAST LONDON CAREERS DEVELOPMENT GROUP,CAREERS DEVELOPMENT GROUP,2030219215,"31,175"
Department for Work and Pensions,Employment Programmes,12-Jul-13,SERVICE FEE,WWEG EP SUPPORT GLASGOW,REED IN PARTNERSHIP LTD,2030216560,"31,164"
Department for Work and Pensions,Employment Programmes,26-Jul-13,WP JSA 18-24 JOB SUSTAINMENT OUTCOME PAYMENT,WWEG EP SCOTLAND INGEUS UK,INGEUS UK LTD,2030367031,"31,110"
Department for Work and Pensions,Corporate,02-Jul-13,NEW ENTERPRISE ALLOWANCE MENTOR MATCHING,OPS WDC WSD NE DURHAM AND TEES VALLEY DISTRICT OFFICE,NORTH EAST ENTERPRISE AGENCIES LTD,2030072397,"31,086"
Department for Work and Pensions,Employment Programmes,09-Jul-13,WP JSA CLAIMING 22 OF 24MTHS SUSTAINMENT OUTCOME PAYMENT,WWEG EP NORTH WEST GM CHES AND WARR SEETEC,SEETEC BUSINESS TECHNOLOGY CENTRE LTD,2030149955,"31,000"
Department for Work and Pensions,Housing Benefits,12-Jul-13,HOUSING BENEFIT ADMINISTRATION,HB ENGLAND,FOREST HEATH DISTRICT COUNCIL,2030215807,"30,974"
Department for Work and Pensions,Employment Programmes,16-Jul-13,WP JSA 25+ SUSTAINMENT OUTCOME PAYMENT,WWEG EP S WEST DEV COR DOR AND SOM WORKING LINKS,WORKING LINKS,2030224612,"30,960"
Department for Work and Pensions,Employment Programmes,12-Jul-13,WP JSA 18-24 JOB SUSTAINMENT OUTCOME PAYMENT,WWEG EP SCOTLAND INGEUS UK,INGEUS UK LTD,2030218148,"30,940"
Department for Work and Pensions,Employment Programmes,10-Jul-13,WP JSA 25+ SUSTAINMENT OUTCOME PAYMENT,WWEG EP W MIDLANDS COV WARW STAFFS AND MARCHES SERCO,SERCO LTD,2030210316,"30,745"
Department for Work and Pensions,Employment Programmes,09-Jul-13,WP JSA 25+ SUSTAINMENT OUTCOME PAYMENT,WWEG EP NORTH EAST Y AND H G4S,G4S REGIONAL MANAGEMENT UK & I LTD,2030151675,"30,745"
Department for Work and Pensions,Employment Programmes,15-Jul-13,WP JSA 25+ SUSTAINMENT OUTCOME PAYMENT,WWEG EP SCOTLAND WORKING LINKS,WORKING LINKS,2030221246,"30,745"
Department for Work and Pensions,Employment Programmes,01-Jul-13,ACCESS TO WORK - TRAVEL IN WORK,WWEG EP NORTH EAST,CAPITA SYMONDS LTD,2030066606,"30,702"
Department for Work and Pensions,Corporate,12-Jul-13,SOC SEC RESEARCH BUDGET,PSG ANALYSIS CAD,TNS BMRB,2030216225,"30,647"
Department for Work and Pensions,Corporate,26-Jul-13,RECURRENT PUBLICITY,CHG ERSP COMMS,M4C,2030366799,"30,514"
Department for Work and Pensions,Employment Programmes,16-Jul-13,SERVICE FEE,WWEG EP CORE MWA CPA LONDON,SEETEC BUSINESS TECHNOLOGY CENTRE LTD,2030224937,"30,442"
Department for Work and Pensions,Corporate,17-Jul-13,FSF - SUPPORT CONTRACT MODULES FOR JSA JOBSEEKERS,OPS WDC WSD LN KENT DISTRICT OFFICE,PINNACLE PEOPLE,2030241671,"30,421"
Department for Work and Pensions,Housing Benefits,12-Jul-13,HOUSING BENEFIT ADMINISTRATION,HB ENGLAND,TANDRIDGE DISTRICT COUNCIL,2030215857,"30,380"
Department for Work and Pensions,Corporate,16-Jul-13,NON-TREDDS IS IT APPS DEV MANDAY,CHG DELIVERING THE IRIS ORGANISATION,CAPGEMINI UK PLC,2030222382,"30,223"
Department for Work and Pensions,Corporate,12-Jul-13,NON-TREDDS IS IT APPS DEV MANDAY,CHG DEV OF BUSINESS CRITICAL SMALL SYSTEMS,CAPGEMINI UK PLC,2030216716,"30,214"
Department for Work and Pensions,Housing Benefits,12-Jul-13,HOUSING BENEFIT ADMINISTRATION,HB ENGLAND,CHILTERN DISTRICT COUNCIL,2030215741,"30,120"
Department for Work and Pensions,Corporate,18-Jul-13,STAFF RELATED COSTS,HR EYECARE,SPECSAVERS CORPORATE EYECARE,2030291150,"30,033"
Department for Work and Pensions,Employment Programmes,22-Jul-13,WP JSA 25+ JOB OUTCOME PAYMENTWP JSA 25+ JOB OUTCOME PAYMENT,WWEG EP SCOTLAND WORKING LINKS,WORKING LINKS,2030297091,"30,000"
Department for Work and Pensions,Corporate,08-Jul-13,FSF - TRAINING PAYMENTS TO PROVIDERS - JSA JOBSEEKERS,OPS WDC WSD SC EAST AND SOUTH EAST SCOTLAND DO,COALFIELDS REGENERATION TRUST,2030145020,"30,000"
Department for Work and Pensions,Corporate,02-Jul-13,CIVIL SERVICE OCCUPATIONAL HEALTH SERVICE,PSG HEALTH AND WELLBEING,WELSH ASSEMBLY GOVERNMENT,2030069431,"30,000"
Department for Work and Pensions,Employment Programmes,01-Jul-13,WP JSA 25+ JOB OUTCOME PAYMENTWP JSA 25+ JOB OUTCOME PAYMENT,WWEG EP SOUTH EAST SURR SUSSX AND KENT G4S,G4S REGIONAL MANAGEMENT UK & I LTD,2030066688,"30,000"
Department for Work and Pensions,Housing Benefits,12-Jul-13,HOUSING BENEFIT ADMINISTRATION,HB ENGLAND,DAVENTRY DISTRICT COUNCIL,2030215979,"29,968"
Department for Work and Pensions,Corporate,05-Jul-13,PRIME UTILITIES INITIATIVES COSTS,F&C CD UTILITIES INITIATIVES COSTS,TRILLIUM PRIME LTD,2030141520,"29,959"
Department for Work and Pensions,Employment Programmes,12-Jul-13,WP JSA 18-24 JOB SUSTAINMENT OUTCOME PAYMENT,WWEG EP EAST OF ENGLAND INGEUS UK,INGEUS UK LTD,2030218148,"29,920"
Department for Work and Pensions,Employment Programmes,24-Jul-13,WP JSA 25+ SUSTAINMENT OUTCOME PAYMENT,WWEG EP EAST OF ENGLAND SEETEC,SEETEC BUSINESS TECHNOLOGY CENTRE LTD,2030307905,"29,885"
Department for Work and Pensions,Employment Programmes,09-Jul-13,WP JSA 25+ SUSTAINMENT OUTCOME PAYMENT,WWEG EP NORTH WEST MERS HAL CUMB AND LANCS A4E,A4E LTD,2030146577,"29,885"
Department for Work and Pensions,Housing Benefits,12-Jul-13,HOUSING BENEFIT ADMINISTRATION,HB ENGLAND,MOLE VALLEY DISTRICT COUNCIL,2030215738,"29,868"
Department for Work and Pensions,Housing Benefits,12-Jul-13,HOUSING BENEFIT ADMINISTRATION,HB ENGLAND,NORTH WARWICKSHIRE DISTRICT COUNCIL,2030215717,"29,767"
Department for Work and Pensions,Employment Programmes,26-Jul-13,WP JSA 18-24 JOB SUSTAINMENT OUTCOME PAYMENT,WWEG EP EAST MIDLANDS INGEUS UK,INGEUS UK LTD,2030367031,"29,750"
Department for Work and Pensions,Child Maintenance and Enforcement Commission,18-Jul-13,NON-TREDDS IS IT SERVICES (AMS),NEW SCHEME SECURITY AND PROTECTIVE MONITORING,S COM GROUP LTD,1000183389,"29,698"
Department for Work and Pensions,Employment Programmes,25-Jul-13,WP JSA 25+ SUSTAINMENT OUTCOME PAYMENT,WWEG EP WEST YORKSHIRE BEST LTD,INTERSERVE WORKING FUTURES,2030363427,"29,670"
Department for Work and Pensions,Employment Programmes,25-Jul-13,WP JSA 25+ JOB OUTCOME PAYMENTWP JSA 25+ JOB OUTCOME PAYMENT,WWEG EP WEST LONDON REED IN PARTNERSHIP,REED IN PARTNERSHIP LTD,2030364129,"29,640"
Department for Work and Pensions,Corporate,05-Jul-13,FSF - TRAINING PAYMENTS TO PROVIDERS - JSA JOBSEEKERS,OPS WDC WSD SE GLOUCESTERSHIRE AND WEST OF ENGLAND DO,GFIRST LTD,2030138306,"29,600"
Department for Work and Pensions,European Social Fund,05-Jul-13,MA ESF(D) PROGRAMME EXPENDITURE EC PREFUNDED THIRD PARTIES,WWEG EUROPEAN SOCIAL FUND PROGRAMME 2007-2013,TOWER HAMLETS COUNCIL FOR VOLUNTARY SERVICE,5000001404,"29,527"
Department for Work and Pensions,Corporate,08-Jul-13,NON PRIME PROPERTY COSTS,CHG UC BUSINESS & IT SOLUTIONS,HP ENTERPRISE SERVICES UK LTD,2030143475,"29,511"
Department for Work and Pensions,Corporate,09-Jul-13,NON-TREDDS APPS DEV FIXED PRICE CONTRACTS,OPS OPE IT FUTURE PENSIONS,CAPGEMINI UK PLC,2030150734,"29,473"
Department for Work and Pensions,Employment Programmes,01-Jul-13,WP JSA 25+ SUSTAINMENT OUTCOME PAYMENT,WWEG EP WEST LONDON INGEUS UK,INGEUS UK LTD,2030066736,"29,455"
Department for Work and Pensions,Corporate,29-Jul-13,FSF - PARTNERSHIP GRANTS - TO HELP JSA CLIENTS INTO WORK,OPS WDC WSD SE GREATER WESSEX DISTRICT OFFICE,WILTSHIRE COUNCIL,2030371975,"29,400"
Department for Work and Pensions,Employment Programmes,05-Jul-13,WP JSA 25+ SUSTAINMENT OUTCOME PAYMENT,WWEG EP WEST LONDON MAXIMUS EMPLOYMENT UK,MAXIMUS EMPLOYMENT UK LTD,2030140085,"28,810"
Department for Work and Pensions,Corporate,26-Jul-13,DWD  INITIATIVES PAYMENTS,CHG SPECIAL DISABILITY EMPLOYMENT PROGS DELP,R LINK LTD,2030366653,"28,800"
Department for Work and Pensions,Corporate,31-Jul-13,PRIME FACILITY PRICE,F&C CD NOTTINGHAM EQUINOX HOUSE DEL A,TELEREAL TRILLIUM,2030386813,"28,694"
Department for Work and Pensions,Housing Benefits,12-Jul-13,HOUSING BENEFIT ADMINISTRATION,HB ENGLAND,NORTH DORSET DISTRICT COUNCIL,2030215876,"28,644"
Department for Work and Pensions,Corporate,17-Jul-13,SOC SEC RESEARCH BUDGET,PSG ANALYSIS CAD,NATIONAL CENTRE FOR SOCIAL RESEARCH,2030238084,"28,600"
Department for Work and Pensions,Employment Programmes,26-Jul-13,WP JSA 25+ SUSTAINMENT OUTCOME PAYMENT,WWEG EP NORTH WEST GM CHES AND WARR AVANTA ENTERPRISE,AVANTA ENTERPRISE LTD,2030369099,"28,595"
Department for Work and Pensions,Employment Programmes,08-Jul-13,WP JSA 25+ SUSTAINMENT OUTCOME PAYMENT,WWEG EP EAST OF ENGLAND INGEUS UK,INGEUS UK LTD,2030145747,"28,595"
Department for Work and Pensions,Corporate,23-Jul-13,NEW ENTERPRISE ALLOWANCE MENTOR MATCHING,OPS WDC WSD CE LEICESTERSHIRE AND NORTHAMPTONSHIRE DO,PINNACLE PEOPLE,2030303416,"28,550"
Department for Work and Pensions,Corporate,31-Jul-13,CIVIL SERVICE OCCUPATIONAL HEALTH SERVICE,HR OHS,ATOS ORIGIN IT SERVICES UK,2030433935,"28,515"
Department for Work and Pensions,Child Maintenance and Enforcement Commission,03-Jul-13,NON-TREDDS IS IT APPS DEV MANDAY,MI PROJECT WAREHOUSE,CAPGEMINI UK PLC,1001363,"28,424"
Department for Work and Pensions,Corporate,23-Jul-13,DESKTOP SERVICES,CIO ITLR DESKTOP,HP ENTERPRISE SERVICES UK LTD,2030301587,"28,419"
Department for Work and Pensions,Employment Programmes,19-Jul-13,WP JSA 25+ SUSTAINMENT OUTCOME PAYMENT,WWEG EP NORTH WEST GM CHES AND WARR AVANTA ENTERPRISE,AVANTA ENTERPRISE LTD,2030294358,"28,380"
Department for Work and Pensions,Employment Programmes,29-Jul-13,WP JSA 25+ SUSTAINMENT OUTCOME PAYMENT,WWEG EP S WEST DEV COR DOR AND SOM PROSPECTS SERVICES,PROSPECTS SERVICES LTD,2030371038,"28,380"
Department for Work and Pensions,Employment Programmes,23-Jul-13,SERVICE FEE,WWEG EP CORE MWA CPA YORKSHIRE AND HUMBER,INTERSERVE WORKING FUTURES,2030303015,"28,342"
Department for Work and Pensions,Housing Benefits,12-Jul-13,HOUSING BENEFIT ADMINISTRATION,HB ENGLAND,BRENTWOOD DISTRICT COUNCIL,2030215846,"28,277"
Department for Work and Pensions,Employment Programmes,01-Jul-13,WP JSA CLAIMING 22 OF 24MTHS SUSTAINMENT OUTCOME PAYMENT,WWEG EP SOUTH EAST SURR SUSSX AND KENT G4S,G4S REGIONAL MANAGEMENT UK & I LTD,2030066688,"28,250"
Department for Work and Pensions,Employment Programmes,12-Jul-13,WP JSA 18-24 JOB SUSTAINMENT OUTCOME PAYMENT,WWEG EP NORTH WEST MERS HAL CUMB AND LANCS INGEUS UK,INGEUS UK LTD,2030218148,"28,220"
Department for Work and Pensions,Corporate,22-Jul-13,HOSTING GMS SERVICES,OPS OPE IT WINTER FUEL,HP ENTERPRISE SERVICES UK LTD,2030297898,"28,213"
Department for Work and Pensions,Housing Benefits,12-Jul-13,HOUSING BENEFIT ADMINISTRATION,HB ENGLAND,SURREY HEATH BOROUGH COUNCIL,2030215719,"28,137"
Department for Work and Pensions,Housing Benefits,12-Jul-13,HOUSING BENEFIT ADMINISTRATION,HB SCOTLAND,EAST RENFREWSHIRE COUNCIL,2030215916,"28,110"
Department for Work and Pensions,Corporate,23-Jul-13,FSF - TRAINING PAYMENTS TO PROVIDERS - JSA JOBSEEKERS,OPS WDC WSD NW MERSEYSIDE DISTRICT OFFICE,LIVERPOOL COMMUNITY COLLEGE,2030300077,"28,000"
Department for Work and Pensions,Corporate,22-Jul-13,NON ICONS NETWORK SERVICES,CIO ITLR NETWORK,VODAFONE LTD,2030297243,"27,974"
Department for Work and Pensions,Employment Programmes,29-Jul-13,WP JSA 25+ SUSTAINMENT OUTCOME PAYMENT,WWEG EP SOUTH EAST SURR SUSSX AND KENT G4S,G4S REGIONAL MANAGEMENT UK & I LTD,2030371962,"27,950"
Department for Work and Pensions,Employment Programmes,03-Jul-13,WP JSA 25+ SUSTAINMENT OUTCOME PAYMENT,WWEG EP NORTH WEST GM CHES AND WARR AVANTA ENTERPRISE,AVANTA ENTERPRISE LTD,2030131375,"27,950"
Department for Work and Pensions,Employment Programmes,30-Jul-13,WP JSA 25+ SUSTAINMENT OUTCOME PAYMENT,WWEG EP S WEST DEV COR DOR AND SOM WORKING LINKS,WORKING LINKS,2030374334,"27,735"
Department for Work and Pensions,Employment Programmes,10-Jul-13,WP JSA 25+ SUSTAINMENT OUTCOME PAYMENT,WWEG EP EAST MIDLANDS INGEUS UK,INGEUS UK LTD,2030211125,"27,735"
Department for Work and Pensions,Employment Programmes,26-Jul-13,WP JSA 18-24 JOB SUSTAINMENT OUTCOME PAYMENT,WWEG EP NORTH WEST MERS HAL CUMB AND LANCS INGEUS UK,INGEUS UK LTD,2030367031,"27,710"
Department for Work and Pensions,Corporate,12-Jul-13,ICONS IS IT CONSULTANCY NON ADVICE,CIO NISSA OGD,BT GLOBAL SERVICES,2030216396,"27,558"
Department for Work and Pensions,Employment Programmes,23-Jul-13,WP JSA 25+ SUSTAINMENT OUTCOME PAYMENT,WWEG EP SCOTLAND WORKING LINKS,WORKING LINKS,2030303331,"27,520"
Department for Work and Pensions,Employment Programmes,16-Jul-13,RESIDENTIAL TRAINING COSTS,WWEG EP DELIVERY WELFARE TO WORK PRODUCT SUPPORT,ENHAM,2030221764,"27,462"
Department for Work and Pensions,Corporate,23-Jul-13,CONTRACTED OUT OFFICE SERVICES,F&C FIN CONT DEBT CONTROL,CREDIT SOLUTIONS LTD,2030303462,"27,455"
Department for Work and Pensions,Employment Programmes,22-Jul-13,WP JSA 25+ JOB OUTCOME PAYMENTWP JSA 25+ JOB OUTCOME PAYMENT,WWEG EP EAST LONDON CAREERS DEVELOPMENT GROUP,CAREERS DEVELOPMENT GROUP,2030297325,"27,360"
Department for Work and Pensions,Corporate,29-Jul-13,NON PRIME PROPERTY COSTS,OPS OPE ESTATES RECESSION,HMRC,2030369741,"27,349"
Department for Work and Pensions,Corporate,12-Jul-13,POSTAGE,OPS BEN BD SC GLASGOW NORTHGATE,ROYAL MAIL GROUP PLC,2030216239,"27,322"
Department for Work and Pensions,Housing Benefits,12-Jul-13,HOUSING BENEFIT ADMINISTRATION,HB ENGLAND,EPSOM & EWELL BOROUGH COUNCIL,2030215740,"27,305"
Department for Work and Pensions,Employment Programmes,26-Jul-13,WP JSA 25+ SUSTAINMENT OUTCOME PAYMENT,WWEG EP NORTH WEST GM CHES AND WARR G4S,G4S REGIONAL MANAGEMENT UK & I LTD,2030367533,"27,305"
Department for Work and Pensions,Employment Programmes,01-Jul-13,WP JSA 25+ SUSTAINMENT OUTCOME PAYMENT,WWEG EP W MIDLANDS BIRM SOL BC FOURSTAR EMP AND SKILLS,EOS WORKS LTD,2030066624,"27,305"
Department for Work and Pensions,Employment Programmes,19-Jul-13,WP JSA CLAIMING 22 OF 24MTHS SUSTAINMENT OUTCOME PAYMENT,WWEG EP EAST MIDLANDS INGEUS UK,INGEUS UK LTD,2030292881,"27,250"
Department for Work and Pensions,Employment Programmes,15-Jul-13,WP JSA CLAIMING 22 OF 24MTHS SUSTAINMENT OUTCOME PAYMENT,WWEG EP W MIDLANDS COV WARW STAFFS AND MARCHES SERCO,SERCO LTD,2030221484,"27,250"
Department for Work and Pensions,Employment Programmes,30-Jul-13,SERVICE FEE,WWEG EP CORE MWA CPA LONDON,SEETEC BUSINESS TECHNOLOGY CENTRE LTD,2030373513,"27,213"
Department for Work and Pensions,Corporate,31-Jul-13,PRIME BUSINESS RATES,F&C CD SHEFFIELD STEEL CITY HOUSE,TELEREAL TRILLIUM,2030435834,"27,111"
Department for Work and Pensions,Employment Programmes,26-Jul-13,WP JSA 18-24 JOB SUSTAINMENT OUTCOME PAYMENT,WWEG EP NORTH EAST INGEUS UK,INGEUS UK LTD,2030367031,"27,030"
Department for Work and Pensions,Employment Programmes,30-Jul-13,WP JSA CLAIMING 22 OF 24MTHS SUSTAINMENT OUTCOME PAYMENT,WWEG EP W MIDLANDS BIRM SOL BC FOURSTAR EMP AND SKILLS,EOS WORKS LTD,2030374325,"27,000"
Department for Work and Pensions,Child Maintenance and Enforcement Commission,03-Jul-13,NON-TREDDS IS IT APPS DEV MANDAY,MI PROJECT WAREHOUSE,CAPGEMINI UK PLC,1001361,"26,928"
Department for Work and Pensions,Employment Programmes,31-Jul-13,WP JSA 25+ SUSTAINMENT OUTCOME PAYMENT,WWEG EP SCOTLAND WORKING LINKS,WORKING LINKS,2030391144,"26,875"
Department for Work and Pensions,Employment Programmes,12-Jul-13,WP JSA 25+ SUSTAINMENT OUTCOME PAYMENT,WWEG EP SOUTH EAST SURR SUSSX AND KENT AVANTA ENTERPRISE,AVANTA ENTERPRISE LTD,2030218213,"26,875"
Department for Work and Pensions,Corporate,19-Jul-13,REPROGRAPHICS,OPS BEN BD SC GLASGOW NORTHGATE,XEROX UK LTD,2030292602,"26,862"
Department for Work and Pensions,Employment Programmes,10-Jul-13,WP JSA 18-24 JOB SUSTAINMENT OUTCOME PAYMENT,WWEG EP EAST MIDLANDS A4E,A4E LTD,2030211114,"26,860"
Department for Work and Pensions,Corporate,31-Jul-13,PRIME BUSINESS RATES,F&C CD BIRCHWOOD,TELEREAL TRILLIUM,2030435834,"26,847"
Department for Work and Pensions,Corporate,09-Jul-13,STAFF TRAINING VAT RECOVERABLE,HR CONTRACTUAL L AND D,CAPITA CIVIL SERVICE LEARNING,2030146540,"26,825"
Department for Work and Pensions,Corporate,31-Jul-13,FSF - SUPPORT CONTRACT MODULES FOR JSA JOBSEEKERS,OPS WDC WSD CE EMPLOYER AND PARTNERSHIPS STAFFS & SHROPS,JHP GROUP LTD,2030398119,"26,824"
Department for Work and Pensions,Employment Programmes,30-Jul-13,WP JSA CLAIMING 22 OF 24MTHS SUSTAINMENT OUTCOME PAYMENT,WWEG EP W MIDLANDS COV WARW STAFFS AND MARCHES ESG,ESG HOLDINGS LIMITED,2030376276,"26,750"
Department for Work and Pensions,Employment Programmes,17-Jul-13,WP JSA 25+ SUSTAINMENT OUTCOME PAYMENT,WWEG EP SCOTLAND WORKING LINKS,WORKING LINKS,2030244186,"26,660"
Department for Work and Pensions,Employment Programmes,09-Jul-13,WP JSA 25+ SUSTAINMENT OUTCOME PAYMENT,WWEG EP SOUTH EAST SURR SUSSX AND KENT AVANTA ENTERPRISE,AVANTA ENTERPRISE LTD,2030147866,"26,660"
Department for Work and Pensions,Housing Benefits,12-Jul-13,HOUSING BENEFIT ADMINISTRATION,HB ENGLAND,MALDON DISTRICT COUNCIL,2030215861,"26,644"
Department for Work and Pensions,Employment Programmes,05-Jul-13,WP JSA 18-24 JOB OUTCOME PAYMENT,WWEG EP SOUTH EAST TV HANTS AND IOW MAXIMUS EMPLOYMENT,MAXIMUS EMPLOYMENT UK LTD,2030140085,"26,640"
Department for Work and Pensions,Corporate,16-Jul-13,TREDDS APPS DEV MANDAYS,CHG UC PROJECT LEDGER CC,HP ENTERPRISE SERVICES UK LTD,2030222380,"26,548"
Department for Work and Pensions,Housing Benefits,12-Jul-13,HOUSING BENEFIT ADMINISTRATION,HB ENGLAND,WEST DEVON BOROUGH COUNCIL,2030215890,"26,524"
Department for Work and Pensions,Employment Programmes,30-Jul-13,WP JSA CLAIMING 22 OF 24MTHS SUSTAINMENT OUTCOME PAYMENT,WWEG EP WEST LONDON MAXIMUS EMPLOYMENT UK,MAXIMUS EMPLOYMENT UK LTD,2030374084,"26,500"
Department for Work and Pensions,Employment Programmes,09-Jul-13,WP JSA CLAIMING 22 OF 24MTHS SUSTAINMENT OUTCOME PAYMENT,WWEG EP SOUTH EAST SURR SUSSX AND KENT G4S,G4S REGIONAL MANAGEMENT UK & I LTD,2030151675,"26,500"
Department for Work and Pensions,Employment Programmes,26-Jul-13,WP JSA 25+ JOB OUTCOME PAYMENTWP JSA 25+ JOB OUTCOME PAYMENT,WWEG EP EAST MIDLANDS A4E,A4E LTD,2030368021,"26,496"
Department for Work and Pensions,Employment Programmes,19-Jul-13,WP JSA 25+ SUSTAINMENT OUTCOME PAYMENT,WWEG EP SOUTH EAST TV HANTS AND IOW MAXIMUS EMPLOYMENT,MAXIMUS EMPLOYMENT UK LTD,2030291988,"26,445"
Department for Work and Pensions,Employment Programmes,01-Jul-13,WP JSA 25+ SUSTAINMENT OUTCOME PAYMENT,WWEG EP WEST YORKSHIRE BEST LTD,INTERSERVE WORKING FUTURES,2030067055,"26,445"
Department for Work and Pensions,Employment Programmes,10-Jul-13,WP JSA 25+ SUSTAINMENT OUTCOME PAYMENT,WWEG EP SCOTLAND WORKING LINKS,WORKING LINKS,2030211235,"26,445"
Department for Work and Pensions,Employment Programmes,30-Jul-13,WP JSA 25+ JOB OUTCOME PAYMENTWP JSA 25+ JOB OUTCOME PAYMENT,WWEG EP NORTH WEST GM CHES AND WARR G4S,G4S REGIONAL MANAGEMENT UK & I LTD,2030372726,"26,400"
Department for Work and Pensions,Employment Programmes,29-Jul-13,WP JSA 18-24 JOB OUTCOME PAYMENT,WWEG EP EAST MIDLANDS INGEUS UK,INGEUS UK LTD,2030370735,"26,400"
Department for Work and Pensions,Employment Programmes,03-Jul-13,WP JSA 25+ JOB OUTCOME PAYMENTWP JSA 25+ JOB OUTCOME PAYMENT,WWEG EP SOUTH EAST SURR SUSSX AND KENT G4S,G4S REGIONAL MANAGEMENT UK & I LTD,2030127713,"26,400"
Department for Work and Pensions,Corporate,03-Jul-13,NEW ENTERPRISE ALLOWANCE MENTOR MATCHING,OPS WDC WSD WL SOUTH WEST WALES DISTRICT OFFICE,A4E LTD,2030117099,"26,389"
Department for Work and Pensions,Corporate,26-Jul-13,NEW ENTERPRISE ALLOWANCE MENTOR MATCHING,OPS WDC WSD WL SOUTH WEST WALES DISTRICT OFFICE,A4E LTD,2030367834,"26,389"
Department for Work and Pensions,Employment Programmes,09-Jul-13,WP JSA 18-24 JOB SUSTAINMENT OUTCOME PAYMENT,WWEG EP NORTH WEST MERS HAL CUMB AND LANCS INGEUS UK,INGEUS UK LTD,2030146448,"26,350"
Department for Work and Pensions,Corporate,31-Jul-13,IPC FOREIGN ARREARS PAYMENTS,BALANCE SHEET,C DONNELLY,2030380477,"26,327"
Department for Work and Pensions,Child Maintenance and Enforcement Commission,08-Jul-13,TREDDS APPS DEV FIXED PRICE CONTRACTS,LEGACY SYSTEMS IT RUNNING COSTS - IOL,HP ENTERPRISE SERVICES UK LTD,1000182287,"26,300"
Department for Work and Pensions,Employment Programmes,18-Jul-13,WP JSA NEET SUSTAINMENT OUTCOME PAYMENT,WWEG EP W MIDLANDS COV WARW STAFFS AND MARCHES SERCO,SERCO LTD,2030290421,"26,250"
Department for Work and Pensions,Employment Programmes,25-Jul-13,WP JSA CLAIMING 22 OF 24MTHS SUSTAINMENT OUTCOME PAYMENT,WWEG EP EAST MIDLANDS A4E,A4E LTD,2030365546,"26,250"
Department for Work and Pensions,Employment Programmes,16-Jul-13,WP JSA 25+ SUSTAINMENT OUTCOME PAYMENT,WWEG EP NORTH EAST AVANTA ENTERPRISE,AVANTA ENTERPRISE LTD,2030222343,"26,230"
Department for Work and Pensions,Employment Programmes,26-Jul-13,WP JSA 25+ JOB OUTCOME PAYMENTWP JSA 25+ JOB OUTCOME PAYMENT,WWEG EP EAST LONDON A4E,A4E LTD,2030368021,"26,220"
Department for Work and Pensions,Employment Programmes,15-Jul-13,WP JSA 25+ JOB OUTCOME PAYMENTWP JSA 25+ JOB OUTCOME PAYMENT,WWEG EP EAST LONDON CAREERS DEVELOPMENT GROUP,CAREERS DEVELOPMENT GROUP,2030219215,"26,220"
Department for Work and Pensions,Corporate,25-Jul-13,ACCOUNTS PAYABLE UNAPPROVED INVOICES,CHG FRAUD & ERROR STRATEGY,CAPGEMINI UK PLC,2030364580,"26,092"
Department for Work and Pensions,Employment Programmes,26-Jul-13,ACCESS TO WORK - PAYMENT FOR SUPPORT WORKERS,WWEG EP NORTH WEST,SIGN COMMUNICATIONS,2030368203,"26,081"
Department for Work and Pensions,Employment Programmes,01-Jul-13,WP JSA 25+ SUSTAINMENT OUTCOME PAYMENT,WWEG EP WEST YORKSHIRE INGEUS UK,INGEUS UK LTD,2030066736,"26,015"
Department for Work and Pensions,Employment Programmes,10-Jul-13,WP JSA 25+ SUSTAINMENT OUTCOME PAYMENT,WWEG EP WEST LONDON REED IN PARTNERSHIP,REED IN PARTNERSHIP LTD,2030209696,"26,015"
Department for Work and Pensions,Employment Programmes,02-Jul-13,ACCESS TO WORK - TRAVEL IN WORK,WWEG EP SOUTH EAST,ROYAL BRITISH LEGION INDUSTRIES,2030070192,"25,974"
Department for Work and Pensions,Employment Programmes,10-Jul-13,WP JSA 25+ SUSTAINMENT OUTCOME PAYMENT,WWEG EP WEST YORKSHIRE BEST LTD,INTERSERVE WORKING FUTURES,2030210115,"25,800"
Department for Work and Pensions,Employment Programmes,16-Jul-13,ACCESS TO WORK - TRAVEL IN WORK,WWEG EP WEST MIDLANDS,CAPITA SYMONDS LTD,2030223290,"25,790"
Department for Work and Pensions,Corporate,19-Jul-13,REPROGRAPHICS,OPS BEN BD SC STIRLING DMU,XEROX UK LTD,2030292602,"25,683"
Department for Work and Pensions,Corporate,19-Jul-13,CONTRACTORS & STAFF SUBSTITUTIONS,CHG IT TRANSFORMATION PROG,CAPITA RESOURCING LTD,2030295408,"25,616"
Department for Work and Pensions,Employment Programmes,22-Jul-13,WP JSA 25+ SUSTAINMENT OUTCOME PAYMENT,WWEG EP SCOTLAND WORKING LINKS,WORKING LINKS,2030297091,"25,585"
Department for Work and Pensions,Housing Benefits,12-Jul-13,HOUSING BENEFIT ADMINISTRATION,HB ENGLAND,DERBYSHIRE DALES DISTRICT COUNCIL,2030215930,"25,546"
Department for Work and Pensions,Employment Programmes,26-Jul-13,WP JSA 18-24 JOB SUSTAINMENT OUTCOME PAYMENT,WWEG EP EAST OF ENGLAND INGEUS UK,INGEUS UK LTD,2030367031,"25,500"
Department for Work and Pensions,Employment Programmes,22-Jul-13,WP JSA CLAIMING 22 OF 24MTHS SUSTAINMENT OUTCOME PAYMENT,WWEG EP W MIDLANDS BIRM SOL BC FOURSTAR EMP AND SKILLS,EOS WORKS LTD,2030298536,"25,500"
Department for Work and Pensions,Employment Programmes,19-Jul-13,WP JSA 18-24 JOB SUSTAINMENT OUTCOME PAYMENT,WWEG EP SCOTLAND INGEUS UK,INGEUS UK LTD,2030292881,"25,500"
Department for Work and Pensions,Employment Programmes,12-Jul-13,WP JSA 18-24 JOB SUSTAINMENT OUTCOME PAYMENT,WWEG EP NORTH WEST GM CHES AND WARR G4S,G4S REGIONAL MANAGEMENT UK & I LTD,2030216190,"25,500"
Department for Work and Pensions,Corporate,24-Jul-13,POSTAGE,OPS OPE CENTRAL CONTACTS,UK MAIL,2030325521,"25,450"
Department for Work and Pensions,Child Maintenance and Enforcement Commission,19-Jul-13,CONTRACTORS & STAFF SUBSTITUTIONS,NEW SCHEME PROJECT RESOURCE RECHARGE,CAPITA RESOURCING LTD,1000183477,"25,383"
Department for Work and Pensions,Corporate,09-Jul-13,TREDDS APPS DEV MANDAYS,CHG ACCESS TO WORK,HP ENTERPRISE SERVICES UK LTD,2030150486,"25,380"
Department for Work and Pensions,Employment Programmes,23-Jul-13,WP JSA 25+ SUSTAINMENT OUTCOME PAYMENT,WWEG EP EAST LONDON CAREERS DEVELOPMENT GROUP,CAREERS DEVELOPMENT GROUP,2030301086,"25,370"
Department for Work and Pensions,Employment Programmes,26-Jul-13,WP JSA 25+ SUSTAINMENT OUTCOME PAYMENT,WWEG EP SOUTH EAST SURR SUSSX AND KENT AVANTA ENTERPRISE,AVANTA ENTERPRISE LTD,2030369099,"25,370"
Department for Work and Pensions,Employment Programmes,29-Jul-13,WP JSA 25+ SUSTAINMENT OUTCOME PAYMENT,WWEG EP NORTH WEST GM CHES AND WARR SEETEC,SEETEC BUSINESS TECHNOLOGY CENTRE LTD,2030372196,"25,370"
Department for Work and Pensions,Employment Programmes,01-Jul-13,WP JSA 25+ SUSTAINMENT OUTCOME PAYMENT,WWEG EP NORTH WEST GM CHES AND WARR AVANTA ENTERPRISE,AVANTA ENTERPRISE LTD,2030065881,"25,370"
Department for Work and Pensions,Corporate,19-Jul-13,REPROGRAPHICS,OPS BEN BD SC COATBRIDGE,XEROX UK LTD,2030292602,"25,350"
Department for Work and Pensions,Employment Programmes,16-Jul-13,SERVICE FEE,WWEG EP CORE MWA CPA SOUTH EAST,ATOS IT SERVICES UK LTD,2030222994,"25,315"
Department for Work and Pensions,Employment Programmes,09-Jul-13,WP JSA CLAIMING 22 OF 24MTHS SUSTAINMENT OUTCOME PAYMENT,WWEG EP SCOTLAND INGEUS UK,INGEUS UK LTD,2030146448,"25,250"
Department for Work and Pensions,Employment Programmes,29-Jul-13,WP JSA 25+ JOB OUTCOME PAYMENTWP JSA 25+ JOB OUTCOME PAYMENT,WWEG EP EAST OF ENGLAND INGEUS UK,INGEUS UK LTD,2030370735,"25,200"
Department for Work and Pensions,Employment Programmes,01-Jul-13,WP JSA 18-24 JOB OUTCOME PAYMENT,WWEG EP SOUTH EAST SURR SUSSX AND KENT G4S,G4S REGIONAL MANAGEMENT UK & I LTD,2030066688,"25,200"
Department for Work and Pensions,Employment Programmes,12-Jul-13,WP JSA 25+ JOB OUTCOME PAYMENTWP JSA 25+ JOB OUTCOME PAYMENT,WWEG EP SCOTLAND WORKING LINKS,WORKING LINKS,2030218151,"25,200"
Department for Work and Pensions,Employment Programmes,01-Jul-13,WP JSA 25+ JOB OUTCOME PAYMENTWP JSA 25+ JOB OUTCOME PAYMENT,WWEG EP SCOTLAND WORKING LINKS,WORKING LINKS,2030066832,"25,200"
Department for Work and Pensions,Employment Programmes,05-Jul-13,WP JSA 25+ JOB OUTCOME PAYMENTWP JSA 25+ JOB OUTCOME PAYMENT,WWEG EP WEST LONDON MAXIMUS EMPLOYMENT UK,MAXIMUS EMPLOYMENT UK LTD,2030140085,"25,200"
Department for Work and Pensions,Employment Programmes,19-Jul-13,WP JSA 18-24 JOB SUSTAINMENT OUTCOME PAYMENT,WWEG EP NORTH WEST MERS HAL CUMB AND LANCS INGEUS UK,INGEUS UK LTD,2030292881,"25,160"
Department for Work and Pensions,Employment Programmes,19-Jul-13,WP JSA 18-24 JOB SUSTAINMENT OUTCOME PAYMENT,WWEG EP EAST MIDLANDS INGEUS UK,INGEUS UK LTD,2030292881,"25,160"
Department for Work and Pensions,Employment Programmes,26-Jul-13,WP JSA 25+ SUSTAINMENT OUTCOME PAYMENT,WWEG EP SCOTLAND WORKING LINKS,WORKING LINKS,2030367035,"25,155"
Department for Work and Pensions,Employment Programmes,19-Jul-13,WP JSA 25+ SUSTAINMENT OUTCOME PAYMENT,WWEG EP EAST LONDON CAREERS DEVELOPMENT GROUP,CAREERS DEVELOPMENT GROUP,2030295446,"25,155"
Department for Work and Pensions,Employment Programmes,12-Jul-13,WP JSA 25+ SUSTAINMENT OUTCOME PAYMENT,WWEG EP W MIDLANDS BIRM SOL BC NEWCASTLE COLLEGE GROUP,NEWCASTLE COLLEGE GROUP,2030216084,"25,155"
Department for Work and Pensions,Housing Benefits,12-Jul-13,HOUSING BENEFIT ADMINISTRATION,HB ENGLAND,SOUTH NORTHANTS COUNCIL,2030215953,"25,131"
Department for Work and Pensions,Housing Benefits,12-Jul-13,HOUSING BENEFIT ADMINISTRATION,HB ENGLAND,HARBOROUGH DISTRICT COUNCIL,2030216045,"25,105"
Department for Work and Pensions,Employment Programmes,10-Jul-13,WP JSA CLAIMING 22 OF 24MTHS SUSTAINMENT OUTCOME PAYMENT,WWEG EP W MIDLANDS BIRM SOL BC NEWCASTLE COLLEGE GROUP,NEWCASTLE COLLEGE GROUP,2030209813,"25,000"
Department for Work and Pensions,Corporate,24-Jul-13,STAFF TRAINING VAT RECOVERABLE,CHG STATE PENSIONS PROG MANAGER & PMO,OXFORD SAID BUSINESS SCHOOL LTD,2030338080,"25,000"
Department for Work and Pensions,Employment Programmes,19-Jul-13,WP JSA 18-24 JOB SUSTAINMENT OUTCOME PAYMENT,WWEG EP EAST OF ENGLAND INGEUS UK,INGEUS UK LTD,2030292881,"24,990"
Department for Work and Pensions,Employment Programmes,03-Jul-13,WP JSA 18-24 JOB SUSTAINMENT OUTCOME PAYMENT,WWEG EP NORTH EAST AVANTA ENTERPRISE,AVANTA ENTERPRISE LTD,2030131375,"24,990"
Department for Work and Pensions,SHARED SERVICES,09-Jul-13,NON-TREDDS IS IT APPS DEV MANDAY,TSOL DD,FUJITSU SERVICES LTD,2030149953,"24,963"
Department for Work and Pensions,Employment Programmes,22-Jul-13,WP JSA 25+ SUSTAINMENT OUTCOME PAYMENT,WWEG EP W MIDLANDS BIRM SOL BC FOURSTAR EMP AND SKILLS,EOS WORKS LTD,2030298536,"24,940"
Department for Work and Pensions,Employment Programmes,31-Jul-13,WP JSA 25+ SUSTAINMENT OUTCOME PAYMENT,WWEG EP W MIDLANDS COV WARW STAFFS AND MARCHES ESG,ESG HOLDINGS LIMITED,2030397841,"24,940"
Department for Work and Pensions,Employment Programmes,19-Jul-13,WP JSA 25+ SUSTAINMENT OUTCOME PAYMENT,WWEG EP NORTH WEST GM CHES AND WARR SEETEC,SEETEC BUSINESS TECHNOLOGY CENTRE LTD,2030295420,"24,940"
Department for Work and Pensions,Employment Programmes,01-Jul-13,WP JSA 25+ SUSTAINMENT OUTCOME PAYMENT,WWEG EP NORTH WEST MERS HAL CUMB AND LANCS INGEUS UK,INGEUS UK LTD,2030066736,"24,940"
Department for Work and Pensions,Employment Programmes,12-Jul-13,WP JSA 25+ SUSTAINMENT OUTCOME PAYMENT,WWEG EP WEST YORKSHIRE BEST LTD,INTERSERVE WORKING FUTURES,2030218382,"24,940"
Department for Work and Pensions,Housing Benefits,12-Jul-13,HOUSING BENEFIT ADMINISTRATION,HB ENGLAND,CHRISTCHURCH BOROUGH COUNCIL,2030215877,"24,931"
Department for Work and Pensions,Corporate,03-Jul-13,STAFF TRAINING VAT RECOVERABLE,HR CONTRACTUAL L AND D,CAPITA CIVIL SERVICE LEARNING,2030117866,"24,776"
Department for Work and Pensions,Employment Programmes,09-Jul-13,WP JSA CLAIMING 22 OF 24MTHS SUSTAINMENT OUTCOME PAYMENT,WWEG EP EAST MIDLANDS INGEUS UK,INGEUS UK LTD,2030146448,"24,750"
Department for Work and Pensions,Employment Programmes,22-Jul-13,WP JSA 25+ SUSTAINMENT OUTCOME PAYMENT,WWEG EP NORTH EAST AVANTA ENTERPRISE,AVANTA ENTERPRISE LTD,2030299064,"24,725"
Department for Work and Pensions,Employment Programmes,08-Jul-13,WP JSA 25+ SUSTAINMENT OUTCOME PAYMENT,WWEG EP SCOTLAND INGEUS UK,INGEUS UK LTD,2030145747,"24,725"
Department for Work and Pensions,Employment Programmes,25-Jul-13,FSF - TRAINING PAYMENTS TO PROVIDERS - JSA JOBSEEKERS,WWEG EP WALES COUNTRY,WORKING LINKS,2030365329,"24,613"
Department for Work and Pensions,Employment Programmes,15-Jul-13,WP JSA 25+ SUSTAINMENT OUTCOME PAYMENT,WWEG EP EAST OF ENGLAND INGEUS UK,INGEUS UK LTD,2030221244,"24,510"
Department for Work and Pensions,Employment Programmes,08-Jul-13,WP JSA 18-24 JOB SUSTAINMENT OUTCOME PAYMENT,WWEG EP WALES WORKING LINKS WALES,WORKING LINKS,2030145750,"24,480"
Department for Work and Pensions,Employment Programmes,01-Jul-13,WP JSA 18-24 JOB SUSTAINMENT OUTCOME PAYMENT,WWEG EP NORTH EAST AVANTA ENTERPRISE,AVANTA ENTERPRISE LTD,2030065881,"24,480"
Department for Work and Pensions,Housing Benefits,12-Jul-13,HOUSING BENEFIT ADMINISTRATION,HB ENGLAND,UTTLESFORD DISTRICT COUNCIL,2030216064,"24,454"
Department for Work and Pensions,Corporate,05-Jul-13,HOSTING SERVICES,CIO ITLR HOSTING,HP ENTERPRISE SERVICES UK LTD,2030140285,"24,450"
Department for Work and Pensions,Corporate,22-Jul-13,PIP GP FACTUAL REPORTS,OPS CCS PIP LOT 3,ATOS IT SERVICES UK LTD,2030296196,"24,393"
Department for Work and Pensions,Corporate,09-Jul-13,NON-TREDDS IS IT APPS DEV MANDAY,CHG ELECTRONIC SIGNING,IBM UNITED KINGDOM LTD,2030146508,"24,366"
Department for Work and Pensions,Employment Programmes,03-Jul-13,ACCESS TO WORK - TRAVEL IN WORK,WWEG EP LONDON REGION,ROYAL BRITISH LEGION INDUSTRIES,2030113515,"24,346"
Department for Work and Pensions,Employment Programmes,19-Jul-13,WP JSA 25+ SUSTAINMENT OUTCOME PAYMENT,WWEG EP WEST YORKSHIRE BEST LTD,INTERSERVE WORKING FUTURES,2030295206,"24,295"
Department for Work and Pensions,Employment Programmes,23-Jul-13,WP JSA 25+ SUSTAINMENT OUTCOME PAYMENT,WWEG EP EAST OF ENGLAND INGEUS UK,INGEUS UK LTD,2030303286,"24,295"
Department for Work and Pensions,Corporate,22-Jul-13,NON-TREDDS IS IT SERVICES (AMS),CIO GG SERVICE DELIVERY,ATOS ORIGIN IT SERVICES UK LTD,2030298075,"24,285"
Department for Work and Pensions,Employment Programmes,19-Jul-13,WP JSA 25+ JOB OUTCOME PAYMENTWP JSA 25+ JOB OUTCOME PAYMENT,WWEG EP EAST OF ENGLAND SEETEC,SEETEC BUSINESS TECHNOLOGY CENTRE LTD,2030295420,"24,180"
Department for Work and Pensions,Housing Benefits,12-Jul-13,HOUSING BENEFIT ADMINISTRATION,HB ENGLAND,RYEDALE DISTRICT COUNCIL,2030215912,"24,112"
Department for Work and Pensions,Employment Programmes,26-Jul-13,WP JSA 25+ SUSTAINMENT OUTCOME PAYMENT,WWEG EP WALES WORKING LINKS WALES,WORKING LINKS,2030367035,"24,080"
Department for Work and Pensions,Employment Programmes,15-Jul-13,WP JSA 25+ SUSTAINMENT OUTCOME PAYMENT,WWEG EP NORTH WEST GM CHES AND WARR AVANTA ENTERPRISE,AVANTA ENTERPRISE LTD,2030220706,"24,080"
Department for Work and Pensions,Employment Programmes,09-Jul-13,WP JSA 25+ SUSTAINMENT OUTCOME PAYMENT,WWEG EP W MIDLANDS BIRM SOL BC NEWCASTLE COLLEGE GROUP,NEWCASTLE COLLEGE GROUP,2030147509,"24,080"
Department for Work and Pensions,Employment Programmes,08-Jul-13,WP JSA 25+ SUSTAINMENT OUTCOME PAYMENT,WWEG EP WEST YORKSHIRE BEST LTD,INTERSERVE WORKING FUTURES,2030144022,"24,080"
Department for Work and Pensions,Corporate,31-Jul-13,PRIME BUSINESS RATES,F&C CD MANCHESTER ANCHORAGE HOUSE,TELEREAL TRILLIUM,2030435834,"24,021"
Department for Work and Pensions,Employment Programmes,23-Jul-13,WP JSA 25+ JOB OUTCOME PAYMENTWP JSA 25+ JOB OUTCOME PAYMENT,WWEG EP EAST OF ENGLAND INGEUS UK,INGEUS UK LTD,2030303286,"24,000"
Department for Work and Pensions,Employment Programmes,09-Jul-13,WP JSA 18-24 JOB SUSTAINMENT OUTCOME PAYMENT,WWEG EP NORTH EAST INGEUS UK,INGEUS UK LTD,2030146448,"23,970"
Department for Work and Pensions,Employment Programmes,02-Jul-13,WP JSA 25+ SUSTAINMENT OUTCOME PAYMENT,WWEG EP SCOTLAND WORKING LINKS,WORKING LINKS,2030072880,"23,865"
Department for Work and Pensions,Employment Programmes,15-Jul-13,WP JSA 25+ SUSTAINMENT OUTCOME PAYMENT,WWEG EP W MIDLANDS BIRM SOL BC FOURSTAR EMP AND SKILLS,EOS WORKS LTD,2030220932,"23,865"
Department for Work and Pensions,Corporate,25-Jul-13,CONTRACTORS & STAFF SUBSTITUTIONS,CIO ADC HEAD OF ASSET INTEGRATION & DEMAND SUPPLY,CAPGEMINI UK PLC,2030364580,"23,820"
Department for Work and Pensions,Corporate,19-Jul-13,REPROGRAPHICS,OPS BEN BD NW BIRKENHEAD,XEROX UK LTD,2030292602,"23,772"
Department for Work and Pensions,Corporate,09-Jul-13,TREDDS APPS DEV MANDAYS,CHG SINGLE EURO PAYMENT AREA,HP ENTERPRISE SERVICES UK LTD,2030150486,"23,753"
Department for Work and Pensions,Corporate,23-Jul-13,SECURE PRINTING,F&C CD SECURE PRINT,XEROX UK LTD 3W,2030301291,"23,716"
Department for Work and Pensions,Corporate,08-Jul-13,NON PRIME WORKS - VAT RECOVERABLE,F&C CD DURHAM HOUSE,THE NEWCASTLE ESTATES PARTNERSHIP LTD,2030144931,"23,644"
Department for Work and Pensions,Employment Programmes,18-Jul-13,WP JSA 18-24 JOB SUSTAINMENT OUTCOME PAYMENT,WWEG EP NORTH WEST MERS HAL CUMB AND LANCS A4E,A4E LTD,2030287183,"23,630"
Department for Work and Pensions,Corporate,29-Jul-13,SOFTWARE LICENCES,CIO ADEP ITLR ADEP TRANSITION,SPECIALIST COMPUTER CENTRES PLC,2030370137,"23,570"
Department for Work and Pensions,Employment Programmes,30-Jul-13,WP JSA 25+ SUSTAINMENT OUTCOME PAYMENT,WWEG EP WEST YORKSHIRE BEST LTD,INTERSERVE WORKING FUTURES,2030373263,"23,435"
Department for Work and Pensions,Employment Programmes,30-Jul-13,WP JSA 25+ SUSTAINMENT OUTCOME PAYMENT,WWEG EP SCOTLAND WORKING LINKS,WORKING LINKS,2030374334,"23,435"
Department for Work and Pensions,Employment Programmes,02-Jul-13,WP JSA 25+ SUSTAINMENT OUTCOME PAYMENT,WWEG EP WEST YORKSHIRE BEST LTD,INTERSERVE WORKING FUTURES,2030067783,"23,435"
Department for Work and Pensions,Employment Programmes,12-Jul-13,WP JSA CLAIMING 22 OF 24MTHS SUSTAINMENT OUTCOME PAYMENT,WWEG EP EAST OF ENGLAND SEETEC,SEETEC BUSINESS TECHNOLOGY CENTRE LTD,2030218233,"23,250"
Department for Work and Pensions,Employment Programmes,09-Jul-13,WP JSA CLAIMING 22 OF 24MTHS SUSTAINMENT OUTCOME PAYMENT,WWEG EP EAST OF ENGLAND INGEUS UK,INGEUS UK LTD,2030146448,"23,250"
Department for Work and Pensions,Employment Programmes,19-Jul-13,WP JSA 25+ SUSTAINMENT OUTCOME PAYMENT,WWEG EP NORTH WEST GM CHES AND WARR G4S,G4S REGIONAL MANAGEMENT UK & I LTD,2030293433,"23,220"
Department for Work and Pensions,Employment Programmes,15-Jul-13,WP JSA 25+ SUSTAINMENT OUTCOME PAYMENT,WWEG EP SOUTH EAST SURR SUSSX AND KENT G4S,G4S REGIONAL MANAGEMENT UK & I LTD,2030220187,"23,220"
Department for Work and Pensions,Employment Programmes,12-Jul-13,WP JSA 25+ JOB OUTCOME PAYMENTWP JSA 25+ JOB OUTCOME PAYMENT,WWEG EP EAST MIDLANDS A4E,A4E LTD,2030217071,"23,184"
Department for Work and Pensions,Corporate,19-Jul-13,REPROGRAPHICS,OPS BEN LONDON DMA,XEROX UK LTD,2030292602,"23,061"
Department for Work and Pensions,Employment Programmes,25-Jul-13,WP JSA 25+ SUSTAINMENT OUTCOME PAYMENT,WWEG EP SCOTLAND WORKING LINKS,WORKING LINKS,2030365329,"23,005"
Department for Work and Pensions,Employment Programmes,02-Jul-13,WP JSA 25+ SUSTAINMENT OUTCOME PAYMENT,WWEG EP W MIDLANDS BIRM SOL BC FOURSTAR EMP AND SKILLS,EOS WORKS LTD,2030068290,"23,005"
Department for Work and Pensions,Employment Programmes,16-Jul-13,WP JSA 25+ SUSTAINMENT OUTCOME PAYMENT,WWEG EP W MIDLANDS BIRM SOL BC PERTEMPS,PERTEMPS,2030223708,"23,005"
Department for Work and Pensions,Employment Programmes,29-Jul-13,WP JSA CLAIMING 22 OF 24MTHS SUSTAINMENT OUTCOME PAYMENT,WWEG EP NORTH WEST GM CHES AND WARR SEETEC,SEETEC BUSINESS TECHNOLOGY CENTRE LTD,2030372196,"23,000"
Department for Work and Pensions,Employment Programmes,08-Jul-13,WP JSA CLAIMING 22 OF 24MTHS SUSTAINMENT OUTCOME PAYMENT,WWEG EP W MIDLANDS BIRM SOL BC NEWCASTLE COLLEGE GROUP,NEWCASTLE COLLEGE GROUP,2030144893,"23,000"
Department for Work and Pensions,Employment Programmes,10-Jul-13,WP JSA CLAIMING 22 OF 24MTHS SUSTAINMENT OUTCOME PAYMENT,WWEG EP EAST MIDLANDS A4E,A4E LTD,2030211114,"23,000"
Department for Work and Pensions,Corporate,05-Jul-13,FSF - SUPPORT CONTRACT MODULES FOR JSA JOBSEEKERS,OPS WDC WSD CE EMPLOYER AND PARTNERSHIPS STAFFS & SHROPS,JHP GROUP LTD,2030140374,"22,992"
Department for Work and Pensions,Employment Programmes,08-Jul-13,SERVICE FEE,WWEG EP CORE MWA CPA NORTH WEST,JHP GROUP LTD,2030144110,"22,881"
Department for Work and Pensions,Employment Programmes,25-Jul-13,WP JSA 25+ JOB OUTCOME PAYMENTWP JSA 25+ JOB OUTCOME PAYMENT,WWEG EP S WEST DEV COR DOR AND SOM WORKING LINKS,WORKING LINKS,2030365329,"22,800"
Department for Work and Pensions,Employment Programmes,29-Jul-13,WP JSA 25+ JOB OUTCOME PAYMENTWP JSA 25+ JOB OUTCOME PAYMENT,WWEG EP NORTH EAST INGEUS UK,INGEUS UK LTD,2030370735,"22,800"
Department for Work and Pensions,Employment Programmes,01-Jul-13,WP JSA 25+ JOB OUTCOME PAYMENTWP JSA 25+ JOB OUTCOME PAYMENT,WWEG EP NORTH WEST GM CHES AND WARR G4S,G4S REGIONAL MANAGEMENT UK & I LTD,2030066688,"22,800"
Department for Work and Pensions,Employment Programmes,03-Jul-13,WP JSA 25+ JOB OUTCOME PAYMENTWP JSA 25+ JOB OUTCOME PAYMENT,WWEG EP EAST OF ENGLAND INGEUS UK,INGEUS UK LTD,2030107867,"22,800"
Department for Work and Pensions,Employment Programmes,30-Jul-13,WP JSA 25+ SUSTAINMENT OUTCOME PAYMENT,WWEG EP EAST OF ENGLAND SEETEC,SEETEC BUSINESS TECHNOLOGY CENTRE LTD,2030373513,"22,790"
Department for Work and Pensions,Employment Programmes,30-Jul-13,WP JSA 25+ SUSTAINMENT OUTCOME PAYMENT,WWEG EP SOUTH EAST SURR SUSSX AND KENT AVANTA ENTERPRISE,AVANTA ENTERPRISE LTD,2030376177,"22,790"
Department for Work and Pensions,Employment Programmes,19-Jul-13,WP JSA 18-24 JOB SUSTAINMENT OUTCOME PAYMENT,WWEG EP NORTH EAST INGEUS UK,INGEUS UK LTD,2030292881,"22,780"
Department for Work and Pensions,Employment Programmes,26-Jul-13,WP JSA CLAIMING 22 OF 24MTHS SUSTAINMENT OUTCOME PAYMENT,WWEG EP W MIDLANDS BIRM SOL BC FOURSTAR EMP AND SKILLS,EOS WORKS LTD,2030366618,"22,750"
Department for Work and Pensions,Housing Benefits,12-Jul-13,HOUSING BENEFIT ADMINISTRATION,HB ENGLAND,WEST SOMERSET DISTRICT COUNCIL,2030215855,"22,738"
Department for Work and Pensions,Employment Programmes,29-Jul-13,WP JSA 25+ JOB OUTCOME PAYMENTWP JSA 25+ JOB OUTCOME PAYMENT,WWEG EP S WEST DEV COR DOR AND SOM PROSPECTS SERVICES,PROSPECTS SERVICES LTD,2030371038,"22,680"
Department for Work and Pensions,Employment Programmes,12-Jul-13,WP JSA 18-24 JOB SUSTAINMENT OUTCOME PAYMENT,WWEG EP NORTH EAST INGEUS UK,INGEUS UK LTD,2030218148,"22,610"
Department for Work and Pensions,Employment Programmes,10-Jul-13,WP JSA 18-24 JOB SUSTAINMENT OUTCOME PAYMENT,WWEG EP NORTH WEST MERS HAL CUMB AND LANCS A4E,A4E LTD,2030211114,"22,610"
Department for Work and Pensions,Employment Programmes,25-Jul-13,WP JSA 25+ SUSTAINMENT OUTCOME PAYMENT,WWEG EP EAST OF ENGLAND SEETEC,SEETEC BUSINESS TECHNOLOGY CENTRE LTD,2030363436,"22,575"
Department for Work and Pensions,Employment Programmes,10-Jul-13,WP JSA 25+ SUSTAINMENT OUTCOME PAYMENT,WWEG EP NORTH WEST MERS HAL CUMB AND LANCS INGEUS UK,INGEUS UK LTD,2030211125,"22,575"
Department for Work and Pensions,Employment Programmes,15-Jul-13,WP JSA 25+ SUSTAINMENT OUTCOME PAYMENT,WWEG EP NORTH WEST GM CHES AND WARR SEETEC,SEETEC BUSINESS TECHNOLOGY CENTRE LTD,2030219868,"22,575"
Department for Work and Pensions,Employment Programmes,01-Jul-13,WP JSA 25+ SUSTAINMENT OUTCOME PAYMENT,WWEG EP SOUTH EAST SURR SUSSX AND KENT AVANTA ENTERPRISE,AVANTA ENTERPRISE LTD,2030065881,"22,575"
Department for Work and Pensions,Employment Programmes,25-Jul-13,WP JSA 18-24 JOB SUSTAINMENT OUTCOME PAYMENT,WWEG EP EAST MIDLANDS A4E,A4E LTD,2030365546,"22,440"
Department for Work and Pensions,Employment Programmes,05-Jul-13,WP JSA 18-24 JOB SUSTAINMENT OUTCOME PAYMENT,WWEG EP EAST MIDLANDS A4E,A4E LTD,2030141506,"22,440"
Department for Work and Pensions,Employment Programmes,22-Jul-13,WP JSA 25+ SUSTAINMENT OUTCOME PAYMENT,WWEG EP WEST YORKSHIRE BEST LTD,INTERSERVE WORKING FUTURES,2030297442,"22,360"
Department for Work and Pensions,Employment Programmes,05-Jul-13,WP JSA 25+ SUSTAINMENT OUTCOME PAYMENT,WWEG EP EAST OF ENGLAND INGEUS UK,INGEUS UK LTD,2030141522,"22,360"
Department for Work and Pensions,Employment Programmes,12-Jul-13,WP JSA 25+ SUSTAINMENT OUTCOME PAYMENT,WWEG EP WALES WORKING LINKS WALES,WORKING LINKS,2030218151,"22,360"
Department for Work and Pensions,Employment Programmes,01-Jul-13,WP JSA 25+ SUSTAINMENT OUTCOME PAYMENT,WWEG EP EAST MIDLANDS INGEUS UK,INGEUS UK LTD,2030066736,"22,360"
Department for Work and Pensions,Employment Programmes,08-Jul-13,SERVICE FEE,WWEG EP CORE MWA CPA SCOTLAND,JHP GROUP LTD,2030144110,"22,303"
